{"text_format":"2","workbook":"xlsx","n_sheets":10,"sheets":["版本","说明","数据类型","standalone_trans.bin","trans_record.bin","err_record.bin","config.bin","total.bin","calcu_info.bin","debug.bin"],"not_rendered":{"charts":0,"images":0,"macros":0,"external_links":0,"defined_names":0,"comments":0,"pivot_tables":0},"unopened":[],"bounds":{"document_bytes":16777216,"sheet_cells":100000,"run_cost":"one","rows_first":2000,"rows_last":500,"rows_between":2000,"halvings":0,"cell_chars":16384,"cell_head_chars":4096},"cells_cut":0,"cells_raw":0,"read":"whole","date_system":"1900"}

{"sheet":"版本","index":0,"n_rows":2,"n_cols":4,"rows_kept":2,"cut":false,"hidden":false,"merged":[[11,3,11,16],[0,3,0,16],[7,3,7,16],[8,3,8,16],[9,3,9,16],[10,3,10,16],[1,3,6,16],[12,3,12,16],[13,3,13,16],[14,3,14,16],[15,3,15,16],[16,3,16,16]]}
["V0.01","Melo Hong",20200429,"创建文件"]
["V0.02","Melo  Hong",20200629,"1、新增数据类型DATETIME;\n2、修改数据类型 S_AMTC等的结构体成员sign_comma的含义：原指数值小数点后位数，现指小数点前位数;\n3、修改交易记录trans_record.bin（和离线交易记录standalone_trans.bin）的数据结构;\n4、修改错误记录err_record.bin的数据结构;\n5、修改配置数据cofig.bin的数据结构;\n6、新增debug.bin文件;"]

{"sheet":"说明","index":1,"n_rows":9,"n_cols":4,"rows_kept":9,"cut":false,"hidden":false,"merged":[[5,3,5,8],[0,0,0,8],[1,3,1,8],[2,3,2,8],[3,3,3,8],[4,3,4,8],[12,3,12,8],[6,3,6,8],[7,3,7,8],[8,3,8,8],[9,3,9,8],[10,3,10,8],[11,3,11,8]]}
["文件说明"]
["文件名","备注","文件名描述","说明"]
["standalone_trans_x.bin","x = AorB,对应两个加油点","离线加油交易记录","每条记录固定长度，记录数量不固定，最大2560条记录(2560 = 5 * 8 * 16 * 4)"]
["trans_record_x.bin","x = AorB,对应两个加油点","加油交易记录","每条记录固定长度， 记录数量不固定，最大80条记录(80 = 5 * 8 * 2)"]
["err_record_x.bin","x = AorB,对应两个加油点","错误/故障记录","每条记录固定长度，记录数量不固定，最大416条记录(416 = 26 * 8 * 2)"]
["config_x.bin","x = AorB,对应两个加油点","配置数据","固定长度"]
["total_x.bin","x = AorB,对应两个加油点","总累数据","固定长度"]
["calcu_info.bin",null,"计量板信息","固定长度"]
["debug_x.bin","x = AorB,对应两个加油点","调试信息","每条记录固定长度，记录数量不固定，最大3840条记录(3840 = 3* 8*16*10)"]

{"sheet":"数据类型","index":2,"n_rows":27,"n_cols":5,"rows_kept":27,"cut":false,"hidden":false,"merged":[[19,4,24,4],[26,0,31,3],[1,0,2,0],[16,0,18,0],[13,0,15,0],[11,0,12,0],[3,0,4,0],[5,0,6,0],[7,0,8,0],[9,0,10,0],[19,0,24,0]]}
["数据类型","成员","字节数","描述（->红色字体为修改后）"]
[" S_AMTC","sign_comma",1,"小数点后位数->小数点前位数"]
[null,"BCD8",4,"8位BCD码"]
[" S_VOLC","sign_comma",1,"小数点后位数->小数点前位数"]
[null,"BCD8",4,"8位BCD码"]
[" S_UPR","sign_comma",1,"小数点后位数->小数点前位数"]
[null,"BCD6",3,"6位BCD码"]
[" S_FLO","sign_comma",1,"小数点后位数->小数点前位数"]
[null,"BCD4",2,"4位BCD码"]
["L_AMT","sign_comma",1,"小数点后位数->小数点前位数"]
[null,"BCD12",6,"12位BCD码"]
["L_VOL","sign_comma",1,"小数点后位数->小数点前位数"]
[null,"BCD12",6,"12位BCD码"]
[" DATE","BCD4",2,"年"]
[null,"BCD2",1,"月"]
[null,"BCD2",1,"日"]
["TIME","BCD2",1,"时"]
[null,"BCD2",1,"分"]
[null,"BCD2",1,"秒"]
["DATETIME","BCD4",2,"年","新增该数据类型"]
[null,"BCD2",1,"月"]
[null,"BCD2",1,"日"]
[null,"BCD2",1,"时"]
[null,"BCD2",1,"分"]
[null,"BCD2",1,"秒"]
[]
["备注：\n1、多字节BIN采用小端存储格式；例如0x1234(hex)在内存的实际值0x34 0x12 (低地址到高地址)\n2、多字节BCD采用大端存储格式，例如1234（BCD码）在内存的实际值0x12 0x34 (低地址到高地址)"]

{"sheet":"standalone_trans.bin","index":3,"n_rows":88,"n_cols":9,"rows_kept":88,"cut":false,"hidden":false,"merged":[[59,0,87,0],[59,1,87,1],[59,2,87,2],[1,0,29,0],[1,1,29,1],[1,2,29,2],[30,0,58,0],[30,1,58,1],[30,2,58,2]]}
[null,"偏移地址","总字节长度","序号","字节长度","数据类型","命名","描述"]
["离线交易记录1",0,96,1,1," BIN","CFG_NB_HISTORIC_TRANSACTIONS",null,"00"]
[null,null,null,{"$f":"D2+1","v":2},1," BIN","CFG_MAX_NB_ZERO_TRANSACTION",null,"00"]
[null,null,null,{"$f":"D3+1","v":3},2," BCD","TR_GEN_SEQUENCE_NUMBER         ",null,"0000"]
[null,null,null,4,2," BCD","TR_FIP_SEQUENCE_NUMBER  ",null,"0002"]
[null,null,null,5,1," BIN","TR_FIP_NUMBER",null,"01"]
[null,null,null,6,1," BIN","TR_FUELLING_MODE       ",null,"01"]
[null,null,null,7,5," S_AMTC","TR_AMOUNT",null,"06 00 00 10 00  "]
[null,null,null,8,5," S_VOLC","TR_VOLUME",null,"06 00 00 01 81  "]
[null,null,null,9,4," S_UPR","TR_UNIT_PRICE ",null,"04 00 05 53  "]
[null,null,null,10,1," BIN","TR_LOGICAL_NOZZLE",null,"01"]
[null,null,null,11,1," BIN","TR_ERROR_CODE       ",null,"00"]
[null,null,null,12,3," BIN","TR_SECURITY_CHECKSUM   ",null,"000000"]
[null,null,null,13,1," BIN","TR_STATE",null,"01"]
[null,null,null,14,3," S_FLO","TR_MAX_FLOW     ",null,"030318"]
[null,null,null,15,1," ASC","TR_DELIVERY_MODE      ",null,"00"]
[null,null,null,16,3," S_FLO","TR_AVERAGE_FLOW",null,"030216"]
[null,null,null,17,5," S_AMTC","TR_LOCAL_PRESET_AMOUNT","交换顺序↓","0600001000"]
[null,null,null,18,5," S_VOLC","TR_LOCAL_PRESET_VOLUME","交换顺序↑","0000000000"]
[null,null,null,19,5," S_AMTC","TR_PRESET_REMOTE_AMOUNT",null,"0000000000"]
[null,null,null,20,5," S_VOLC","TR_PRESET_REMOTE_VOLUME",null,"0000000000"]
[null,null,null,21,5," S_VOLC","FINAL_PRESET_VOLUME","新增","0600000181"]
[null,null,null,22,5," S_AMTC","FINAL_PRESET_AMOUNT","新增","06000011000"]
[null,null,null,23,5," S_VOLC","PRESET_OVERSHOOT_VOLUME","新增","00000000000"]
[null,null,null,24,7," DATETIME","START_DATETIME","合并"]
[null,null,null,25,7," DATETIME","END_DATETIME ","修改"]
[null,null,null,26,1," BIN","TR_PRODUCT_ID                        ",null,"01"]
[null,null,null,27,5," S_VOLC","TR_LEAK_VOLUME                                                       ",null,"00000000000"]
[null,null,null,28,5," S_VOLC","TR_IDLE_VOLUME",null,"00000000000"]
[null,null,null,29,1,"BCD","TR_PRESET_ORIGIN",null,"30"]
["离线交易记录2",96,96,null,1," BIN","CFG_NB_HISTORIC_TRANSACTIONS"]
[{"$nulls":4},1," BIN","CFG_MAX_NB_ZERO_TRANSACTION"]
[{"$nulls":4},2," BCD","TR_GEN_SEQUENCE_NUMBER         "]
[{"$nulls":4},2," BCD","TR_FIP_SEQUENCE_NUMBER  "]
[{"$nulls":4},1," BIN","TR_FIP_NUMBER"]
[{"$nulls":4},1," BIN","TR_FUELLING_MODE       "]
[{"$nulls":4},5," S_AMTC","TR_AMOUNT"]
[{"$nulls":4},5," S_VOLC","TR_VOLUME"]
[{"$nulls":4},4," S_UPR","TR_UNIT_PRICE "]
[{"$nulls":4},1," BIN","TR_LOGICAL_NOZZLE"]
[{"$nulls":4},1," BIN","TR_ERROR_CODE       "]
[{"$nulls":4},3," BIN","TR_SECURITY_CHECKSUM   "]
[{"$nulls":4},1," BIN","TR_STATE"]
[{"$nulls":4},3," S_FLO","TR_MAX_FLOW     "]
[{"$nulls":4},1," ASC","TR_DELIVERY_MODE      "]
[{"$nulls":4},3," S_FLO","TR_AVERAGE_FLOW"]
[{"$nulls":4},5," S_AMTC","TR_LOCAL_PRESET_AMOUNT","交换顺序↓"]
[{"$nulls":4},5," S_VOLC","TR_LOCAL_PRESET_VOLUME","交换顺序↑"]
[{"$nulls":4},5," S_AMTC","TR_PRESET_REMOTE_AMOUNT"]
[{"$nulls":4},5," S_VOLC","TR_PRESET_REMOTE_VOLUME"]
[{"$nulls":4},5," S_VOLC","FINAL_PRESET_VOLUME","新增"]
[{"$nulls":4},5," S_AMTC","FINAL_PRESET_AMOUNT","新增"]
[{"$nulls":4},5," S_VOLC","PRESET_OVERSHOOT_VOLUME","新增"]
[{"$nulls":4},7," DATETIME","START_DATETIME","合并"]
[{"$nulls":4},7," DATETIME","END_DATETIME ","修改"]
[{"$nulls":4},1," BIN","TR_PRODUCT_ID                        "]
[{"$nulls":4},5," S_VOLC","TR_LEAK_VOLUME                                                       "]
[{"$nulls":4},5," S_VOLC","TR_IDLE_VOLUME"]
[{"$nulls":4},1,"BCD","TR_PRESET_ORIGIN"]
["离线交易记录…","…",96,null,1," BIN","CFG_NB_HISTORIC_TRANSACTIONS"]
[{"$nulls":4},1," BIN","CFG_MAX_NB_ZERO_TRANSACTION"]
[{"$nulls":4},2," BCD","TR_GEN_SEQUENCE_NUMBER         "]
[{"$nulls":4},2," BCD","TR_FIP_SEQUENCE_NUMBER  "]
[{"$nulls":4},1," BIN","TR_FIP_NUMBER"]
[{"$nulls":4},1," BIN","TR_FUELLING_MODE       "]
[{"$nulls":4},5," S_AMTC","TR_AMOUNT"]
[{"$nulls":4},5," S_VOLC","TR_VOLUME"]
[{"$nulls":4},4," S_UPR","TR_UNIT_PRICE "]
[{"$nulls":4},1," BIN","TR_LOGICAL_NOZZLE"]
[{"$nulls":4},1," BIN","TR_ERROR_CODE       "]
[{"$nulls":4},3," BIN","TR_SECURITY_CHECKSUM   "]
[{"$nulls":4},1," BIN","TR_STATE"]
[{"$nulls":4},3," S_FLO","TR_MAX_FLOW     "]
[{"$nulls":4},1," ASC","TR_DELIVERY_MODE      "]
[{"$nulls":4},3," S_FLO","TR_AVERAGE_FLOW"]
[{"$nulls":4},5," S_AMTC","TR_LOCAL_PRESET_AMOUNT","交换顺序↓"]
[{"$nulls":4},5," S_VOLC","TR_LOCAL_PRESET_VOLUME","交换顺序↑"]
[{"$nulls":4},5," S_AMTC","TR_PRESET_REMOTE_AMOUNT"]
[{"$nulls":4},5," S_VOLC","TR_PRESET_REMOTE_VOLUME"]
[{"$nulls":4},5," S_VOLC","FINAL_PRESET_VOLUME","新增"]
[{"$nulls":4},5," S_AMTC","FINAL_PRESET_AMOUNT","新增"]
[{"$nulls":4},5," S_VOLC","PRESET_OVERSHOOT_VOLUME","新增"]
[{"$nulls":4},7," DATETIME","START_DATETIME","合并"]
[{"$nulls":4},7," DATETIME","END_DATETIME ","修改"]
[{"$nulls":4},1," BIN","TR_PRODUCT_ID                        "]
[{"$nulls":4},5," S_VOLC","TR_LEAK_VOLUME                                                       "]
[{"$nulls":4},5," S_VOLC","TR_IDLE_VOLUME"]
[{"$nulls":4},1,"BCD","TR_PRESET_ORIGIN"]

{"sheet":"trans_record.bin","index":4,"n_rows":88,"n_cols":7,"rows_kept":88,"cut":false,"hidden":false,"merged":[[59,1,87,1],[59,2,87,2],[1,0,29,0],[1,1,29,1],[1,2,29,2],[30,0,58,0],[30,1,58,1],[30,2,58,2],[59,0,87,0]]}
[null,"偏移地址","总字节长度","字节长度","数据类型","命名","描述"]
["交易记录1",0,96,1," BIN","CFG_NB_HISTORIC_TRANSACTIONS"]
[null,null,null,1," BIN","CFG_MAX_NB_ZERO_TRANSACTION"]
[null,null,null,2," BCD","TR_GEN_SEQUENCE_NUMBER         "]
[null,null,null,2," BCD","TR_FIP_SEQUENCE_NUMBER  "]
[null,null,null,1," BIN","TR_FIP_NUMBER"]
[null,null,null,1," BIN","TR_FUELLING_MODE       "]
[null,null,null,5," S_AMTC","TR_AMOUNT"]
[null,null,null,5," S_VOLC","TR_VOLUME"]
[null,null,null,4," S_UPR","TR_UNIT_PRICE "]
[null,null,null,1," BIN","TR_LOGICAL_NOZZLE"]
[null,null,null,1," BIN","TR_ERROR_CODE       "]
[null,null,null,3," BIN","TR_SECURITY_CHECKSUM   "]
[null,null,null,1," BIN","TR_STATE"]
[null,null,null,3," S_FLO","TR_MAX_FLOW     "]
[null,null,null,1," ASC","TR_DELIVERY_MODE      "]
[null,null,null,3," S_FLO","TR_AVERAGE_FLOW"]
[null,null,null,5," S_AMTC","TR_LOCAL_PRESET_AMOUNT","交换顺序↓"]
[null,null,null,5," S_VOLC","TR_LOCAL_PRESET_VOLUME","交换顺序↑"]
[null,null,null,5," S_AMTC","TR_PRESET_REMOTE_AMOUNT"]
[null,null,null,5," S_VOLC","TR_PRESET_REMOTE_VOLUME"]
[null,null,null,5," S_VOLC","FINAL_PRESET_VOLUME","新增"]
[null,null,null,5," S_AMTC","FINAL_PRESET_AMOUNT","新增"]
[null,null,null,5," S_VOLC","PRESET_OVERSHOOT_VOLUME","新增"]
[null,null,null,7," DATETIME","START_DATETIME","合并"]
[null,null,null,7," DATETIME","END_DATETIME ","修改"]
[null,null,null,1," BIN","TR_PRODUCT_ID                        "]
[null,null,null,5," S_VOLC","TR_LEAK_VOLUME                                                       "]
[null,null,null,5," S_VOLC","TR_IDLE_VOLUME"]
[null,null,null,1,"BCD","TR_PRESET_ORIGIN"]
["交易记录2",96,96,1," BIN","CFG_NB_HISTORIC_TRANSACTIONS"]
[null,null,null,1," BIN","CFG_MAX_NB_ZERO_TRANSACTION"]
[null,null,null,2," BCD","TR_GEN_SEQUENCE_NUMBER         "]
[null,null,null,2," BCD","TR_FIP_SEQUENCE_NUMBER  "]
[null,null,null,1," BIN","TR_FIP_NUMBER"]
[null,null,null,1," BIN","TR_FUELLING_MODE       "]
[null,null,null,5," S_AMTC","TR_AMOUNT"]
[null,null,null,5," S_VOLC","TR_VOLUME"]
[null,null,null,4," S_UPR","TR_UNIT_PRICE "]
[null,null,null,1," BIN","TR_LOGICAL_NOZZLE"]
[null,null,null,1," BIN","TR_ERROR_CODE       "]
[null,null,null,3," BIN","TR_SECURITY_CHECKSUM   "]
[null,null,null,1," BIN","TR_STATE"]
[null,null,null,3," S_FLO","TR_MAX_FLOW     "]
[null,null,null,1," ASC","TR_DELIVERY_MODE      "]
[null,null,null,3," S_FLO","TR_AVERAGE_FLOW"]
[null,null,null,5," S_AMTC","TR_LOCAL_PRESET_AMOUNT","交换顺序↓"]
[null,null,null,5," S_VOLC","TR_LOCAL_PRESET_VOLUME","交换顺序↑"]
[null,null,null,5," S_AMTC","TR_PRESET_REMOTE_AMOUNT"]
[null,null,null,5," S_VOLC","TR_PRESET_REMOTE_VOLUME"]
[null,null,null,5," S_VOLC","FINAL_PRESET_VOLUME","新增"]
[null,null,null,5," S_AMTC","FINAL_PRESET_AMOUNT","新增"]
[null,null,null,5," S_VOLC","PRESET_OVERSHOOT_VOLUME","新增"]
[null,null,null,7," DATETIME","START_DATETIME","合并"]
[null,null,null,7," DATETIME","END_DATETIME ","修改"]
[null,null,null,1," BIN","TR_PRODUCT_ID                        "]
[null,null,null,5," S_VOLC","TR_LEAK_VOLUME                                                       "]
[null,null,null,5," S_VOLC","TR_IDLE_VOLUME"]
[null,null,null,1,"BCD","TR_PRESET_ORIGIN"]
["交易记录…","…",96,1," BIN","CFG_NB_HISTORIC_TRANSACTIONS"]
[null,null,null,1," BIN","CFG_MAX_NB_ZERO_TRANSACTION"]
[null,null,null,2," BCD","TR_GEN_SEQUENCE_NUMBER         "]
[null,null,null,2," BCD","TR_FIP_SEQUENCE_NUMBER  "]
[null,null,null,1," BIN","TR_FIP_NUMBER"]
[null,null,null,1," BIN","TR_FUELLING_MODE       "]
[null,null,null,5," S_AMTC","TR_AMOUNT"]
[null,null,null,5," S_VOLC","TR_VOLUME"]
[null,null,null,4," S_UPR","TR_UNIT_PRICE "]
[null,null,null,1," BIN","TR_LOGICAL_NOZZLE"]
[null,null,null,1," BIN","TR_ERROR_CODE       "]
[null,null,null,3," BIN","TR_SECURITY_CHECKSUM   "]
[null,null,null,1," BIN","TR_STATE"]
[null,null,null,3," S_FLO","TR_MAX_FLOW     "]
[null,null,null,1," ASC","TR_DELIVERY_MODE      "]
[null,null,null,3," S_FLO","TR_AVERAGE_FLOW"]
[null,null,null,5," S_AMTC","TR_LOCAL_PRESET_AMOUNT","交换顺序↓"]
[null,null,null,5," S_VOLC","TR_LOCAL_PRESET_VOLUME","交换顺序↑"]
[null,null,null,5," S_AMTC","TR_PRESET_REMOTE_AMOUNT"]
[null,null,null,5," S_VOLC","TR_PRESET_REMOTE_VOLUME"]
[null,null,null,5," S_VOLC","FINAL_PRESET_VOLUME","新增"]
[null,null,null,5," S_AMTC","FINAL_PRESET_AMOUNT","新增"]
[null,null,null,5," S_VOLC","PRESET_OVERSHOOT_VOLUME","新增"]
[null,null,null,7," DATETIME","START_DATETIME","合并"]
[null,null,null,7," DATETIME","END_DATETIME ","修改"]
[null,null,null,1," BIN","TR_PRODUCT_ID                        "]
[null,null,null,5," S_VOLC","TR_LEAK_VOLUME                                                       "]
[null,null,null,5," S_VOLC","TR_IDLE_VOLUME"]
[null,null,null,1,"BCD","TR_PRESET_ORIGIN"]

{"sheet":"err_record.bin","index":5,"n_rows":28,"n_cols":7,"rows_kept":28,"cut":false,"hidden":false,"merged":[[19,0,27,0],[19,1,27,1],[19,2,27,2],[1,0,9,0],[1,1,9,1],[1,2,9,2],[10,0,18,0],[10,1,18,1],[10,2,18,2]]}
[null,"偏移地址","总字节长度","字节长度","数据类型","命名","描述"]
["错误记录1",0,20,2," BCD","ERROR_GEN_SEQUENCE_NUMBER             "]
[null,null,null,2," BCD","ERROR_FIP_SEQUENCE_NUMBER                  "]
[null,null,null,1," BIN","ERROR_FIP_NUMBER                 "]
[null,null,null,1," BCD","ERROR_CLASS_ID              "]
[null,null,null,2," BCD","MODULE_ID                        ","修改"]
[null,null,null,2," BCD","EVENT_ERR_ID","新增"]
[null,null,null,2," BCD","DETAIL_ID             ","修改"]
[null,null,null,7," DATETIME","DATE_TIME              ","合并"]
[null,null,null,1," BIN","ERROR_PRODUCT_ID                  "]
["错误记录2",20,20,2," BCD","ERROR_GEN_SEQUENCE_NUMBER             "]
[null,null,null,2," BCD","ERROR_FIP_SEQUENCE_NUMBER                  "]
[null,null,null,1," BIN","ERROR_FIP_NUMBER                 "]
[null,null,null,1," BCD","ERROR_CLASS_ID              "]
[null,null,null,2," BCD","MODULE_ID                        ","修改"]
[null,null,null,2," BCD","EVENT_ERR_ID","新增"]
[null,null,null,2," BCD","DETAIL_ID             ","修改"]
[null,null,null,7," DATETIME","DATE_TIME              ","合并"]
[null,null,null,1," BIN","ERROR_PRODUCT_ID                  "]
["错误记录…","…",20,2," BCD","ERROR_GEN_SEQUENCE_NUMBER             "]
[null,null,null,2," BCD","ERROR_FIP_SEQUENCE_NUMBER                  "]
[null,null,null,1," BIN","ERROR_FIP_NUMBER                 "]
[null,null,null,1," BCD","ERROR_CLASS_ID              "]
[null,null,null,2," BCD","MODULE_ID                        ","修改"]
[null,null,null,2," BCD","EVENT_ERR_ID","新增"]
[null,null,null,2," BCD","DETAIL_ID             ","修改"]
[null,null,null,7," DATETIME","DATE_TIME              ","合并"]
[null,null,null,1," BIN","ERROR_PRODUCT_ID                  "]

{"sheet":"config.bin","index":6,"n_rows":43,"n_cols":14348,"rows_kept":43,"cut":false,"hidden":false,"merged":[[1,0,10,0],[1,1,10,1],[1,2,10,2],[11,0,13,0],[11,1,13,1],[11,2,13,2],[14,0,23,0],[14,1,23,1],[14,2,23,2],[24,0,28,0],[24,1,28,1],[24,2,28,2],[29,0,34,0],[29,1,34,1],[29,2,34,2],[35,0,37,0],[35,1,37,1],[35,2,37,2],[38,0,39,0],[38,1,39,1],[38,2,39,2],[40,0,42,0],[40,1,42,1],[40,2,42,2]]}
[null,"偏移地址","总字节长度","字节长度","数据类型","命名","描述"]
["液压配置数据","addr_hyd_start = 0","len_hyd = 10",1,"BIN","CFG_NB_PRODUCTS                "]
[null,null,null,1,"BIN","CFG_NB_METERS"]
[null,null,null,1,"BIN","CFG_NB_FIPS"]
[null,null,null,1,"BIN","CFG_NB_LOGICAL_NOZZLES"]
[null,null,null,1,"BIN","CFG_HYDRAULIC_SETUP_ID             ","修改（2->1）"]
[null,null,null,1,"BIN","CFG_PULSER_HIDE"]
[null,null,null,1,"BIN","CFG_HOSE_EXPANSION_VOLUME"]
[null,null,null,1,"BIN","CFG_HOSE_EXPANSION_TIME"]
[null,null,null,1,"BIN","NOZZLE_A_PROD","新增"]
[null,null,null,1,"BIN","NOZZLE_B_PROD","新增"]
["阀配置数据","addr_val_start = \naddr_hyd_start +len_hyd ","len_val=3",1,"BIN","CFG_PRESET_VALVE_RESPONSE_NS"]
[null,null,null,1,"BIN","CFG_PRESET_VALVE_TYPE"]
[null,null,null,1,"BIN","CFG_PRESET_VALVE_RESPONSE_LOW"]
["定时器配置数据","addr_timer_start =\naddr_val_start + len_val ","len_timer=10",1,"BIN","CFG_TIME_MAX_AUTHORIZED"]
[null,null,null,1,"BIN","CFG_TIME_MAX_NO_PROGRESS"]
[null,null,null,1,"BIN","CFG_TIME_INTER_DELIVERY"]
[null,null,null,1,"BIN","CFG_TIME_MAX_SUSPENDED"]
[null,null,null,1,"BIN","CFG_TIME_MAX_LOW_NO_FILLING"]
[null,null,null,1,"BIN","CFG_TIME_WAIT_SLOW_FLOW"]
[null,null,null,1,"BIN","CFG_TIME_SUBMERGED_VALVE_DELAY"]
[null,null,null,1,"BIN","CFG_TIME_DISPLAY_ERROR"]
[null,null,null,1,"BIN","CFG_TIME_IDLE_DISPLAY"]
[null,null,null,1,"BIN","AUX_IDLE_DISPLAY_TIMEOUT",{"$nulls":1158},"    //AUX_IDLE_DISPLAY_MODE",11,1,"BIN","    //AUX_IDLE_DISPLAY_MODE",11,1,"BIN","    //AUX_IDLE_DISPLAY_MODE",11,1,"BIN","    //AUX_IDLE_DISPLAY_MODE",11,1,"BIN","    //AUX_IDLE_DISPLAY_MODE",11,1,"BIN","    //AUX_IDLE_DISPLAY_MODE",11,1,"BIN","    //AUX_IDLE_DISPLAY_MODE",11,1,"BIN","    //AUX_IDLE_DISPLAY_MODE",11,1,"BIN","    //AUX_IDLE_DISPLAY_MODE",11,1,"BIN","    //AUX_IDLE_DISPLAY_MODE",11,1,"BIN","    //AUX_IDLE_DISPLAY_MODE",11,1,"BIN","    //AUX_IDLE_DISPLAY_MODE",11,1,"BIN","    //AUX_IDLE_DISPLAY_MODE",11,1,"BIN","    //AUX_IDLE_DISPLAY_MODE",11,1,"BIN","    //AUX_IDLE_DISPLAY_MODE",11,1,"BIN","    //AUX_IDLE_DISPLAY_MODE",11,1,"BIN","    //AUX_IDLE_DISPLAY_MODE",11,1,"BIN","    //AUX_IDLE_DISPLAY_MODE",11,1,"BIN","    //AUX_IDLE_DISPLAY_MODE",11,1,"BIN","    //AUX_IDLE_DISPLAY_MODE",11,1,"BIN","    //AUX_IDLE_DISPLAY_MODE",11,1,"BIN","    //AUX_IDLE_DISPLAY_MODE",11,1,"BIN","    //AUX_IDLE_DISPLAY_MODE",11,1,"BIN","    //AUX_IDLE_DISPLAY_MODE",11,1,"BIN","    //AUX_IDLE_DISPLAY_MODE",11,1,"BIN","    //AUX_IDLE_DISPLAY_MODE",11,1,"BIN","    //AUX_IDLE_DISPLAY_MODE",11,1,"BIN","    //AUX_IDLE_DISPLAY_MODE",11,1,"BIN","    //AUX_IDLE_DISPLAY_MODE",11,1,"BIN","    //AUX_IDLE_DISPLAY_MODE",11,1,"BIN","    //AUX_IDLE_DISPLAY_MODE",11,1,"BIN","    //AUX_IDLE_DISPLAY_MODE",11,1,"BIN","    //AUX_IDLE_DISPLAY_MODE",11,1,"BIN","    //AUX_IDLE_DISPLAY_MODE",11,1,"BIN","    //AUX_IDLE_DISPLAY_MODE",11,1,"BIN","    //AUX_IDLE_DISPLAY_MODE",11,1,"BIN","    //AUX_IDLE_DISPLAY_MODE",11,1,"BIN","    //AUX_IDLE_DISPLAY_MODE",11,1,"BIN","    //AUX_IDLE_DISPLAY_MODE",11,1,"BIN","    //AUX_IDLE_DISPLAY_MODE",11,1,"BIN","    //AUX_IDLE_DISPLAY_MODE",11,1,"BIN","    //AUX_IDLE_DISPLAY_MODE",11,1,"BIN","    //AUX_IDLE_DISPLAY_MODE",11,1,"BIN","    //AUX_IDLE_DISPLAY_MODE",11,1,"BIN","    //AUX_IDLE_DISPLAY_MODE",11,1,"BIN","    //AUX_IDLE_DISPLAY_MODE",11,1,"BIN","    //AUX_IDLE_DISPLAY_MODE",11,1,"BIN","    //AUX_IDLE_DISPLAY_MODE",11,1,"BIN","    //AUX_IDLE_DISPLAY_MODE",11,1,"BIN","    //AUX_IDLE_DISPLAY_MODE",11,1,"BIN","    //AUX_IDLE_DISPLAY_MODE",11,1,"BIN","    //AUX_IDLE_DISPLAY_MODE",11,1,"BIN","    //AUX_IDLE_DISPLAY_MODE",11,1,"BIN","    //AUX_IDLE_DISPLAY_MODE",11,1,"BIN","    //AUX_IDLE_DISPLAY_MODE",11,1,"BIN","    //AUX_IDLE_DISPLAY_MODE",11,1,"BIN","    //AUX_IDLE_DISPLAY_MODE",11,1,"BIN","    //AUX_IDLE_DISPLAY_MODE",11,1,"BIN","    //AUX_IDLE_DISPLAY_MODE",11,1,"BIN","    //AUX_IDLE_DISPLAY_MODE",11,1,"BIN","    //AUX_IDLE_DISPLAY_MODE",11,1,"BIN","    //AUX_IDLE_DISPLAY_MODE",11,1,"BIN","    //AUX_IDLE_DISPLAY_MODE",11,1,"BIN","    //AUX_IDLE_DISPLAY_MODE",11,1,"BIN","    //AUX_IDLE_DISPLAY_MODE",11,1,"BIN","    //AUX_IDLE_DISPLAY_MODE",11,1,"BIN","    //AUX_IDLE_DISPLAY_MODE",11,1,"BIN","    //AUX_IDLE_DISPLAY_MODE",11,1,"BIN","    //AUX_IDLE_DISPLAY_MODE",11,1,"BIN","    //AUX_IDLE_DISPLAY_MODE",11,1,"BIN","    //AUX_IDLE_DISPLAY_MODE",11,1,"BIN","    //AUX_IDLE_DISPLAY_MODE",11,1,"BIN","    //AUX_IDLE_DISPLAY_MODE",11,1,"BIN","    //AUX_IDLE_DISPLAY_MODE",11,1,"BIN","    //AUX_IDLE_DISPLAY_MODE",11,1,"BIN","    //AUX_IDLE_DISPLAY_MODE",11,1,"BIN","    //AUX_IDLE_DISPLAY_MODE",11,1,"BIN","    //AUX_IDLE_DISPLAY_MODE",11,1,"BIN","    //AUX_IDLE_DISPLAY_MODE",11,1,"BIN","    //AUX_IDLE_DISPLAY_MODE",11,1,"BIN","    //AUX_IDLE_DISPLAY_MODE",11,1,"BIN","    //AUX_IDLE_DISPLAY_MODE",11,1,"BIN","    //AUX_IDLE_DISPLAY_MODE",11,1,"BIN","    //AUX_IDLE_DISPLAY_MODE",11,1,"BIN","    //AUX_IDLE_DISPLAY_MODE",11,1,"BIN","    //AUX_IDLE_DISPLAY_MODE",11,1,"BIN","    //AUX_IDLE_DISPLAY_MODE",11,1,"BIN","    //AUX_IDLE_DISPLAY_MODE",11,1,"BIN","    //AUX_IDLE_DISPLAY_MODE",11,1,"BIN","    //AUX_IDLE_DISPLAY_MODE",11,1,"BIN","    //AUX_IDLE_DISPLAY_MODE",11,1,"BIN","    //AUX_IDLE_DISPLAY_MODE",11,1,"BIN","    //AUX_IDLE_DISPLAY_MODE",11,1,"BIN","    //AUX_IDLE_DISPLAY_MODE",11,1,"BIN","    //AUX_IDLE_DISPLAY_MODE",11,1,"BIN","    //AUX_IDLE_DISPLAY_MODE",11,1,"BIN","    //AUX_IDLE_DISPLAY_MODE",11,1,"BIN","    //AUX_IDLE_DISPLAY_MODE",11,1,"BIN","    //AUX_IDLE_DISPLAY_MODE",11,1,"BIN","    //AUX_IDLE_DISPLAY_MODE",11,1,"BIN","    //AUX_IDLE_DISPLAY_MODE",11,1,"BIN","    //AUX_IDLE_DISPLAY_MODE",11,1,"BIN","    //AUX_IDLE_DISPLAY_MODE",11,1,"BIN","    //AUX_IDLE_DISPLAY_MODE",11,1,"BIN","    //AUX_IDLE_DISPLAY_MODE",11,1,"BIN","    //AUX_IDLE_DISPLAY_MODE",11,1,"BIN","    //AUX_IDLE_DISPLAY_MODE",11,1,"BIN","    //AUX_IDLE_DISPLAY_MODE",11,1,"BIN","    //AUX_IDLE_DISPLAY_MODE",11,1,"BIN","    //AUX_IDLE_DISPLAY_MODE",11,1,"BIN","    //AUX_IDLE_DISPLAY_MODE",11,1,"BIN","    //AUX_IDLE_DISPLAY_MODE",11,1,"BIN","    //AUX_IDLE_DISPLAY_MODE",11,1,"BIN","    //AUX_IDLE_DISPLAY_MODE",11,1,"BIN","    //AUX_IDLE_DISPLAY_MODE",11,1,"BIN","    //AUX_IDLE_DISPLAY_MODE",11,1,"BIN","    //AUX_IDLE_DISPLAY_MODE",11,1,"BIN","    //AUX_IDLE_DISPLAY_MODE",11,1,"BIN","    //AUX_IDLE_DISPLAY_MODE",11,1,"BIN","    //AUX_IDLE_DISPLAY_MODE",11,1,"BIN","    //AUX_IDLE_DISPLAY_MODE",11,1,"BIN","    //AUX_IDLE_DISPLAY_MODE",11,1,"BIN","    //AUX_IDLE_DISPLAY_MODE",11,1,"BIN","    //AUX_IDLE_DISPLAY_MODE",11,1,"BIN","    //AUX_IDLE_DISPLAY_MODE",11,1,"BIN","    //AUX_IDLE_DISPLAY_MODE",11,1,"BIN","    //AUX_IDLE_DISPLAY_MODE",11,1,"BIN","    //AUX_IDLE_DISPLAY_MODE",11,1,"BIN","    //AUX_IDLE_DISPLAY_MODE",11,1,"BIN","    //AUX_IDLE_DISPLAY_MODE",11,1,"BIN","    //AUX_IDLE_DISPLAY_MODE",11,1,"BIN","    //AUX_IDLE_DISPLAY_MODE",11,1,"BIN","    //AUX_IDLE_DISPLAY_MODE",11,1,"BIN","    //AUX_IDLE_DISPLAY_MODE",11,1,"BIN","    //AUX_IDLE_DISPLAY_MODE",11,1,"BIN","    //AUX_IDLE_DISPLAY_MODE",11,1,"BIN","    //AUX_IDLE_DISPLAY_MODE",11,1,"BIN","    //AUX_IDLE_DISPLAY_MODE",11,1,"BIN","    //AUX_IDLE_DISPLAY_MODE",11,1,"BIN","    //AUX_IDLE_DISPLAY_MODE",11,1,"BIN","    //AUX_IDLE_DISPLAY_MODE",11,1,"BIN","    //AUX_IDLE_DISPLAY_MODE",11,1,"BIN","    //AUX_IDLE_DISPLAY_MODE",11,1,"BIN","    //AUX_IDLE_DISPLAY_MODE",11,1,"BIN","    //AUX_IDLE_DISPLAY_MODE",11,1,"BIN","    //AUX_IDLE_DISPLAY_MODE",11,1,"BIN","    //AUX_IDLE_DISPLAY_MODE",11,1,"BIN","    //AUX_IDLE_DISPLAY_MODE",11,1,"BIN","    //AUX_IDLE_DISPLAY_MODE",11,1,"BIN","    //AUX_IDLE_DISPLAY_MODE",11,1,"BIN","    //AUX_IDLE_DISPLAY_MODE",11,1,"BIN","    //AUX_IDLE_DISPLAY_MODE",11,1,"BIN","    //AUX_IDLE_DISPLAY_MODE",11,1,"BIN","    //AUX_IDLE_DISPLAY_MODE",11,1,"BIN","    //AUX_IDLE_DISPLAY_MODE",11,1,"BIN","    //AUX_IDLE_DISPLAY_MODE",11,1,"BIN","    //AUX_IDLE_DISPLAY_MODE",11,1,"BIN","    //AUX_IDLE_DISPLAY_MODE",11,1,"BIN","    //AUX_IDLE_DISPLAY_MODE",11,1,"BIN","    //AUX_IDLE_DISPLAY_MODE",11,1,"BIN","    //AUX_IDLE_DISPLAY_MODE",11,1,"BIN","    //AUX_IDLE_DISPLAY_MODE",11,1,"BIN","    //AUX_IDLE_DISPLAY_MODE",11,1,"BIN","    //AUX_IDLE_DISPLAY_MODE",11,1,"BIN","    //AUX_IDLE_DISPLAY_MODE",11,1,"BIN","    //AUX_IDLE_DISPLAY_MODE",11,1,"BIN","    //AUX_IDLE_DISPLAY_MODE",11,1,"BIN","    //AUX_IDLE_DISPLAY_MODE",11,1,"BIN","    //AUX_IDLE_DISPLAY_MODE",11,1,"BIN","    //AUX_IDLE_DISPLAY_MODE",11,1,"BIN","    //AUX_IDLE_DISPLAY_MODE",11,1,"BIN","    //AUX_IDLE_DISPLAY_MODE",11,1,"BIN","    //AUX_IDLE_DISPLAY_MODE",11,1,"BIN","    //AUX_IDLE_DISPLAY_MODE",11,1,"BIN","    //AUX_IDLE_DISPLAY_MODE",11,1,"BIN","    //AUX_IDLE_DISPLAY_MODE",11,1,"BIN","    //AUX_IDLE_DISPLAY_MODE",11,1,"BIN","    //AUX_IDLE_DISPLAY_MODE",11,1,"BIN","    //AUX_IDLE_DISPLAY_MODE",11,1,"BIN","    //AUX_IDLE_DISPLAY_MODE",11,1,"BIN","    //AUX_IDLE_DISPLAY_MODE",11,1,"BIN","    //AUX_IDLE_DISPLAY_MODE",11,1,"BIN","    //AUX_IDLE_DISPLAY_MODE",11,1,"BIN","    //AUX_IDLE_DISPLAY_MODE",11,1,"BIN","    //AUX_IDLE_DISPLAY_MODE",11,1,"BIN","    //AUX_IDLE_DISPLAY_MODE",11,1,"BIN","    //AUX_IDLE_DISPLAY_MODE",11,1,"BIN","    //AUX_IDLE_DISPLAY_MODE",11,1,"BIN","    //AUX_IDLE_DISPLAY_MODE",11,1,"BIN","    //AUX_IDLE_DISPLAY_MODE",11,1,"BIN","    //AUX_IDLE_DISPLAY_MODE",11,1,"BIN","    //AUX_IDLE_DISPLAY_MODE",11,1,"BIN","    //AUX_IDLE_DISPLAY_MODE",11,1,"BIN","    //AUX_IDLE_DISPLAY_MODE",11,1,"BIN","    //AUX_IDLE_DISPLAY_MODE",11,1,"BIN","    //AUX_IDLE_DISPLAY_MODE",11,1,"BIN","    //AUX_IDLE_DISPLAY_MODE",11,1,"BIN","    //AUX_IDLE_DISPLAY_MODE",11,1,"BIN","    //AUX_IDLE_DISPLAY_MODE",11,1,"BIN","    //AUX_IDLE_DISPLAY_MODE",11,1,"BIN","    //AUX_IDLE_DISPLAY_MODE",11,1,"BIN","    //AUX_IDLE_DISPLAY_MODE",11,1,"BIN","    //AUX_IDLE_DISPLAY_MODE",11,1,"BIN","    //AUX_IDLE_DISPLAY_MODE",11,1,"BIN","    //AUX_IDLE_DISPLAY_MODE",11,1,"BIN","    //AUX_IDLE_DISPLAY_MODE",11,1,"BIN","    //AUX_IDLE_DISPLAY_MODE",11,1,"BIN","    //AUX_IDLE_DISPLAY_MODE",11,1,"BIN","    //AUX_IDLE_DISPLAY_MODE",11,1,"BIN","    //AUX_IDLE_DISPLAY_MODE",11,1,"BIN","    //AUX_IDLE_DISPLAY_MODE",11,1,"BIN","    //AUX_IDLE_DISPLAY_MODE",11,1,"BIN","    //AUX_IDLE_DISPLAY_MODE",11,1,"BIN","    //AUX_IDLE_DISPLAY_MODE",11,1,"BIN","    //AUX_IDLE_DISPLAY_MODE",11,1,"BIN","    //AUX_IDLE_DISPLAY_MODE",11,1,"BIN","    //AUX_IDLE_DISPLAY_MODE",11,1,"BIN","    //AUX_IDLE_DISPLAY_MODE",11,1,"BIN","    //AUX_IDLE_DISPLAY_MODE",11,1,"BIN","    //AUX_IDLE_DISPLAY_MODE",11,1,"BIN","    //AUX_IDLE_DISPLAY_MODE",11,1,"BIN","    //AUX_IDLE_DISPLAY_MODE",11,1,"BIN","    //AUX_IDLE_DISPLAY_MODE",11,1,"BIN","    //AUX_IDLE_DISPLAY_MODE",11,1,"BIN","    //AUX_IDLE_DISPLAY_MODE",11,1,"BIN","    //AUX_IDLE_DISPLAY_MODE",11,1,"BIN","    //AUX_IDLE_DISPLAY_MODE",11,1,"BIN","    //AUX_IDLE_DISPLAY_MODE",11,1,"BIN","    //AUX_IDLE_DISPLAY_MODE",11,1,"BIN","    //AUX_IDLE_DISPLAY_MODE",11,1,"BIN","    //AUX_IDLE_DISPLAY_MODE",11,1,"BIN","    //AUX_IDLE_DISPLAY_MODE",11,1,"BIN","    //AUX_IDLE_DISPLAY_MODE",11,1,"BIN","    //AUX_IDLE_DISPLAY_MODE",11,1,"BIN","    //AUX_IDLE_DISPLAY_MODE",11,1,"BIN","    //AUX_IDLE_DISPLAY_MODE",11,1,"BIN","    //AUX_IDLE_DISPLAY_MODE",11,1,"BIN","    //AUX_IDLE_DISPLAY_MODE",11,1,"BIN","    //AUX_IDLE_DISPLAY_MODE",11,1,"BIN","    //AUX_IDLE_DISPLAY_MODE",11,1,"BIN","    //AUX_IDLE_DISPLAY_MODE",11,1,"BIN","    //AUX_IDLE_DISPLAY_MODE",11,1,"BIN","    //AUX_IDLE_DISPLAY_MODE",11,1,"BIN","    //AUX_IDLE_DISPLAY_MODE",11,1,"BIN","    //AUX_IDLE_DISPLAY_MODE",11,1,"BIN","    //AUX_IDLE_DISPLAY_MODE",11,1,"BIN","    //AUX_IDLE_DISPLAY_MODE",11,1,"BIN","    //AUX_IDLE_DISPLAY_MODE",11,1,"BIN","    //AUX_IDLE_DISPLAY_MODE",11,1,"BIN","    //AUX_IDLE_DISPLAY_MODE",11,1,"BIN","    //AUX_IDLE_DISPLAY_MODE",11,1,"BIN","    //AUX_IDLE_DISPLAY_MODE",11,1,"BIN","    //AUX_IDLE_DISPLAY_MODE",11,1,"BIN","    //AUX_IDLE_DISPLAY_MODE",11,1,"BIN","    //AUX_IDLE_DISPLAY_MODE",11,1,"BIN","    //AUX_IDLE_DISPLAY_MODE",11,1,"BIN","    //AUX_IDLE_DISPLAY_MODE",11,1,"BIN","    //AUX_IDLE_DISPLAY_MODE",11,1,"BIN","    //AUX_IDLE_DISPLAY_MODE",11,1,"BIN","    //AUX_IDLE_DISPLAY_MODE",11,1,"BIN","    //AUX_IDLE_DISPLAY_MODE",11,1,"BIN","    //AUX_IDLE_DISPLAY_MODE",11,1,"BIN","    //AUX_IDLE_DISPLAY_MODE",11,1,"BIN","    //AUX_IDLE_DISPLAY_MODE",11,1,"BIN","    //AUX_IDLE_DISPLAY_MODE",11,1,"BIN","    //AUX_IDLE_DISPLAY_MODE",11,1,"BIN","    //AUX_IDLE_DISPLAY_MODE",11,1,"BIN","    //AUX_IDLE_DISPLAY_MODE",11,1,"BIN","    //AUX_IDLE_DISPLAY_MODE",11,1,"BIN","    //AUX_IDLE_DISPLAY_MODE",11,1,"BIN","    //AUX_IDLE_DISPLAY_MODE",11,1,"BIN","    //AUX_IDLE_DISPLAY_MODE",11,1,"BIN","    //AUX_IDLE_DISPLAY_MODE",11,1,"BIN","    //AUX_IDLE_DISPLAY_MODE",11,1,"BIN","    //AUX_IDLE_DISPLAY_MODE",11,1,"BIN","    //AUX_IDLE_DISPLAY_MODE",11,1,"BIN","    //AUX_IDLE_DISPLAY_MODE",11,1,"BIN","    //AUX_IDLE_DISPLAY_MODE",11,1,"BIN","    //AUX_IDLE_DISPLAY_MODE",11,1,"BIN","    //AUX_IDLE_DISPLAY_MODE",11,1,"BIN","    //AUX_IDLE_DISPLAY_MODE",11,1,"BIN","    //AUX_IDLE_DISPLAY_MODE",11,1,"BIN","    //AUX_IDLE_DISPLAY_MODE",11,1,"BIN","    //AUX_IDLE_DISPLAY_MODE",11,1,"BIN","    //AUX_IDLE_DISPLAY_MODE",11,1,"BIN","    //AUX_IDLE_DISPLAY_MODE",11,1,"BIN","    //AUX_IDLE_DISPLAY_MODE",11,1,"BIN","    //AUX_IDLE_DISPLAY_MODE",11,1,"BIN","    //AUX_IDLE_DISPLAY_MODE",11,1,"BIN","    //AUX_IDLE_DISPLAY_MODE",11,1,"BIN","    //AUX_IDLE_DISPLAY_MODE",11,1,"BIN","    //AUX_IDLE_DISPLAY_MODE",11,1,"BIN","    //AUX_IDLE_DISPLAY_MODE",11,1,"BIN","    //AUX_IDLE_DISPLAY_MODE",11,1,"BIN","    //AUX_IDLE_DISPLAY_MODE",11,1,"BIN","    //AUX_IDLE_DISPLAY_MODE",11,1,"BIN","    //AUX_IDLE_DISPLAY_MODE",11,1,"BIN","    //AUX_IDLE_DISPLAY_MODE",11,1,"BIN","    //AUX_IDLE_DISPLAY_MODE",11,1,"BIN","    //AUX_IDLE_DISPLAY_MODE",11,1,"BIN","    //AUX_IDLE_DISPLAY_MODE",11,1,"BIN","    //AUX_IDLE_DISPLAY_MODE",11,1,"BIN","    //AUX_IDLE_DISPLAY_MODE",11,1,"BIN","    //AUX_IDLE_DISPLAY_MODE",11,1,"BIN","    //AUX_IDLE_DISPLAY_MODE",11,1,"BIN","    //AUX_IDLE_DISPLAY_MODE",11,1,"BIN","    //AUX_IDLE_DISPLAY_MODE",11,1,"BIN","    //AUX_IDLE_DISPLAY_MODE",11,1,"BIN","    //AUX_IDLE_DISPLAY_MODE",11,1,"BIN","    //AUX_IDLE_DISPLAY_MODE",11,1,"BIN","    //AUX_IDLE_DISPLAY_MODE",11,1,"BIN","    //AUX_IDLE_DISPLAY_MODE",11,1,"BIN","    //AUX_IDLE_DISPLAY_MODE",11,1,"BIN","    //AUX_IDLE_DISPLAY_MODE",11,1,"BIN","    //AUX_IDLE_DISPLAY_MODE",11,1,"BIN","    //AUX_IDLE_DISPLAY_MODE",11,1,"BIN","    //AUX_IDLE_DISPLAY_MODE",11,1,"BIN","    //AUX_IDLE_DISPLAY_MODE",11,1,"BIN","    //AUX_IDLE_DISPLAY_MODE",11,1,"BIN","    //AUX_IDLE_DISPLAY_MODE",11,1,"BIN","    //AUX_IDLE_DISPLAY_MODE",11,1,"BIN","    //AUX_IDLE_DISPLAY_MODE",11,1,"BIN","    //AUX_IDLE_DISPLAY_MODE",11,1,"BIN","    //AUX_IDLE_DISPLAY_MODE",11,1,"BIN","    //AUX_IDLE_DISPLAY_MODE",11,1,"BIN","    //AUX_IDLE_DISPLAY_MODE",11,1,"BIN","    //AUX_IDLE_DISPLAY_MODE",11,1,"BIN","    //AUX_IDLE_DISPLAY_MODE",11,1,"BIN","    //AUX_IDLE_DISPLAY_MODE",11,1,"BIN","    //AUX_IDLE_DISPLAY_MODE",11,1,"BIN","    //AUX_IDLE_DISPLAY_MODE",11,1,"BIN","    //AUX_IDLE_DISPLAY_MODE",11,1,"BIN","    //AUX_IDLE_DISPLAY_MODE",11,1,"BIN","    //AUX_IDLE_DISPLAY_MODE",11,1,"BIN","    //AUX_IDLE_DISPLAY_MODE",11,1,"BIN","    //AUX_IDLE_DISPLAY_MODE",11,1,"BIN","    //AUX_IDLE_DISPLAY_MODE",11,1,"BIN","    //AUX_IDLE_DISPLAY_MODE",11,1,"BIN","    //AUX_IDLE_DISPLAY_MODE",11,1,"BIN","    //AUX_IDLE_DISPLAY_MODE",11,1,"BIN","    //AUX_IDLE_DISPLAY_MODE",11,1,"BIN","    //AUX_IDLE_DISPLAY_MODE",11,1,"BIN","    //AUX_IDLE_DISPLAY_MODE",11,1,"BIN","    //AUX_IDLE_DISPLAY_MODE",11,1,"BIN","    //AUX_IDLE_DISPLAY_MODE",11,1,"BIN","    //AUX_IDLE_DISPLAY_MODE",11,1,"BIN","    //AUX_IDLE_DISPLAY_MODE",11,1,"BIN","    //AUX_IDLE_DISPLAY_MODE",11,1,"BIN","    //AUX_IDLE_DISPLAY_MODE",11,1,"BIN","    //AUX_IDLE_DISPLAY_MODE",11,1,"BIN","    //AUX_IDLE_DISPLAY_MODE",11,1,"BIN","    //AUX_IDLE_DISPLAY_MODE",11,1,"BIN","    //AUX_IDLE_DISPLAY_MODE",11,1,"BIN","    //AUX_IDLE_DISPLAY_MODE",11,1,"BIN","    //AUX_IDLE_DISPLAY_MODE",11,1,"BIN","    //AUX_IDLE_DISPLAY_MODE",11,1,"BIN","    //AUX_IDLE_DISPLAY_MODE",11,1,"BIN","    //AUX_IDLE_DISPLAY_MODE",11,1,"BIN","    //AUX_IDLE_DISPLAY_MODE",11,1,"BIN","    //AUX_IDLE_DISPLAY_MODE",11,1,"BIN","    //AUX_IDLE_DISPLAY_MODE",11,1,"BIN","    //AUX_IDLE_DISPLAY_MODE",11,1,"BIN","    //AUX_IDLE_DISPLAY_MODE",11,1,"BIN","    //AUX_IDLE_DISPLAY_MODE",11,1,"BIN","    //AUX_IDLE_DISPLAY_MODE",11,1,"BIN","    //AUX_IDLE_DISPLAY_MODE",11,1,"BIN","    //AUX_IDLE_DISPLAY_MODE",11,1,"BIN","    //AUX_IDLE_DISPLAY_MODE",11,1,"BIN","    //AUX_IDLE_DISPLAY_MODE",11,1,"BIN","    //AUX_IDLE_DISPLAY_MODE",11,1,"BIN","    //AUX_IDLE_DISPLAY_MODE",11,1,"BIN","    //AUX_IDLE_DISPLAY_MODE",11,1,"BIN","    //AUX_IDLE_DISPLAY_MODE",11,1,"BIN","    //AUX_IDLE_DISPLAY_MODE",11,1,"BIN","    //AUX_IDLE_DISPLAY_MODE",11,1,"BIN","    //AUX_IDLE_DISPLAY_MODE",11,1,"BIN","    //AUX_IDLE_DISPLAY_MODE",11,1,"BIN","    //AUX_IDLE_DISPLAY_MODE",11,1,"BIN","    //AUX_IDLE_DISPLAY_MODE",11,1,"BIN","    //AUX_IDLE_DISPLAY_MODE",11,1,"BIN","    //AUX_IDLE_DISPLAY_MODE",11,1,"BIN","    //AUX_IDLE_DISPLAY_MODE",11,1,"BIN","    //AUX_IDLE_DISPLAY_MODE",11,1,"BIN","    //AUX_IDLE_DISPLAY_MODE",11,1,"BIN","    //AUX_IDLE_DISPLAY_MODE",11,1,"BIN","    //AUX_IDLE_DISPLAY_MODE",11,1,"BIN","    //AUX_IDLE_DISPLAY_MODE",11,1,"BIN","    //AUX_IDLE_DISPLAY_MODE",11,1,"BIN","    //AUX_IDLE_DISPLAY_MODE",11,1,"BIN","    //AUX_IDLE_DISPLAY_MODE",11,1,"BIN","    //AUX_IDLE_DISPLAY_MODE",11,1,"BIN","    //AUX_IDLE_DISPLAY_MODE",11,1,"BIN","    //AUX_IDLE_DISPLAY_MODE",11,1,"BIN","    //AUX_IDLE_DISPLAY_MODE",11,1,"BIN","    //AUX_IDLE_DISPLAY_MODE",11,1,"BIN","    //AUX_IDLE_DISPLAY_MODE",11,1,"BIN","    //AUX_IDLE_DISPLAY_MODE",11,1,"BIN","    //AUX_IDLE_DISPLAY_MODE",11,1,"BIN","    //AUX_IDLE_DISPLAY_MODE",11,1,"BIN","    //AUX_IDLE_DISPLAY_MODE",11,1,"BIN","    //AUX_IDLE_DISPLAY_MODE",11,1,"BIN","    //AUX_IDLE_DISPLAY_MODE",11,1,"BIN","    //AUX_IDLE_DISPLAY_MODE",11,1,"BIN","    //AUX_IDLE_DISPLAY_MODE",11,1,"BIN","    //AUX_IDLE_DISPLAY_MODE",11,1,"BIN","    //AUX_IDLE_DISPLAY_MODE",11,1,"BIN","    //AUX_IDLE_DISPLAY_MODE",11,1,"BIN","    //AUX_IDLE_DISPLAY_MODE",11,1,"BIN","    //AUX_IDLE_DISPLAY_MODE",11,1,"BIN","    //AUX_IDLE_DISPLAY_MODE",11,1,"BIN","    //AUX_IDLE_DISPLAY_MODE",11,1,"BIN","    //AUX_IDLE_DISPLAY_MODE",11,1,"BIN","    //AUX_IDLE_DISPLAY_MODE",11,1,"BIN","    //AUX_IDLE_DISPLAY_MODE",11,1,"BIN","    //AUX_IDLE_DISPLAY_MODE",11,1,"BIN","    //AUX_IDLE_DISPLAY_MODE",11,1,"BIN","    //AUX_IDLE_DISPLAY_MODE",11,1,"BIN","    //AUX_IDLE_DISPLAY_MODE",11,1,"BIN","    //AUX_IDLE_DISPLAY_MODE",11,1,"BIN","    //AUX_IDLE_DISPLAY_MODE",11,1,"BIN","    //AUX_IDLE_DISPLAY_MODE",11,1,"BIN","    //AUX_IDLE_DISPLAY_MODE",11,1,"BIN","    //AUX_IDLE_DISPLAY_MODE",11,1,"BIN","    //AUX_IDLE_DISPLAY_MODE",11,1,"BIN","    //AUX_IDLE_DISPLAY_MODE",11,1,"BIN","    //AUX_IDLE_DISPLAY_MODE",11,1,"BIN","    //AUX_IDLE_DISPLAY_MODE",11,1,"BIN","    //AUX_IDLE_DISPLAY_MODE",11,1,"BIN","    //AUX_IDLE_DISPLAY_MODE",11,1,"BIN","    //AUX_IDLE_DISPLAY_MODE",11,1,"BIN","    //AUX_IDLE_DISPLAY_MODE",11,1,"BIN","    //AUX_IDLE_DISPLAY_MODE",11,1,"BIN","    //AUX_IDLE_DISPLAY_MODE",11,1,"BIN","    //AUX_IDLE_DISPLAY_MODE",11,1,"BIN","    //AUX_IDLE_DISPLAY_MODE",11,1,"BIN","    //AUX_IDLE_DISPLAY_MODE",11,1,"BIN","    //AUX_IDLE_DISPLAY_MODE",11,1,"BIN","    //AUX_IDLE_DISPLAY_MODE",11,1,"BIN","    //AUX_IDLE_DISPLAY_MODE",11,1,"BIN","    //AUX_IDLE_DISPLAY_MODE",11,1,"BIN","    //AUX_IDLE_DISPLAY_MODE",11,1,"BIN","    //AUX_IDLE_DISPLAY_MODE",11,1,"BIN","    //AUX_IDLE_DISPLAY_MODE",11,1,"BIN","    //AUX_IDLE_DISPLAY_MODE",11,1,"BIN","    //AUX_IDLE_DISPLAY_MODE",11,1,"BIN","    //AUX_IDLE_DISPLAY_MODE",11,1,"BIN","    //AUX_IDLE_DISPLAY_MODE",11,1,"BIN","    //AUX_IDLE_DISPLAY_MODE",11,1,"BIN","    //AUX_IDLE_DISPLAY_MODE",11,1,"BIN","    //AUX_IDLE_DISPLAY_MODE",11,1,"BIN","    //AUX_IDLE_DISPLAY_MODE",11,1,"BIN","    //AUX_IDLE_DISPLAY_MODE",11,1,"BIN","    //AUX_IDLE_DISPLAY_MODE",11,1,"BIN","    //AUX_IDLE_DISPLAY_MODE",11,1,"BIN","    //AUX_IDLE_DISPLAY_MODE",11,1,"BIN","    //AUX_IDLE_DISPLAY_MODE",11,1,"BIN","    //AUX_IDLE_DISPLAY_MODE",11,1,"BIN","    //AUX_IDLE_DISPLAY_MODE",11,1,"BIN","    //AUX_IDLE_DISPLAY_MODE",11,1,"BIN","    //AUX_IDLE_DISPLAY_MODE",11,1,"BIN","    //AUX_IDLE_DISPLAY_MODE",11,1,"BIN","    //AUX_IDLE_DISPLAY_MODE",11,1,"BIN","    //AUX_IDLE_DISPLAY_MODE",11,1,"BIN","    //AUX_IDLE_DISPLAY_MODE",11,1,"BIN","    //AUX_IDLE_DISPLAY_MODE",11,1,"BIN","    //AUX_IDLE_DISPLAY_MODE",11,1,"BIN","    //AUX_IDLE_DISPLAY_MODE",11,1,"BIN","    //AUX_IDLE_DISPLAY_MODE",11,1,"BIN","    //AUX_IDLE_DISPLAY_MODE",11,1,"BIN","    //AUX_IDLE_DISPLAY_MODE",11,1,"BIN","    //AUX_IDLE_DISPLAY_MODE",11,1,"BIN","    //AUX_IDLE_DISPLAY_MODE",11,1,"BIN","    //AUX_IDLE_DISPLAY_MODE",11,1,"BIN","    //AUX_IDLE_DISPLAY_MODE",11,1,"BIN","    //AUX_IDLE_DISPLAY_MODE",11,1,"BIN","    //AUX_IDLE_DISPLAY_MODE",11,1,"BIN","    //AUX_IDLE_DISPLAY_MODE",11,1,"BIN","    //AUX_IDLE_DISPLAY_MODE",11,1,"BIN","    //AUX_IDLE_DISPLAY_MODE",11,1,"BIN","    //AUX_IDLE_DISPLAY_MODE",11,1,"BIN","    //AUX_IDLE_DISPLAY_MODE",11,1,"BIN","    //AUX_IDLE_DISPLAY_MODE",11,1,"BIN","    //AUX_IDLE_DISPLAY_MODE",11,1,"BIN","    //AUX_IDLE_DISPLAY_MODE",11,1,"BIN","    //AUX_IDLE_DISPLAY_MODE",11,1,"BIN","    //AUX_IDLE_DISPLAY_MODE",11,1,"BIN","    //AUX_IDLE_DISPLAY_MODE",11,1,"BIN","    //AUX_IDLE_DISPLAY_MODE",11,1,"BIN","    //AUX_IDLE_DISPLAY_MODE",11,1,"BIN","    //AUX_IDLE_DISPLAY_MODE",11,1,"BIN","    //AUX_IDLE_DISPLAY_MODE",11,1,"BIN","    //AUX_IDLE_DISPLAY_MODE",11,1,"BIN","    //AUX_IDLE_DISPLAY_MODE",11,1,"BIN","    //AUX_IDLE_DISPLAY_MODE",11,1,"BIN","    //AUX_IDLE_DISPLAY_MODE",11,1,"BIN","    //AUX_IDLE_DISPLAY_MODE",11,1,"BIN","    //AUX_IDLE_DISPLAY_MODE",11,1,"BIN","    //AUX_IDLE_DISPLAY_MODE",11,1,"BIN","    //AUX_IDLE_DISPLAY_MODE",11,1,"BIN","    //AUX_IDLE_DISPLAY_MODE",11,1,"BIN","    //AUX_IDLE_DISPLAY_MODE",11,1,"BIN","    //AUX_IDLE_DISPLAY_MODE",11,1,"BIN","    //AUX_IDLE_DISPLAY_MODE",11,1,"BIN","    //AUX_IDLE_DISPLAY_MODE",11,1,"BIN","    //AUX_IDLE_DISPLAY_MODE",11,1,"BIN","    //AUX_IDLE_DISPLAY_MODE",11,1,"BIN","    //AUX_IDLE_DISPLAY_MODE",11,1,"BIN","    //AUX_IDLE_DISPLAY_MODE",11,1,"BIN","    //AUX_IDLE_DISPLAY_MODE",11,1,"BIN","    //AUX_IDLE_DISPLAY_MODE",11,1,"BIN","    //AUX_IDLE_DISPLAY_MODE",11,1,"BIN","    //AUX_IDLE_DISPLAY_MODE",11,1,"BIN","    //AUX_IDLE_DISPLAY_MODE",11,1,"BIN","    //AUX_IDLE_DISPLAY_MODE",11,1,"BIN","    //AUX_IDLE_DISPLAY_MODE",11,1,"BIN","    //AUX_IDLE_DISPLAY_MODE",11,1,"BIN","    //AUX_IDLE_DISPLAY_MODE",11,1,"BIN","    //AUX_IDLE_DISPLAY_MODE",11,1,"BIN","    //AUX_IDLE_DISPLAY_MODE",11,1,"BIN","    //AUX_IDLE_DISPLAY_MODE",11,1,"BIN","    //AUX_IDLE_DISPLAY_MODE",11,1,"BIN","    //AUX_IDLE_DISPLAY_MODE",11,1,"BIN","    //AUX_IDLE_DISPLAY_MODE",11,1,"BIN","    //AUX_IDLE_DISPLAY_MODE",11,1,"BIN","    //AUX_IDLE_DISPLAY_MODE",11,1,"BIN","    //AUX_IDLE_DISPLAY_MODE",11,1,"BIN","    //AUX_IDLE_DISPLAY_MODE",11,1,"BIN","    //AUX_IDLE_DISPLAY_MODE",11,1,"BIN","    //AUX_IDLE_DISPLAY_MODE",11,1,"BIN","    //AUX_IDLE_DISPLAY_MODE",11,1,"BIN","    //AUX_IDLE_DISPLAY_MODE",11,1,"BIN","    //AUX_IDLE_DISPLAY_MODE",11,1,"BIN","    //AUX_IDLE_DISPLAY_MODE",11,1,"BIN","    //AUX_IDLE_DISPLAY_MODE",11,1,"BIN","    //AUX_IDLE_DISPLAY_MODE",11,1,"BIN","    //AUX_IDLE_DISPLAY_MODE",11,1,"BIN","    //AUX_IDLE_DISPLAY_MODE",11,1,"BIN","    //AUX_IDLE_DISPLAY_MODE",11,1,"BIN","    //AUX_IDLE_DISPLAY_MODE",11,1,"BIN","    //AUX_IDLE_DISPLAY_MODE",11,1,"BIN","    //AUX_IDLE_DISPLAY_MODE",11,1,"BIN","    //AUX_IDLE_DISPLAY_MODE",11,1,"BIN","    //AUX_IDLE_DISPLAY_MODE",11,1,"BIN","    //AUX_IDLE_DISPLAY_MODE",11,1,"BIN","    //AUX_IDLE_DISPLAY_MODE",11,1,"BIN","    //AUX_IDLE_DISPLAY_MODE",11,1,"BIN","    //AUX_IDLE_DISPLAY_MODE",11,1,"BIN","    //AUX_IDLE_DISPLAY_MODE",11,1,"BIN","    //AUX_IDLE_DISPLAY_MODE",11,1,"BIN","    //AUX_IDLE_DISPLAY_MODE",11,1,"BIN","    //AUX_IDLE_DISPLAY_MODE",11,1,"BIN","    //AUX_IDLE_DISPLAY_MODE",11,1,"BIN","    //AUX_IDLE_DISPLAY_MODE",11,1,"BIN","    //AUX_IDLE_DISPLAY_MODE",11,1,"BIN","    //AUX_IDLE_DISPLAY_MODE",11,1,"BIN","    //AUX_IDLE_DISPLAY_MODE",11,1,"BIN","    //AUX_IDLE_DISPLAY_MODE",11,1,"BIN","    //AUX_IDLE_DISPLAY_MODE",11,1,"BIN","    //AUX_IDLE_DISPLAY_MODE",11,1,"BIN","    //AUX_IDLE_DISPLAY_MODE",11,1,"BIN","    //AUX_IDLE_DISPLAY_MODE",11,1,"BIN","    //AUX_IDLE_DISPLAY_MODE",11,1,"BIN","    //AUX_IDLE_DISPLAY_MODE",11,1,"BIN","    //AUX_IDLE_DISPLAY_MODE",11,1,"BIN","    //AUX_IDLE_DISPLAY_MODE",11,1,"BIN","    //AUX_IDLE_DISPLAY_MODE",11,1,"BIN","    //AUX_IDLE_DISPLAY_MODE",11,1,"BIN","    //AUX_IDLE_DISPLAY_MODE",11,1,"BIN","    //AUX_IDLE_DISPLAY_MODE",11,1,"BIN","    //AUX_IDLE_DISPLAY_MODE",11,1,"BIN","    //AUX_IDLE_DISPLAY_MODE",11,1,"BIN","    //AUX_IDLE_DISPLAY_MODE",11,1,"BIN","    //AUX_IDLE_DISPLAY_MODE",11,1,"BIN","    //AUX_IDLE_DISPLAY_MODE",11,1,"BIN","    //AUX_IDLE_DISPLAY_MODE",11,1,"BIN","    //AUX_IDLE_DISPLAY_MODE",11,1,"BIN","    //AUX_IDLE_DISPLAY_MODE",11,1,"BIN","    //AUX_IDLE_DISPLAY_MODE",11,1,"BIN","    //AUX_IDLE_DISPLAY_MODE",11,1,"BIN","    //AUX_IDLE_DISPLAY_MODE",11,1,"BIN","    //AUX_IDLE_DISPLAY_MODE",11,1,"BIN","    //AUX_IDLE_DISPLAY_MODE",11,1,"BIN","    //AUX_IDLE_DISPLAY_MODE",11,1,"BIN","    //AUX_IDLE_DISPLAY_MODE",11,1,"BIN","    //AUX_IDLE_DISPLAY_MODE",11,1,"BIN","    //AUX_IDLE_DISPLAY_MODE",11,1,"BIN","    //AUX_IDLE_DISPLAY_MODE",11,1,"BIN","    //AUX_IDLE_DISPLAY_MODE",11,1,"BIN","    //AUX_IDLE_DISPLAY_MODE",11,1,"BIN","    //AUX_IDLE_DISPLAY_MODE",11,1,"BIN","    //AUX_IDLE_DISPLAY_MODE",11,1,"BIN","    //AUX_IDLE_DISPLAY_MODE",11,1,"BIN","    //AUX_IDLE_DISPLAY_MODE",11,1,"BIN","    //AUX_IDLE_DISPLAY_MODE",11,1,"BIN","    //AUX_IDLE_DISPLAY_MODE",11,1,"BIN","    //AUX_IDLE_DISPLAY_MODE",11,1,"BIN","    //AUX_IDLE_DISPLAY_MODE",11,1,"BIN","    //AUX_IDLE_DISPLAY_MODE",11,1,"BIN","    //AUX_IDLE_DISPLAY_MODE",11,1,"BIN","    //AUX_IDLE_DISPLAY_MODE",11,1,"BIN","    //AUX_IDLE_DISPLAY_MODE",11,1,"BIN","    //AUX_IDLE_DISPLAY_MODE",11,1,"BIN","    //AUX_IDLE_DISPLAY_MODE",11,1,"BIN","    //AUX_IDLE_DISPLAY_MODE",11,1,"BIN","    //AUX_IDLE_DISPLAY_MODE",11,1,"BIN","    //AUX_IDLE_DISPLAY_MODE",11,1,"BIN","    //AUX_IDLE_DISPLAY_MODE",11,1,"BIN","    //AUX_IDLE_DISPLAY_MODE",11,1,"BIN","    //AUX_IDLE_DISPLAY_MODE",11,1,"BIN","    //AUX_IDLE_DISPLAY_MODE",11,1,"BIN","    //AUX_IDLE_DISPLAY_MODE",11,1,"BIN","    //AUX_IDLE_DISPLAY_MODE",11,1,"BIN","    //AUX_IDLE_DISPLAY_MODE",11,1,"BIN","    //AUX_IDLE_DISPLAY_MODE",11,1,"BIN","    //AUX_IDLE_DISPLAY_MODE",11,1,"BIN","    //AUX_IDLE_DISPLAY_MODE",11,1,"BIN","    //AUX_IDLE_DISPLAY_MODE",11,1,"BIN","    //AUX_IDLE_DISPLAY_MODE",11,1,"BIN","    //AUX_IDLE_DISPLAY_MODE",11,1,"BIN","    //AUX_IDLE_DISPLAY_MODE",11,1,"BIN","    //AUX_IDLE_DISPLAY_MODE",11,1,"BIN","    //AUX_IDLE_DISPLAY_MODE",11,1,"BIN","    //AUX_IDLE_DISPLAY_MODE",11,1,"BIN","    //AUX_IDLE_DISPLAY_MODE",11,1,"BIN","    //AUX_IDLE_DISPLAY_MODE",11,1,"BIN","    //AUX_IDLE_DISPLAY_MODE",11,1,"BIN","    //AUX_IDLE_DISPLAY_MODE",11,1,"BIN","    //AUX_IDLE_DISPLAY_MODE",11,1,"BIN","    //AUX_IDLE_DISPLAY_MODE",11,1,"BIN","    //AUX_IDLE_DISPLAY_MODE",11,1,"BIN","    //AUX_IDLE_DISPLAY_MODE",11,1,"BIN","    //AUX_IDLE_DISPLAY_MODE",11,1,"BIN","    //AUX_IDLE_DISPLAY_MODE",11,1,"BIN","    //AUX_IDLE_DISPLAY_MODE",11,1,"BIN","    //AUX_IDLE_DISPLAY_MODE",11,1,"BIN","    //AUX_IDLE_DISPLAY_MODE",11,1,"BIN","    //AUX_IDLE_DISPLAY_MODE",11,1,"BIN","    //AUX_IDLE_DISPLAY_MODE",11,1,"BIN","    //AUX_IDLE_DISPLAY_MODE",11,1,"BIN","    //AUX_IDLE_DISPLAY_MODE",11,1,"BIN","    //AUX_IDLE_DISPLAY_MODE",11,1,"BIN","    //AUX_IDLE_DISPLAY_MODE",11,1,"BIN","    //AUX_IDLE_DISPLAY_MODE",11,1,"BIN","    //AUX_IDLE_DISPLAY_MODE",11,1,"BIN","    //AUX_IDLE_DISPLAY_MODE",11,1,"BIN","    //AUX_IDLE_DISPLAY_MODE",11,1,"BIN","    //AUX_IDLE_DISPLAY_MODE",11,1,"BIN","    //AUX_IDLE_DISPLAY_MODE",11,1,"BIN","    //AUX_IDLE_DISPLAY_MODE",11,1,"BIN","    //AUX_IDLE_DISPLAY_MODE",11,1,"BIN","    //AUX_IDLE_DISPLAY_MODE",11,1,"BIN","    //AUX_IDLE_DISPLAY_MODE",11,1,"BIN","    //AUX_IDLE_DISPLAY_MODE",11,1,"BIN","    //AUX_IDLE_DISPLAY_MODE",11,1,"BIN","    //AUX_IDLE_DISPLAY_MODE",11,1,"BIN","    //AUX_IDLE_DISPLAY_MODE",11,1,"BIN","    //AUX_IDLE_DISPLAY_MODE",11,1,"BIN","    //AUX_IDLE_DISPLAY_MODE",11,1,"BIN","    //AUX_IDLE_DISPLAY_MODE",11,1,"BIN","    //AUX_IDLE_DISPLAY_MODE",11,1,"BIN","    //AUX_IDLE_DISPLAY_MODE",11,1,"BIN","    //AUX_IDLE_DISPLAY_MODE",11,1,"BIN","    //AUX_IDLE_DISPLAY_MODE",11,1,"BIN","    //AUX_IDLE_DISPLAY_MODE",11,1,"BIN","    //AUX_IDLE_DISPLAY_MODE",11,1,"BIN","    //AUX_IDLE_DISPLAY_MODE",11,1,"BIN","    //AUX_IDLE_DISPLAY_MODE",11,1,"BIN","    //AUX_IDLE_DISPLAY_MODE",11,1,"BIN","    //AUX_IDLE_DISPLAY_MODE",11,1,"BIN","    //AUX_IDLE_DISPLAY_MODE",11,1,"BIN","    //AUX_IDLE_DISPLAY_MODE",11,1,"BIN","    //AUX_IDLE_DISPLAY_MODE",11,1,"BIN","    //AUX_IDLE_DISPLAY_MODE",11,1,"BIN","    //AUX_IDLE_DISPLAY_MODE",11,1,"BIN","    //AUX_IDLE_DISPLAY_MODE",11,1,"BIN","    //AUX_IDLE_DISPLAY_MODE",11,1,"BIN","    //AUX_IDLE_DISPLAY_MODE",11,1,"BIN","    //AUX_IDLE_DISPLAY_MODE",11,1,"BIN","    //AUX_IDLE_DISPLAY_MODE",11,1,"BIN","    //AUX_IDLE_DISPLAY_MODE",11,1,"BIN","    //AUX_IDLE_DISPLAY_MODE",11,1,"BIN","    //AUX_IDLE_DISPLAY_MODE",11,1,"BIN","    //AUX_IDLE_DISPLAY_MODE",11,1,"BIN","    //AUX_IDLE_DISPLAY_MODE",11,1,"BIN","    //AUX_IDLE_DISPLAY_MODE",11,1,"BIN","    //AUX_IDLE_DISPLAY_MODE",11,1,"BIN","    //AUX_IDLE_DISPLAY_MODE",11,1,"BIN","    //AUX_IDLE_DISPLAY_MODE",11,1,"BIN","    //AUX_IDLE_DISPLAY_MODE",11,1,"BIN","    //AUX_IDLE_DISPLAY_MODE",11,1,"BIN","    //AUX_IDLE_DISPLAY_MODE",11,1,"BIN","    //AUX_IDLE_DISPLAY_MODE",11,1,"BIN","    //AUX_IDLE_DISPLAY_MODE",11,1,"BIN","    //AUX_IDLE_DISPLAY_MODE",11,1,"BIN","    //AUX_IDLE_DISPLAY_MODE",11,1,"BIN","    //AUX_IDLE_DISPLAY_MODE",11,1,"BIN","    //AUX_IDLE_DISPLAY_MODE",11,1,"BIN","    //AUX_IDLE_DISPLAY_MODE",11,1,"BIN","    //AUX_IDLE_DISPLAY_MODE",11,1,"BIN","    //AUX_IDLE_DISPLAY_MODE",11,1,"BIN","    //AUX_IDLE_DISPLAY_MODE",11,1,"BIN","    //AUX_IDLE_DISPLAY_MODE",11,1,"BIN","    //AUX_IDLE_DISPLAY_MODE",11,1,"BIN","    //AUX_IDLE_DISPLAY_MODE",11,1,"BIN","    //AUX_IDLE_DISPLAY_MODE",11,1,"BIN","    //AUX_IDLE_DISPLAY_MODE",11,1,"BIN","    //AUX_IDLE_DISPLAY_MODE",11,1,"BIN","    //AUX_IDLE_DISPLAY_MODE",11,1,"BIN","    //AUX_IDLE_DISPLAY_MODE",11,1,"BIN","    //AUX_IDLE_DISPLAY_MODE",11,1,"BIN","    //AUX_IDLE_DISPLAY_MODE",11,1,"BIN","    //AUX_IDLE_DISPLAY_MODE",11,1,"BIN","    //AUX_IDLE_DISPLAY_MODE",11,1,"BIN","    //AUX_IDLE_DISPLAY_MODE",11,1,"BIN","    //AUX_IDLE_DISPLAY_MODE",11,1,"BIN","    //AUX_IDLE_DISPLAY_MODE",11,1,"BIN","    //AUX_IDLE_DISPLAY_MODE",11,1,"BIN","    //AUX_IDLE_DISPLAY_MODE",11,1,"BIN","    //AUX_IDLE_DISPLAY_MODE",11,1,"BIN","    //AUX_IDLE_DISPLAY_MODE",11,1,"BIN","    //AUX_IDLE_DISPLAY_MODE",11,1,"BIN","    //AUX_IDLE_DISPLAY_MODE",11,1,"BIN","    //AUX_IDLE_DISPLAY_MODE",11,1,"BIN","    //AUX_IDLE_DISPLAY_MODE",11,1,"BIN","    //AUX_IDLE_DISPLAY_MODE",11,1,"BIN","    //AUX_IDLE_DISPLAY_MODE",11,1,"BIN","    //AUX_IDLE_DISPLAY_MODE",11,1,"BIN","    //AUX_IDLE_DISPLAY_MODE",11,1,"BIN","    //AUX_IDLE_DISPLAY_MODE",11,1,"BIN","    //AUX_IDLE_DISPLAY_MODE",11,1,"BIN","    //AUX_IDLE_DISPLAY_MODE",11,1,"BIN","    //AUX_IDLE_DISPLAY_MODE",11,1,"BIN","    //AUX_IDLE_DISPLAY_MODE",11,1,"BIN","    //AUX_IDLE_DISPLAY_MODE",11,1,"BIN","    //AUX_IDLE_DISPLAY_MODE",11,1,"BIN","    //AUX_IDLE_DISPLAY_MODE",11,1,"BIN","    //AUX_IDLE_DISPLAY_MODE",11,1,"BIN","    //AUX_IDLE_DISPLAY_MODE",11,1,"BIN","    //AUX_IDLE_DISPLAY_MODE",11,1,"BIN","    //AUX_IDLE_DISPLAY_MODE",11,1,"BIN","    //AUX_IDLE_DISPLAY_MODE",11,1,"BIN","    //AUX_IDLE_DISPLAY_MODE",11,1,"BIN","    //AUX_IDLE_DISPLAY_MODE",11,1,"BIN","    //AUX_IDLE_DISPLAY_MODE",11,1,"BIN","    //AUX_IDLE_DISPLAY_MODE",11,1,"BIN","    //AUX_IDLE_DISPLAY_MODE",11,1,"BIN","    //AUX_IDLE_DISPLAY_MODE",11,1,"BIN","    //AUX_IDLE_DISPLAY_MODE",11,1,"BIN","    //AUX_IDLE_DISPLAY_MODE",11,1,"BIN","    //AUX_IDLE_DISPLAY_MODE",11,1,"BIN","    //AUX_IDLE_DISPLAY_MODE",11,1,"BIN","    //AUX_IDLE_DISPLAY_MODE",11,1,"BIN","    //AUX_IDLE_DISPLAY_MODE",11,1,"BIN","    //AUX_IDLE_DISPLAY_MODE",11,1,"BIN","    //AUX_IDLE_DISPLAY_MODE",11,1,"BIN","    //AUX_IDLE_DISPLAY_MODE",11,1,"BIN","    //AUX_IDLE_DISPLAY_MODE",11,1,"BIN","    //AUX_IDLE_DISPLAY_MODE",11,1,"BIN","    //AUX_IDLE_DISPLAY_MODE",11,1,"BIN","    //AUX_IDLE_DISPLAY_MODE",11,1,"BIN","    //AUX_IDLE_DISPLAY_MODE",11,1,"BIN","    //AUX_IDLE_DISPLAY_MODE",11,1,"BIN","    //AUX_IDLE_DISPLAY_MODE",11,1,"BIN","    //AUX_IDLE_DISPLAY_MODE",11,1,"BIN","    //AUX_IDLE_DISPLAY_MODE",11,1,"BIN","    //AUX_IDLE_DISPLAY_MODE",11,1,"BIN","    //AUX_IDLE_DISPLAY_MODE",11,1,"BIN","    //AUX_IDLE_DISPLAY_MODE",11,1,"BIN","    //AUX_IDLE_DISPLAY_MODE",11,1,"BIN","    //AUX_IDLE_DISPLAY_MODE",11,1,"BIN","    //AUX_IDLE_DISPLAY_MODE",11,1,"BIN","    //AUX_IDLE_DISPLAY_MODE",11,1,"BIN","    //AUX_IDLE_DISPLAY_MODE",11,1,"BIN","    //AUX_IDLE_DISPLAY_MODE",11,1,"BIN","    //AUX_IDLE_DISPLAY_MODE",11,1,"BIN","    //AUX_IDLE_DISPLAY_MODE",11,1,"BIN","    //AUX_IDLE_DISPLAY_MODE",11,1,"BIN","    //AUX_IDLE_DISPLAY_MODE",11,1,"BIN","    //AUX_IDLE_DISPLAY_MODE",11,1,"BIN","    //AUX_IDLE_DISPLAY_MODE",11,1,"BIN","    //AUX_IDLE_DISPLAY_MODE",11,1,"BIN","    //AUX_IDLE_DISPLAY_MODE",11,1,"BIN","    //AUX_IDLE_DISPLAY_MODE",11,1,"BIN","    //AUX_IDLE_DISPLAY_MODE",11,1,"BIN","    //AUX_IDLE_DISPLAY_MODE",11,1,"BIN","    //AUX_IDLE_DISPLAY_MODE",11,1,"BIN","    //AUX_IDLE_DISPLAY_MODE",11,1,"BIN","    //AUX_IDLE_DISPLAY_MODE",11,1,"BIN","    //AUX_IDLE_DISPLAY_MODE",11,1,"BIN","    //AUX_IDLE_DISPLAY_MODE",11,1,"BIN","    //AUX_IDLE_DISPLAY_MODE",11,1,"BIN","    //AUX_IDLE_DISPLAY_MODE",11,1,"BIN","    //AUX_IDLE_DISPLAY_MODE",11,1,"BIN","    //AUX_IDLE_DISPLAY_MODE",11,1,"BIN","    //AUX_IDLE_DISPLAY_MODE",11,1,"BIN","    //AUX_IDLE_DISPLAY_MODE",11,1,"BIN","    //AUX_IDLE_DISPLAY_MODE",11,1,"BIN","    //AUX_IDLE_DISPLAY_MODE",11,1,"BIN","    //AUX_IDLE_DISPLAY_MODE",11,1,"BIN","    //AUX_IDLE_DISPLAY_MODE",11,1,"BIN","    //AUX_IDLE_DISPLAY_MODE",11,1,"BIN","    //AUX_IDLE_DISPLAY_MODE",11,1,"BIN","    //AUX_IDLE_DISPLAY_MODE",11,1,"BIN","    //AUX_IDLE_DISPLAY_MODE",11,1,"BIN","    //AUX_IDLE_DISPLAY_MODE",11,1,"BIN","    //AUX_IDLE_DISPLAY_MODE",11,1,"BIN","    //AUX_IDLE_DISPLAY_MODE",11,1,"BIN","    //AUX_IDLE_DISPLAY_MODE",11,1,"BIN","    //AUX_IDLE_DISPLAY_MODE",11,1,"BIN","    //AUX_IDLE_DISPLAY_MODE",11,1,"BIN","    //AUX_IDLE_DISPLAY_MODE",11,1,"BIN","    //AUX_IDLE_DISPLAY_MODE",11,1,"BIN","    //AUX_IDLE_DISPLAY_MODE",11,1,"BIN","    //AUX_IDLE_DISPLAY_MODE",11,1,"BIN","    //AUX_IDLE_DISPLAY_MODE",11,1,"BIN","    //AUX_IDLE_DISPLAY_MODE",11,1,"BIN","    //AUX_IDLE_DISPLAY_MODE",11,1,"BIN","    //AUX_IDLE_DISPLAY_MODE",11,1,"BIN","    //AUX_IDLE_DISPLAY_MODE",11,1,"BIN","    //AUX_IDLE_DISPLAY_MODE",11,1,"BIN","    //AUX_IDLE_DISPLAY_MODE",11,1,"BIN","    //AUX_IDLE_DISPLAY_MODE",11,1,"BIN","    //AUX_IDLE_DISPLAY_MODE",11,1,"BIN","    //AUX_IDLE_DISPLAY_MODE",11,1,"BIN","    //AUX_IDLE_DISPLAY_MODE",11,1,"BIN","    //AUX_IDLE_DISPLAY_MODE",11,1,"BIN","    //AUX_IDLE_DISPLAY_MODE",11,1,"BIN","    //AUX_IDLE_DISPLAY_MODE",11,1,"BIN","    //AUX_IDLE_DISPLAY_MODE",11,1,"BIN","    //AUX_IDLE_DISPLAY_MODE",11,1,"BIN","    //AUX_IDLE_DISPLAY_MODE",11,1,"BIN","    //AUX_IDLE_DISPLAY_MODE",11,1,"BIN","    //AUX_IDLE_DISPLAY_MODE",11,1,"BIN","    //AUX_IDLE_DISPLAY_MODE",11,1,"BIN","    //AUX_IDLE_DISPLAY_MODE",11,1,"BIN","    //AUX_IDLE_DISPLAY_MODE",11,1,"BIN","    //AUX_IDLE_DISPLAY_MODE",11,1,"BIN","    //AUX_IDLE_DISPLAY_MODE",11,1,"BIN","    //AUX_IDLE_DISPLAY_MODE",11,1,"BIN","    //AUX_IDLE_DISPLAY_MODE",11,1,"BIN","    //AUX_IDLE_DISPLAY_MODE",11,1,"BIN","    //AUX_IDLE_DISPLAY_MODE",11,1,"BIN","    //AUX_IDLE_DISPLAY_MODE",11,1,"BIN","    //AUX_IDLE_DISPLAY_MODE",11,1,"BIN","    //AUX_IDLE_DISPLAY_MODE",11,1,"BIN","    //AUX_IDLE_DISPLAY_MODE",11,1,"BIN","    //AUX_IDLE_DISPLAY_MODE",11,1,"BIN","    //AUX_IDLE_DISPLAY_MODE",11,1,"BIN","    //AUX_IDLE_DISPLAY_MODE",11,1,"BIN","    //AUX_IDLE_DISPLAY_MODE",11,1,"BIN","    //AUX_IDLE_DISPLAY_MODE",11,1,"BIN","    //AUX_IDLE_DISPLAY_MODE",11,1,"BIN","    //AUX_IDLE_DISPLAY_MODE",11,1,"BIN","    //AUX_IDLE_DISPLAY_MODE",11,1,"BIN","    //AUX_IDLE_DISPLAY_MODE",11,1,"BIN","    //AUX_IDLE_DISPLAY_MODE",11,1,"BIN","    //AUX_IDLE_DISPLAY_MODE",11,1,"BIN","    //AUX_IDLE_DISPLAY_MODE",11,1,"BIN","    //AUX_IDLE_DISPLAY_MODE",11,1,"BIN","    //AUX_IDLE_DISPLAY_MODE",11,1,"BIN","    //AUX_IDLE_DISPLAY_MODE",11,1,"BIN","    //AUX_IDLE_DISPLAY_MODE",11,1,"BIN","    //AUX_IDLE_DISPLAY_MODE",11,1,"BIN","    //AUX_IDLE_DISPLAY_MODE",11,1,"BIN","    //AUX_IDLE_DISPLAY_MODE",11,1,"BIN","    //AUX_IDLE_DISPLAY_MODE",11,1,"BIN","    //AUX_IDLE_DISPLAY_MODE",11,1,"BIN","    //AUX_IDLE_DISPLAY_MODE",11,1,"BIN","    //AUX_IDLE_DISPLAY_MODE",11,1,"BIN","    //AUX_IDLE_DISPLAY_MODE",11,1,"BIN","    //AUX_IDLE_DISPLAY_MODE",11,1,"BIN","    //AUX_IDLE_DISPLAY_MODE",11,1,"BIN","    //AUX_IDLE_DISPLAY_MODE",11,1,"BIN","    //AUX_IDLE_DISPLAY_MODE",11,1,"BIN","    //AUX_IDLE_DISPLAY_MODE",11,1,"BIN","    //AUX_IDLE_DISPLAY_MODE",11,1,"BIN","    //AUX_IDLE_DISPLAY_MODE",11,1,"BIN","    //AUX_IDLE_DISPLAY_MODE",11,1,"BIN","    //AUX_IDLE_DISPLAY_MODE",11,1,"BIN","    //AUX_IDLE_DISPLAY_MODE",11,1,"BIN","    //AUX_IDLE_DISPLAY_MODE",11,1,"BIN","    //AUX_IDLE_DISPLAY_MODE",11,1,"BIN","    //AUX_IDLE_DISPLAY_MODE",11,1,"BIN","    //AUX_IDLE_DISPLAY_MODE",11,1,"BIN","    //AUX_IDLE_DISPLAY_MODE",11,1,"BIN","    //AUX_IDLE_DISPLAY_MODE",11,1,"BIN","    //AUX_IDLE_DISPLAY_MODE",11,1,"BIN","    //AUX_IDLE_DISPLAY_MODE",11,1,"BIN","    //AUX_IDLE_DISPLAY_MODE",11,1,"BIN","    //AUX_IDLE_DISPLAY_MODE",11,1,"BIN","    //AUX_IDLE_DISPLAY_MODE",11,1,"BIN","    //AUX_IDLE_DISPLAY_MODE",11,1,"BIN","    //AUX_IDLE_DISPLAY_MODE",11,1,"BIN","    //AUX_IDLE_DISPLAY_MODE",11,1,"BIN","    //AUX_IDLE_DISPLAY_MODE",11,1,"BIN","    //AUX_IDLE_DISPLAY_MODE",11,1,"BIN","    //AUX_IDLE_DISPLAY_MODE",11,1,"BIN","    //AUX_IDLE_DISPLAY_MODE",11,1,"BIN","    //AUX_IDLE_DISPLAY_MODE",11,1,"BIN","    //AUX_IDLE_DISPLAY_MODE",11,1,"BIN","    //AUX_IDLE_DISPLAY_MODE",11,1,"BIN","    //AUX_IDLE_DISPLAY_MODE",11,1,"BIN","    //AUX_IDLE_DISPLAY_MODE",11,1,"BIN","    //AUX_IDLE_DISPLAY_MODE",11,1,"BIN","    //AUX_IDLE_DISPLAY_MODE",11,1,"BIN","    //AUX_IDLE_DISPLAY_MODE",11,1,"BIN","    //AUX_IDLE_DISPLAY_MODE",11,1,"BIN","    //AUX_IDLE_DISPLAY_MODE",11,1,"BIN","    //AUX_IDLE_DISPLAY_MODE",11,1,"BIN","    //AUX_IDLE_DISPLAY_MODE",11,1,"BIN","    //AUX_IDLE_DISPLAY_MODE",11,1,"BIN","    //AUX_IDLE_DISPLAY_MODE",11,1,"BIN","    //AUX_IDLE_DISPLAY_MODE",11,1,"BIN","    //AUX_IDLE_DISPLAY_MODE",11,1,"BIN","    //AUX_IDLE_DISPLAY_MODE",11,1,"BIN","    //AUX_IDLE_DISPLAY_MODE",11,1,"BIN","    //AUX_IDLE_DISPLAY_MODE",11,1,"BIN","    //AUX_IDLE_DISPLAY_MODE",11,1,"BIN","    //AUX_IDLE_DISPLAY_MODE",11,1,"BIN","    //AUX_IDLE_DISPLAY_MODE",11,1,"BIN","    //AUX_IDLE_DISPLAY_MODE",11,1,"BIN","    //AUX_IDLE_DISPLAY_MODE",11,1,"BIN","    //AUX_IDLE_DISPLAY_MODE",11,1,"BIN","    //AUX_IDLE_DISPLAY_MODE",11,1,"BIN","    //AUX_IDLE_DISPLAY_MODE",11,1,"BIN","    //AUX_IDLE_DISPLAY_MODE",11,1,"BIN","    //AUX_IDLE_DISPLAY_MODE",11,1,"BIN","    //AUX_IDLE_DISPLAY_MODE",11,1,"BIN","    //AUX_IDLE_DISPLAY_MODE",11,1,"BIN","    //AUX_IDLE_DISPLAY_MODE",11,1,"BIN","    //AUX_IDLE_DISPLAY_MODE",11,1,"BIN","    //AUX_IDLE_DISPLAY_MODE",11,1,"BIN","    //AUX_IDLE_DISPLAY_MODE",11,1,"BIN","    //AUX_IDLE_DISPLAY_MODE",11,1,"BIN","    //AUX_IDLE_DISPLAY_MODE",11,1,"BIN","    //AUX_IDLE_DISPLAY_MODE",11,1,"BIN","    //AUX_IDLE_DISPLAY_MODE",11,1,"BIN","    //AUX_IDLE_DISPLAY_MODE",11,1,"BIN","    //AUX_IDLE_DISPLAY_MODE",11,1,"BIN","    //AUX_IDLE_DISPLAY_MODE",11,1,"BIN","    //AUX_IDLE_DISPLAY_MODE",11,1,"BIN","    //AUX_IDLE_DISPLAY_MODE",11,1,"BIN","    //AUX_IDLE_DISPLAY_MODE",11,1,"BIN","    //AUX_IDLE_DISPLAY_MODE",11,1,"BIN","    //AUX_IDLE_DISPLAY_MODE",11,1,"BIN","    //AUX_IDLE_DISPLAY_MODE",11,1,"BIN","    //AUX_IDLE_DISPLAY_MODE",11,1,"BIN","    //AUX_IDLE_DISPLAY_MODE",11,1,"BIN","    //AUX_IDLE_DISPLAY_MODE",11,1,"BIN","    //AUX_IDLE_DISPLAY_MODE",11,1,"BIN","    //AUX_IDLE_DISPLAY_MODE",11,1,"BIN","    //AUX_IDLE_DISPLAY_MODE",11,1,"BIN","    //AUX_IDLE_DISPLAY_MODE",11,1,"BIN","    //AUX_IDLE_DISPLAY_MODE",11,1,"BIN","    //AUX_IDLE_DISPLAY_MODE",11,1,"BIN","    //AUX_IDLE_DISPLAY_MODE",11,1,"BIN","    //AUX_IDLE_DISPLAY_MODE",11,1,"BIN","    //AUX_IDLE_DISPLAY_MODE",11,1,"BIN","    //AUX_IDLE_DISPLAY_MODE",11,1,"BIN","    //AUX_IDLE_DISPLAY_MODE",11,1,"BIN","    //AUX_IDLE_DISPLAY_MODE",11,1,"BIN","    //AUX_IDLE_DISPLAY_MODE",11,1,"BIN","    //AUX_IDLE_DISPLAY_MODE",11,1,"BIN","    //AUX_IDLE_DISPLAY_MODE",11,1,"BIN","    //AUX_IDLE_DISPLAY_MODE",11,1,"BIN","    //AUX_IDLE_DISPLAY_MODE",11,1,"BIN","    //AUX_IDLE_DISPLAY_MODE",11,1,"BIN","    //AUX_IDLE_DISPLAY_MODE",11,1,"BIN","    //AUX_IDLE_DISPLAY_MODE",11,1,"BIN","    //AUX_IDLE_DISPLAY_MODE",11,1,"BIN","    //AUX_IDLE_DISPLAY_MODE",11,1,"BIN","    //AUX_IDLE_DISPLAY_MODE",11,1,"BIN","    //AUX_IDLE_DISPLAY_MODE",11,1,"BIN","    //AUX_IDLE_DISPLAY_MODE",11,1,"BIN","    //AUX_IDLE_DISPLAY_MODE",11,1,"BIN","    //AUX_IDLE_DISPLAY_MODE",11,1,"BIN","    //AUX_IDLE_DISPLAY_MODE",11,1,"BIN","    //AUX_IDLE_DISPLAY_MODE",11,1,"BIN","    //AUX_IDLE_DISPLAY_MODE",11,1,"BIN","    //AUX_IDLE_DISPLAY_MODE",11,1,"BIN","    //AUX_IDLE_DISPLAY_MODE",11,1,"BIN","    //AUX_IDLE_DISPLAY_MODE",11,1,"BIN","    //AUX_IDLE_DISPLAY_MODE",11,1,"BIN","    //AUX_IDLE_DISPLAY_MODE",11,1,"BIN","    //AUX_IDLE_DISPLAY_MODE",11,1,"BIN","    //AUX_IDLE_DISPLAY_MODE",11,1,"BIN","    //AUX_IDLE_DISPLAY_MODE",11,1,"BIN","    //AUX_IDLE_DISPLAY_MODE",11,1,"BIN","    //AUX_IDLE_DISPLAY_MODE",11,1,"BIN","    //AUX_IDLE_DISPLAY_MODE",11,1,"BIN","    //AUX_IDLE_DISPLAY_MODE",11,1,"BIN","    //AUX_IDLE_DISPLAY_MODE",11,1,"BIN","    //AUX_IDLE_DISPLAY_MODE",11,1,"BIN","    //AUX_IDLE_DISPLAY_MODE",11,1,"BIN","    //AUX_IDLE_DISPLAY_MODE",11,1,"BIN","    //AUX_IDLE_DISPLAY_MODE",11,1,"BIN","    //AUX_IDLE_DISPLAY_MODE",11,1,"BIN","    //AUX_IDLE_DISPLAY_MODE",11,1,"BIN","    //AUX_IDLE_DISPLAY_MODE",11,1,"BIN","    //AUX_IDLE_DISPLAY_MODE",11,1,"BIN","    //AUX_IDLE_DISPLAY_MODE",11,1,"BIN","    //AUX_IDLE_DISPLAY_MODE",11,1,"BIN","    //AUX_IDLE_DISPLAY_MODE",11,1,"BIN","    //AUX_IDLE_DISPLAY_MODE",11,1,"BIN","    //AUX_IDLE_DISPLAY_MODE",11,1,"BIN","    //AUX_IDLE_DISPLAY_MODE",11,1,"BIN","    //AUX_IDLE_DISPLAY_MODE",11,1,"BIN","    //AUX_IDLE_DISPLAY_MODE",11,1,"BIN","    //AUX_IDLE_DISPLAY_MODE",11,1,"BIN","    //AUX_IDLE_DISPLAY_MODE",11,1,"BIN","    //AUX_IDLE_DISPLAY_MODE",11,1,"BIN","    //AUX_IDLE_DISPLAY_MODE",11,1,"BIN","    //AUX_IDLE_DISPLAY_MODE",11,1,"BIN","    //AUX_IDLE_DISPLAY_MODE",11,1,"BIN","    //AUX_IDLE_DISPLAY_MODE",11,1,"BIN","    //AUX_IDLE_DISPLAY_MODE",11,1,"BIN","    //AUX_IDLE_DISPLAY_MODE",11,1,"BIN","    //AUX_IDLE_DISPLAY_MODE",11,1,"BIN","    //AUX_IDLE_DISPLAY_MODE",11,1,"BIN","    //AUX_IDLE_DISPLAY_MODE",11,1,"BIN","    //AUX_IDLE_DISPLAY_MODE",11,1,"BIN","    //AUX_IDLE_DISPLAY_MODE",11,1,"BIN","    //AUX_IDLE_DISPLAY_MODE",11,1,"BIN","    //AUX_IDLE_DISPLAY_MODE",11,1,"BIN","    //AUX_IDLE_DISPLAY_MODE",11,1,"BIN","    //AUX_IDLE_DISPLAY_MODE",11,1,"BIN","    //AUX_IDLE_DISPLAY_MODE",11,1,"BIN","    //AUX_IDLE_DISPLAY_MODE",11,1,"BIN","    //AUX_IDLE_DISPLAY_MODE",11,1,"BIN","    //AUX_IDLE_DISPLAY_MODE",11,1,"BIN","    //AUX_IDLE_DISPLAY_MODE",11,1,"BIN","    //AUX_IDLE_DISPLAY_MODE",11,1,"BIN","    //AUX_IDLE_DISPLAY_MODE",11,1,"BIN","    //AUX_IDLE_DISPLAY_MODE",11,1,"BIN","    //AUX_IDLE_DISPLAY_MODE",11,1,"BIN","    //AUX_IDLE_DISPLAY_MODE",11,1,"BIN","    //AUX_IDLE_DISPLAY_MODE",11,1,"BIN","    //AUX_IDLE_DISPLAY_MODE",11,1,"BIN","    //AUX_IDLE_DISPLAY_MODE",11,1,"BIN","    //AUX_IDLE_DISPLAY_MODE",11,1,"BIN","    //AUX_IDLE_DISPLAY_MODE",11,1,"BIN","    //AUX_IDLE_DISPLAY_MODE",11,1,"BIN","    //AUX_IDLE_DISPLAY_MODE",11,1,"BIN","    //AUX_IDLE_DISPLAY_MODE",11,1,"BIN","    //AUX_IDLE_DISPLAY_MODE",11,1,"BIN","    //AUX_IDLE_DISPLAY_MODE",11,1,"BIN","    //AUX_IDLE_DISPLAY_MODE",11,1,"BIN","    //AUX_IDLE_DISPLAY_MODE",11,1,"BIN","    //AUX_IDLE_DISPLAY_MODE",11,1,"BIN","    //AUX_IDLE_DISPLAY_MODE",11,1,"BIN","    //AUX_IDLE_DISPLAY_MODE",11,1,"BIN","    //AUX_IDLE_DISPLAY_MODE",11,1,"BIN","    //AUX_IDLE_DISPLAY_MODE",11,1,"BIN","    //AUX_IDLE_DISPLAY_MODE",11,1,"BIN","    //AUX_IDLE_DISPLAY_MODE",11,1,"BIN","    //AUX_IDLE_DISPLAY_MODE",11,1,"BIN","    //AUX_IDLE_DISPLAY_MODE",11,1,"BIN","    //AUX_IDLE_DISPLAY_MODE",11,1,"BIN","    //AUX_IDLE_DISPLAY_MODE",11,1,"BIN","    //AUX_IDLE_DISPLAY_MODE",11,1,"BIN","    //AUX_IDLE_DISPLAY_MODE",11,1,"BIN","    //AUX_IDLE_DISPLAY_MODE",11,1,"BIN","    //AUX_IDLE_DISPLAY_MODE",11,1,"BIN","    //AUX_IDLE_DISPLAY_MODE",11,1,"BIN","    //AUX_IDLE_DISPLAY_MODE",11,1,"BIN","    //AUX_IDLE_DISPLAY_MODE",11,1,"BIN","    //AUX_IDLE_DISPLAY_MODE",11,1,"BIN","    //AUX_IDLE_DISPLAY_MODE",11,1,"BIN","    //AUX_IDLE_DISPLAY_MODE",11,1,"BIN","    //AUX_IDLE_DISPLAY_MODE",11,1,"BIN","    //AUX_IDLE_DISPLAY_MODE",11,1,"BIN","    //AUX_IDLE_DISPLAY_MODE",11,1,"BIN","    //AUX_IDLE_DISPLAY_MODE",11,1,"BIN","    //AUX_IDLE_DISPLAY_MODE",11,1,"BIN","    //AUX_IDLE_DISPLAY_MODE",11,1,"BIN","    //AUX_IDLE_DISPLAY_MODE",11,1,"BIN","    //AUX_IDLE_DISPLAY_MODE",11,1,"BIN","    //AUX_IDLE_DISPLAY_MODE",11,1,"BIN","    //AUX_IDLE_DISPLAY_MODE",11,1,"BIN","    //AUX_IDLE_DISPLAY_MODE",11,1,"BIN","    //AUX_IDLE_DISPLAY_MODE",11,1,"BIN","    //AUX_IDLE_DISPLAY_MODE",11,1,"BIN","    //AUX_IDLE_DISPLAY_MODE",11,1,"BIN","    //AUX_IDLE_DISPLAY_MODE",11,1,"BIN","    //AUX_IDLE_DISPLAY_MODE",11,1,"BIN","    //AUX_IDLE_DISPLAY_MODE",11,1,"BIN","    //AUX_IDLE_DISPLAY_MODE",11,1,"BIN","    //AUX_IDLE_DISPLAY_MODE",11,1,"BIN","    //AUX_IDLE_DISPLAY_MODE",11,1,"BIN","    //AUX_IDLE_DISPLAY_MODE",11,1,"BIN","    //AUX_IDLE_DISPLAY_MODE",11,1,"BIN","    //AUX_IDLE_DISPLAY_MODE",11,1,"BIN","    //AUX_IDLE_DISPLAY_MODE",11,1,"BIN","    //AUX_IDLE_DISPLAY_MODE",11,1,"BIN","    //AUX_IDLE_DISPLAY_MODE",11,1,"BIN","    //AUX_IDLE_DISPLAY_MODE",11,1,"BIN","    //AUX_IDLE_DISPLAY_MODE",11,1,"BIN","    //AUX_IDLE_DISPLAY_MODE",11,1,"BIN","    //AUX_IDLE_DISPLAY_MODE",11,1,"BIN","    //AUX_IDLE_DISPLAY_MODE",11,1,"BIN","    //AUX_IDLE_DISPLAY_MODE",11,1,"BIN","    //AUX_IDLE_DISPLAY_MODE",11,1,"BIN","    //AUX_IDLE_DISPLAY_MODE",11,1,"BIN","    //AUX_IDLE_DISPLAY_MODE",11,1,"BIN","    //AUX_IDLE_DISPLAY_MODE",11,1,"BIN","    //AUX_IDLE_DISPLAY_MODE",11,1,"BIN","    //AUX_IDLE_DISPLAY_MODE",11,1,"BIN","    //AUX_IDLE_DISPLAY_MODE",11,1,"BIN","    //AUX_IDLE_DISPLAY_MODE",11,1,"BIN","    //AUX_IDLE_DISPLAY_MODE",11,1,"BIN","    //AUX_IDLE_DISPLAY_MODE",11,1,"BIN","    //AUX_IDLE_DISPLAY_MODE",11,1,"BIN","    //AUX_IDLE_DISPLAY_MODE",11,1,"BIN","    //AUX_IDLE_DISPLAY_MODE",11,1,"BIN","    //AUX_IDLE_DISPLAY_MODE",11,1,"BIN","    //AUX_IDLE_DISPLAY_MODE",11,1,"BIN","    //AUX_IDLE_DISPLAY_MODE",11,1,"BIN","    //AUX_IDLE_DISPLAY_MODE",11,1,"BIN","    //AUX_IDLE_DISPLAY_MODE",11,1,"BIN","    //AUX_IDLE_DISPLAY_MODE",11,1,"BIN","    //AUX_IDLE_DISPLAY_MODE",11,1,"BIN","    //AUX_IDLE_DISPLAY_MODE",11,1,"BIN","    //AUX_IDLE_DISPLAY_MODE",11,1,"BIN","    //AUX_IDLE_DISPLAY_MODE",11,1,"BIN","    //AUX_IDLE_DISPLAY_MODE",11,1,"BIN","    //AUX_IDLE_DISPLAY_MODE",11,1,"BIN","    //AUX_IDLE_DISPLAY_MODE",11,1,"BIN","    //AUX_IDLE_DISPLAY_MODE",11,1,"BIN","    //AUX_IDLE_DISPLAY_MODE",11,1,"BIN","    //AUX_IDLE_DISPLAY_MODE",11,1,"BIN","    //AUX_IDLE_DISPLAY_MODE",11,1,"BIN","    //AUX_IDLE_DISPLAY_MODE",11,1,"BIN","    //AUX_IDLE_DISPLAY_MODE",11,1,"BIN","    //AUX_IDLE_DISPLAY_MODE",11,1,"BIN","    //AUX_IDLE_DISPLAY_MODE",11,1,"BIN","    //AUX_IDLE_DISPLAY_MODE",11,1,"BIN","    //AUX_IDLE_DISPLAY_MODE",11,1,"BIN","    //AUX_IDLE_DISPLAY_MODE",11,1,"BIN","    //AUX_IDLE_DISPLAY_MODE",11,1,"BIN","    //AUX_IDLE_DISPLAY_MODE",11,1,"BIN","    //AUX_IDLE_DISPLAY_MODE",11,1,"BIN","    //AUX_IDLE_DISPLAY_MODE",11,1,"BIN","    //AUX_IDLE_DISPLAY_MODE",11,1,"BIN","    //AUX_IDLE_DISPLAY_MODE",11,1,"BIN","    //AUX_IDLE_DISPLAY_MODE",11,1,"BIN","    //AUX_IDLE_DISPLAY_MODE",11,1,"BIN","    //AUX_IDLE_DISPLAY_MODE",11,1,"BIN","    //AUX_IDLE_DISPLAY_MODE",11,1,"BIN","    //AUX_IDLE_DISPLAY_MODE",11,1,"BIN","    //AUX_IDLE_DISPLAY_MODE",11,1,"BIN","    //AUX_IDLE_DISPLAY_MODE",11,1,"BIN","    //AUX_IDLE_DISPLAY_MODE",11,1,"BIN","    //AUX_IDLE_DISPLAY_MODE",11,1,"BIN","    //AUX_IDLE_DISPLAY_MODE",11,1,"BIN","    //AUX_IDLE_DISPLAY_MODE",11,1,"BIN","    //AUX_IDLE_DISPLAY_MODE",11,1,"BIN","    //AUX_IDLE_DISPLAY_MODE",11,1,"BIN","    //AUX_IDLE_DISPLAY_MODE",11,1,"BIN","    //AUX_IDLE_DISPLAY_MODE",11,1,"BIN","    //AUX_IDLE_DISPLAY_MODE",11,1,"BIN","    //AUX_IDLE_DISPLAY_MODE",11,1,"BIN","    //AUX_IDLE_DISPLAY_MODE",11,1,"BIN","    //AUX_IDLE_DISPLAY_MODE",11,1,"BIN","    //AUX_IDLE_DISPLAY_MODE",11,1,"BIN","    //AUX_IDLE_DISPLAY_MODE",11,1,"BIN","    //AUX_IDLE_DISPLAY_MODE",11,1,"BIN","    //AUX_IDLE_DISPLAY_MODE",11,1,"BIN","    //AUX_IDLE_DISPLAY_MODE",11,1,"BIN","    //AUX_IDLE_DISPLAY_MODE",11,1,"BIN","    //AUX_IDLE_DISPLAY_MODE",11,1,"BIN","    //AUX_IDLE_DISPLAY_MODE",11,1,"BIN","    //AUX_IDLE_DISPLAY_MODE",11,1,"BIN","    //AUX_IDLE_DISPLAY_MODE",11,1,"BIN","    //AUX_IDLE_DISPLAY_MODE",11,1,"BIN","    //AUX_IDLE_DISPLAY_MODE",11,1,"BIN","    //AUX_IDLE_DISPLAY_MODE",11,1,"BIN","    //AUX_IDLE_DISPLAY_MODE",11,1,"BIN","    //AUX_IDLE_DISPLAY_MODE",11,1,"BIN","    //AUX_IDLE_DISPLAY_MODE",11,1,"BIN","    //AUX_IDLE_DISPLAY_MODE",11,1,"BIN","    //AUX_IDLE_DISPLAY_MODE",11,1,"BIN","    //AUX_IDLE_DISPLAY_MODE",11,1,"BIN","    //AUX_IDLE_DISPLAY_MODE",11,1,"BIN","    //AUX_IDLE_DISPLAY_MODE",11,1,"BIN","    //AUX_IDLE_DISPLAY_MODE",11,1,"BIN","    //AUX_IDLE_DISPLAY_MODE",11,1,"BIN","    //AUX_IDLE_DISPLAY_MODE",11,1,"BIN","    //AUX_IDLE_DISPLAY_MODE",11,1,"BIN","    //AUX_IDLE_DISPLAY_MODE",11,1,"BIN","    //AUX_IDLE_DISPLAY_MODE",11,1,"BIN","    //AUX_IDLE_DISPLAY_MODE",11,1,"BIN","    //AUX_IDLE_DISPLAY_MODE",11,1,"BIN","    //AUX_IDLE_DISPLAY_MODE",11,1,"BIN","    //AUX_IDLE_DISPLAY_MODE",11,1,"BIN","    //AUX_IDLE_DISPLAY_MODE",11,1,"BIN","    //AUX_IDLE_DISPLAY_MODE",11,1,"BIN","    //AUX_IDLE_DISPLAY_MODE",11,1,"BIN","    //AUX_IDLE_DISPLAY_MODE",11,1,"BIN","    //AUX_IDLE_DISPLAY_MODE",11,1,"BIN","    //AUX_IDLE_DISPLAY_MODE",11,1,"BIN","    //AUX_IDLE_DISPLAY_MODE",11,1,"BIN","    //AUX_IDLE_DISPLAY_MODE",11,1,"BIN","    //AUX_IDLE_DISPLAY_MODE",11,1,"BIN","    //AUX_IDLE_DISPLAY_MODE",11,1,"BIN","    //AUX_IDLE_DISPLAY_MODE",11,1,"BIN","    //AUX_IDLE_DISPLAY_MODE",11,1,"BIN","    //AUX_IDLE_DISPLAY_MODE",11,1,"BIN","    //AUX_IDLE_DISPLAY_MODE",11,1,"BIN","    //AUX_IDLE_DISPLAY_MODE",11,1,"BIN","    //AUX_IDLE_DISPLAY_MODE",11,1,"BIN","    //AUX_IDLE_DISPLAY_MODE",11,1,"BIN","    //AUX_IDLE_DISPLAY_MODE",11,1,"BIN","    //AUX_IDLE_DISPLAY_MODE",11,1,"BIN","    //AUX_IDLE_DISPLAY_MODE",11,1,"BIN","    //AUX_IDLE_DISPLAY_MODE",11,1,"BIN","    //AUX_IDLE_DISPLAY_MODE",11,1,"BIN","    //AUX_IDLE_DISPLAY_MODE",11,1,"BIN","    //AUX_IDLE_DISPLAY_MODE",11,1,"BIN","    //AUX_IDLE_DISPLAY_MODE",11,1,"BIN","    //AUX_IDLE_DISPLAY_MODE",11,1,"BIN","    //AUX_IDLE_DISPLAY_MODE",11,1,"BIN","    //AUX_IDLE_DISPLAY_MODE",11,1,"BIN","    //AUX_IDLE_DISPLAY_MODE",11,1,"BIN","    //AUX_IDLE_DISPLAY_MODE",11,1,"BIN","    //AUX_IDLE_DISPLAY_MODE",11,1,"BIN","    //AUX_IDLE_DISPLAY_MODE",11,1,"BIN","    //AUX_IDLE_DISPLAY_MODE",11,1,"BIN","    //AUX_IDLE_DISPLAY_MODE",11,1,"BIN","    //AUX_IDLE_DISPLAY_MODE",11,1,"BIN","    //AUX_IDLE_DISPLAY_MODE",11,1,"BIN","    //AUX_IDLE_DISPLAY_MODE",11,1,"BIN","    //AUX_IDLE_DISPLAY_MODE",11,1,"BIN","    //AUX_IDLE_DISPLAY_MODE",11,1,"BIN","    //AUX_IDLE_DISPLAY_MODE",11,1,"BIN","    //AUX_IDLE_DISPLAY_MODE",11,1,"BIN","    //AUX_IDLE_DISPLAY_MODE",11,1,"BIN","    //AUX_IDLE_DISPLAY_MODE",11,1,"BIN","    //AUX_IDLE_DISPLAY_MODE",11,1,"BIN","    //AUX_IDLE_DISPLAY_MODE",11,1,"BIN","    //AUX_IDLE_DISPLAY_MODE",11,1,"BIN","    //AUX_IDLE_DISPLAY_MODE",11,1,"BIN","    //AUX_IDLE_DISPLAY_MODE",11,1,"BIN","    //AUX_IDLE_DISPLAY_MODE",11,1,"BIN","    //AUX_IDLE_DISPLAY_MODE",11,1,"BIN","    //AUX_IDLE_DISPLAY_MODE",11,1,"BIN","    //AUX_IDLE_DISPLAY_MODE",11,1,"BIN","    //AUX_IDLE_DISPLAY_MODE",11,1,"BIN","    //AUX_IDLE_DISPLAY_MODE",11,1,"BIN","    //AUX_IDLE_DISPLAY_MODE",11,1,"BIN","    //AUX_IDLE_DISPLAY_MODE",11,1,"BIN","    //AUX_IDLE_DISPLAY_MODE",11,1,"BIN","    //AUX_IDLE_DISPLAY_MODE",11,1,"BIN","    //AUX_IDLE_DISPLAY_MODE",11,1,"BIN","    //AUX_IDLE_DISPLAY_MODE",11,1,"BIN","    //AUX_IDLE_DISPLAY_MODE",11,1,"BIN","    //AUX_IDLE_DISPLAY_MODE",11,1,"BIN","    //AUX_IDLE_DISPLAY_MODE",11,1,"BIN","    //AUX_IDLE_DISPLAY_MODE",11,1,"BIN","    //AUX_IDLE_DISPLAY_MODE",11,1,"BIN","    //AUX_IDLE_DISPLAY_MODE",11,1,"BIN","    //AUX_IDLE_DISPLAY_MODE",11,1,"BIN","    //AUX_IDLE_DISPLAY_MODE",11,1,"BIN","    //AUX_IDLE_DISPLAY_MODE",11,1,"BIN","    //AUX_IDLE_DISPLAY_MODE",11,1,"BIN","    //AUX_IDLE_DISPLAY_MODE",11,1,"BIN","    //AUX_IDLE_DISPLAY_MODE",11,1,"BIN","    //AUX_IDLE_DISPLAY_MODE",11,1,"BIN","    //AUX_IDLE_DISPLAY_MODE",11,1,"BIN","    //AUX_IDLE_DISPLAY_MODE",11,1,"BIN","    //AUX_IDLE_DISPLAY_MODE",11,1,"BIN","    //AUX_IDLE_DISPLAY_MODE",11,1,"BIN","    //AUX_IDLE_DISPLAY_MODE",11,1,"BIN","    //AUX_IDLE_DISPLAY_MODE",11,1,"BIN","    //AUX_IDLE_DISPLAY_MODE",11,1,"BIN","    //AUX_IDLE_DISPLAY_MODE",11,1,"BIN","    //AUX_IDLE_DISPLAY_MODE",11,1,"BIN","    //AUX_IDLE_DISPLAY_MODE",11,1,"BIN","    //AUX_IDLE_DISPLAY_MODE",11,1,"BIN","    //AUX_IDLE_DISPLAY_MODE",11,1,"BIN","    //AUX_IDLE_DISPLAY_MODE",11,1,"BIN","    //AUX_IDLE_DISPLAY_MODE",11,1,"BIN","    //AUX_IDLE_DISPLAY_MODE",11,1,"BIN","    //AUX_IDLE_DISPLAY_MODE",11,1,"BIN","    //AUX_IDLE_DISPLAY_MODE",11,1,"BIN","    //AUX_IDLE_DISPLAY_MODE",11,1,"BIN","    //AUX_IDLE_DISPLAY_MODE",11,1,"BIN","    //AUX_IDLE_DISPLAY_MODE",11,1,"BIN","    //AUX_IDLE_DISPLAY_MODE",11,1,"BIN","    //AUX_IDLE_DISPLAY_MODE",11,1,"BIN","    //AUX_IDLE_DISPLAY_MODE",11,1,"BIN","    //AUX_IDLE_DISPLAY_MODE",11,1,"BIN","    //AUX_IDLE_DISPLAY_MODE",11,1,"BIN","    //AUX_IDLE_DISPLAY_MODE",11,1,"BIN","    //AUX_IDLE_DISPLAY_MODE",11,1,"BIN","    //AUX_IDLE_DISPLAY_MODE",11,1,"BIN","    //AUX_IDLE_DISPLAY_MODE",11,1,"BIN","    //AUX_IDLE_DISPLAY_MODE",11,1,"BIN","    //AUX_IDLE_DISPLAY_MODE",11,1,"BIN","    //AUX_IDLE_DISPLAY_MODE",11,1,"BIN","    //AUX_IDLE_DISPLAY_MODE",11,1,"BIN","    //AUX_IDLE_DISPLAY_MODE",11,1,"BIN","    //AUX_IDLE_DISPLAY_MODE",11,1,"BIN","    //AUX_IDLE_DISPLAY_MODE",11,1,"BIN","    //AUX_IDLE_DISPLAY_MODE",11,1,"BIN","    //AUX_IDLE_DISPLAY_MODE",11,1,"BIN","    //AUX_IDLE_DISPLAY_MODE",11,1,"BIN","    //AUX_IDLE_DISPLAY_MODE",11,1,"BIN","    //AUX_IDLE_DISPLAY_MODE",11,1,"BIN","    //AUX_IDLE_DISPLAY_MODE",11,1,"BIN","    //AUX_IDLE_DISPLAY_MODE",11,1,"BIN","    //AUX_IDLE_DISPLAY_MODE",11,1,"BIN","    //AUX_IDLE_DISPLAY_MODE",11,1,"BIN","    //AUX_IDLE_DISPLAY_MODE",11,1,"BIN","    //AUX_IDLE_DISPLAY_MODE",11,1,"BIN","    //AUX_IDLE_DISPLAY_MODE",11,1,"BIN","    //AUX_IDLE_DISPLAY_MODE",11,1,"BIN","    //AUX_IDLE_DISPLAY_MODE",11,1,"BIN","    //AUX_IDLE_DISPLAY_MODE",11,1,"BIN","    //AUX_IDLE_DISPLAY_MODE",11,1,"BIN","    //AUX_IDLE_DISPLAY_MODE",11,1,"BIN","    //AUX_IDLE_DISPLAY_MODE",11,1,"BIN","    //AUX_IDLE_DISPLAY_MODE",11,1,"BIN","    //AUX_IDLE_DISPLAY_MODE",11,1,"BIN","    //AUX_IDLE_DISPLAY_MODE",11,1,"BIN","    //AUX_IDLE_DISPLAY_MODE",11,1,"BIN","    //AUX_IDLE_DISPLAY_MODE",11,1,"BIN","    //AUX_IDLE_DISPLAY_MODE",11,1,"BIN","    //AUX_IDLE_DISPLAY_MODE",11,1,"BIN","    //AUX_IDLE_DISPLAY_MODE",11,1,"BIN","    //AUX_IDLE_DISPLAY_MODE",11,1,"BIN","    //AUX_IDLE_DISPLAY_MODE",11,1,"BIN","    //AUX_IDLE_DISPLAY_MODE",11,1,"BIN","    //AUX_IDLE_DISPLAY_MODE",11,1,"BIN","    //AUX_IDLE_DISPLAY_MODE",11,1,"BIN","    //AUX_IDLE_DISPLAY_MODE",11,1,"BIN","    //AUX_IDLE_DISPLAY_MODE",11,1,"BIN","    //AUX_IDLE_DISPLAY_MODE",11,1,"BIN","    //AUX_IDLE_DISPLAY_MODE",11,1,"BIN","    //AUX_IDLE_DISPLAY_MODE",11,1,"BIN","    //AUX_IDLE_DISPLAY_MODE",11,1,"BIN","    //AUX_IDLE_DISPLAY_MODE",11,1,"BIN","    //AUX_IDLE_DISPLAY_MODE",11,1,"BIN","    //AUX_IDLE_DISPLAY_MODE",11,1,"BIN","    //AUX_IDLE_DISPLAY_MODE",11,1,"BIN","    //AUX_IDLE_DISPLAY_MODE",11,1,"BIN","    //AUX_IDLE_DISPLAY_MODE",11,1,"BIN","    //AUX_IDLE_DISPLAY_MODE",11,1,"BIN","    //AUX_IDLE_DISPLAY_MODE",11,1,"BIN","    //AUX_IDLE_DISPLAY_MODE",11,1,"BIN","    //AUX_IDLE_DISPLAY_MODE",11,1,"BIN","    //AUX_IDLE_DISPLAY_MODE",11,1,"BIN","    //AUX_IDLE_DISPLAY_MODE",11,1,"BIN","    //AUX_IDLE_DISPLAY_MODE",11,1,"BIN","    //AUX_IDLE_DISPLAY_MODE",11,1,"BIN","    //AUX_IDLE_DISPLAY_MODE",11,1,"BIN","    //AUX_IDLE_DISPLAY_MODE",11,1,"BIN","    //AUX_IDLE_DISPLAY_MODE",11,1,"BIN","    //AUX_IDLE_DISPLAY_MODE",11,1,"BIN","    //AUX_IDLE_DISPLAY_MODE",11,1,"BIN","    //AUX_IDLE_DISPLAY_MODE",11,1,"BIN","    //AUX_IDLE_DISPLAY_MODE",11,1,"BIN","    //AUX_IDLE_DISPLAY_MODE",11,1,"BIN","    //AUX_IDLE_DISPLAY_MODE",11,1,"BIN","    //AUX_IDLE_DISPLAY_MODE",11,1,"BIN","    //AUX_IDLE_DISPLAY_MODE",11,1,"BIN","    //AUX_IDLE_DISPLAY_MODE",11,1,"BIN","    //AUX_IDLE_DISPLAY_MODE",11,1,"BIN","    //AUX_IDLE_DISPLAY_MODE",11,1,"BIN","    //AUX_IDLE_DISPLAY_MODE",11,1,"BIN","    //AUX_IDLE_DISPLAY_MODE",11,1,"BIN","    //AUX_IDLE_DISPLAY_MODE",11,1,"BIN","    //AUX_IDLE_DISPLAY_MODE",11,1,"BIN","    //AUX_IDLE_DISPLAY_MODE",11,1,"BIN","    //AUX_IDLE_DISPLAY_MODE",11,1,"BIN","    //AUX_IDLE_DISPLAY_MODE",11,1,"BIN","    //AUX_IDLE_DISPLAY_MODE",11,1,"BIN","    //AUX_IDLE_DISPLAY_MODE",11,1,"BIN","    //AUX_IDLE_DISPLAY_MODE",11,1,"BIN","    //AUX_IDLE_DISPLAY_MODE",11,1,"BIN","    //AUX_IDLE_DISPLAY_MODE",11,1,"BIN","    //AUX_IDLE_DISPLAY_MODE",11,1,"BIN","    //AUX_IDLE_DISPLAY_MODE",11,1,"BIN","    //AUX_IDLE_DISPLAY_MODE",11,1,"BIN","    //AUX_IDLE_DISPLAY_MODE",11,1,"BIN","    //AUX_IDLE_DISPLAY_MODE",11,1,"BIN","    //AUX_IDLE_DISPLAY_MODE",11,1,"BIN","    //AUX_IDLE_DISPLAY_MODE",11,1,"BIN","    //AUX_IDLE_DISPLAY_MODE",11,1,"BIN","    //AUX_IDLE_DISPLAY_MODE",11,1,"BIN","    //AUX_IDLE_DISPLAY_MODE",11,1,"BIN","    //AUX_IDLE_DISPLAY_MODE",11,1,"BIN","    //AUX_IDLE_DISPLAY_MODE",11,1,"BIN","    //AUX_IDLE_DISPLAY_MODE",11,1,"BIN","    //AUX_IDLE_DISPLAY_MODE",11,1,"BIN","    //AUX_IDLE_DISPLAY_MODE",11,1,"BIN","    //AUX_IDLE_DISPLAY_MODE",11,1,"BIN","    //AUX_IDLE_DISPLAY_MODE",11,1,"BIN","    //AUX_IDLE_DISPLAY_MODE",11,1,"BIN","    //AUX_IDLE_DISPLAY_MODE",11,1,"BIN","    //AUX_IDLE_DISPLAY_MODE",11,1,"BIN","    //AUX_IDLE_DISPLAY_MODE",11,1,"BIN","    //AUX_IDLE_DISPLAY_MODE",11,1,"BIN","    //AUX_IDLE_DISPLAY_MODE",11,1,"BIN","    //AUX_IDLE_DISPLAY_MODE",11,1,"BIN","    //AUX_IDLE_DISPLAY_MODE",11,1,"BIN","    //AUX_IDLE_DISPLAY_MODE",11,1,"BIN","    //AUX_IDLE_DISPLAY_MODE",11,1,"BIN","    //AUX_IDLE_DISPLAY_MODE",11,1,"BIN","    //AUX_IDLE_DISPLAY_MODE",11,1,"BIN","    //AUX_IDLE_DISPLAY_MODE",11,1,"BIN","    //AUX_IDLE_DISPLAY_MODE",11,1,"BIN","    //AUX_IDLE_DISPLAY_MODE",11,1,"BIN","    //AUX_IDLE_DISPLAY_MODE",11,1,"BIN","    //AUX_IDLE_DISPLAY_MODE",11,1,"BIN","    //AUX_IDLE_DISPLAY_MODE",11,1,"BIN","    //AUX_IDLE_DISPLAY_MODE",11,1,"BIN","    //AUX_IDLE_DISPLAY_MODE",11,1,"BIN","    //AUX_IDLE_DISPLAY_MODE",11,1,"BIN","    //AUX_IDLE_DISPLAY_MODE",11,1,"BIN","    //AUX_IDLE_DISPLAY_MODE",11,1,"BIN","    //AUX_IDLE_DISPLAY_MODE",11,1,"BIN","    //AUX_IDLE_DISPLAY_MODE",11,1,"BIN","    //AUX_IDLE_DISPLAY_MODE",11,1,"BIN","    //AUX_IDLE_DISPLAY_MODE",11,1,"BIN","    //AUX_IDLE_DISPLAY_MODE",11,1,"BIN","    //AUX_IDLE_DISPLAY_MODE",11,1,"BIN","    //AUX_IDLE_DISPLAY_MODE",11,1,"BIN","    //AUX_IDLE_DISPLAY_MODE",11,1,"BIN","    //AUX_IDLE_DISPLAY_MODE",11,1,"BIN","    //AUX_IDLE_DISPLAY_MODE",11,1,"BIN","    //AUX_IDLE_DISPLAY_MODE",11,1,"BIN","    //AUX_IDLE_DISPLAY_MODE",11,1,"BIN","    //AUX_IDLE_DISPLAY_MODE",11,1,"BIN","    //AUX_IDLE_DISPLAY_MODE",11,1,"BIN","    //AUX_IDLE_DISPLAY_MODE",11,1,"BIN","    //AUX_IDLE_DISPLAY_MODE",11,1,"BIN","    //AUX_IDLE_DISPLAY_MODE",11,1,"BIN","    //AUX_IDLE_DISPLAY_MODE",11,1,"BIN","    //AUX_IDLE_DISPLAY_MODE",11,1,"BIN","    //AUX_IDLE_DISPLAY_MODE",11,1,"BIN","    //AUX_IDLE_DISPLAY_MODE",11,1,"BIN","    //AUX_IDLE_DISPLAY_MODE",11,1,"BIN","    //AUX_IDLE_DISPLAY_MODE",11,1,"BIN","    //AUX_IDLE_DISPLAY_MODE",11,1,"BIN","    //AUX_IDLE_DISPLAY_MODE",11,1,"BIN","    //AUX_IDLE_DISPLAY_MODE",11,1,"BIN","    //AUX_IDLE_DISPLAY_MODE",11,1,"BIN","    //AUX_IDLE_DISPLAY_MODE",11,1,"BIN","    //AUX_IDLE_DISPLAY_MODE",11,1,"BIN","    //AUX_IDLE_DISPLAY_MODE",11,1,"BIN","    //AUX_IDLE_DISPLAY_MODE",11,1,"BIN","    //AUX_IDLE_DISPLAY_MODE",11,1,"BIN","    //AUX_IDLE_DISPLAY_MODE",11,1,"BIN","    //AUX_IDLE_DISPLAY_MODE",11,1,"BIN","    //AUX_IDLE_DISPLAY_MODE",11,1,"BIN","    //AUX_IDLE_DISPLAY_MODE",11,1,"BIN","    //AUX_IDLE_DISPLAY_MODE",11,1,"BIN","    //AUX_IDLE_DISPLAY_MODE",11,1,"BIN","    //AUX_IDLE_DISPLAY_MODE",11,1,"BIN","    //AUX_IDLE_DISPLAY_MODE",11,1,"BIN","    //AUX_IDLE_DISPLAY_MODE",11,1,"BIN","    //AUX_IDLE_DISPLAY_MODE",11,1,"BIN","    //AUX_IDLE_DISPLAY_MODE",11,1,"BIN","    //AUX_IDLE_DISPLAY_MODE",11,1,"BIN","    //AUX_IDLE_DISPLAY_MODE",11,1,"BIN","    //AUX_IDLE_DISPLAY_MODE",11,1,"BIN","    //AUX_IDLE_DISPLAY_MODE",11,1,"BIN","    //AUX_IDLE_DISPLAY_MODE",11,1,"BIN","    //AUX_IDLE_DISPLAY_MODE",11,1,"BIN","    //AUX_IDLE_DISPLAY_MODE",11,1,"BIN","    //AUX_IDLE_DISPLAY_MODE",11,1,"BIN","    //AUX_IDLE_DISPLAY_MODE",11,1,"BIN","    //AUX_IDLE_DISPLAY_MODE",11,1,"BIN","    //AUX_IDLE_DISPLAY_MODE",11,1,"BIN","    //AUX_IDLE_DISPLAY_MODE",11,1,"BIN","    //AUX_IDLE_DISPLAY_MODE",11,1,"BIN","    //AUX_IDLE_DISPLAY_MODE",11,1,"BIN","    //AUX_IDLE_DISPLAY_MODE",11,1,"BIN","    //AUX_IDLE_DISPLAY_MODE",11,1,"BIN","    //AUX_IDLE_DISPLAY_MODE",11,1,"BIN","    //AUX_IDLE_DISPLAY_MODE",11,1,"BIN","    //AUX_IDLE_DISPLAY_MODE",11,1,"BIN","    //AUX_IDLE_DISPLAY_MODE",11,1,"BIN","    //AUX_IDLE_DISPLAY_MODE",11,1,"BIN","    //AUX_IDLE_DISPLAY_MODE",11,1,"BIN","    //AUX_IDLE_DISPLAY_MODE",11,1,"BIN","    //AUX_IDLE_DISPLAY_MODE",11,1,"BIN","    //AUX_IDLE_DISPLAY_MODE",11,1,"BIN","    //AUX_IDLE_DISPLAY_MODE",11,1,"BIN","    //AUX_IDLE_DISPLAY_MODE",11,1,"BIN","    //AUX_IDLE_DISPLAY_MODE",11,1,"BIN","    //AUX_IDLE_DISPLAY_MODE",11,1,"BIN","    //AUX_IDLE_DISPLAY_MODE",11,1,"BIN","    //AUX_IDLE_DISPLAY_MODE",11,1,"BIN","    //AUX_IDLE_DISPLAY_MODE",11,1,"BIN","    //AUX_IDLE_DISPLAY_MODE",11,1,"BIN","    //AUX_IDLE_DISPLAY_MODE",11,1,"BIN","    //AUX_IDLE_DISPLAY_MODE",11,1,"BIN","    //AUX_IDLE_DISPLAY_MODE",11,1,"BIN","    //AUX_IDLE_DISPLAY_MODE",11,1,"BIN","    //AUX_IDLE_DISPLAY_MODE",11,1,"BIN","    //AUX_IDLE_DISPLAY_MODE",11,1,"BIN","    //AUX_IDLE_DISPLAY_MODE",11,1,"BIN","    //AUX_IDLE_DISPLAY_MODE",11,1,"BIN","    //AUX_IDLE_DISPLAY_MODE",11,1,"BIN","    //AUX_IDLE_DISPLAY_MODE",11,1,"BIN","    //AUX_IDLE_DISPLAY_MODE",11,1,"BIN","    //AUX_IDLE_DISPLAY_MODE",11,1,"BIN","    //AUX_IDLE_DISPLAY_MODE",11,1,"BIN","    //AUX_IDLE_DISPLAY_MODE",11,1,"BIN","    //AUX_IDLE_DISPLAY_MODE",11,1,"BIN","    //AUX_IDLE_DISPLAY_MODE",11,1,"BIN","    //AUX_IDLE_DISPLAY_MODE",11,1,"BIN","    //AUX_IDLE_DISPLAY_MODE",11,1,"BIN","    //AUX_IDLE_DISPLAY_MODE",11,1,"BIN","    //AUX_IDLE_DISPLAY_MODE",11,1,"BIN","    //AUX_IDLE_DISPLAY_MODE",11,1,"BIN","    //AUX_IDLE_DISPLAY_MODE",11,1,"BIN","    //AUX_IDLE_DISPLAY_MODE",11,1,"BIN","    //AUX_IDLE_DISPLAY_MODE",11,1,"BIN","    //AUX_IDLE_DISPLAY_MODE",11,1,"BIN","    //AUX_IDLE_DISPLAY_MODE",11,1,"BIN","    //AUX_IDLE_DISPLAY_MODE",11,1,"BIN","    //AUX_IDLE_DISPLAY_MODE",11,1,"BIN","    //AUX_IDLE_DISPLAY_MODE",11,1,"BIN","    //AUX_IDLE_DISPLAY_MODE",11,1,"BIN","    //AUX_IDLE_DISPLAY_MODE",11,1,"BIN","    //AUX_IDLE_DISPLAY_MODE",11,1,"BIN","    //AUX_IDLE_DISPLAY_MODE",11,1,"BIN","    //AUX_IDLE_DISPLAY_MODE",11,1,"BIN","    //AUX_IDLE_DISPLAY_MODE",11,1,"BIN","    //AUX_IDLE_DISPLAY_MODE",11,1,"BIN","    //AUX_IDLE_DISPLAY_MODE",11,1,"BIN","    //AUX_IDLE_DISPLAY_MODE",11,1,"BIN","    //AUX_IDLE_DISPLAY_MODE",11,1,"BIN","    //AUX_IDLE_DISPLAY_MODE",11,1,"BIN","    //AUX_IDLE_DISPLAY_MODE",11,1,"BIN","    //AUX_IDLE_DISPLAY_MODE",11,1,"BIN","    //AUX_IDLE_DISPLAY_MODE",11,1,"BIN","    //AUX_IDLE_DISPLAY_MODE",11,1,"BIN","    //AUX_IDLE_DISPLAY_MODE",11,1,"BIN","    //AUX_IDLE_DISPLAY_MODE",11,1,"BIN","    //AUX_IDLE_DISPLAY_MODE",11,1,"BIN","    //AUX_IDLE_DISPLAY_MODE",11,1,"BIN","    //AUX_IDLE_DISPLAY_MODE",11,1,"BIN","    //AUX_IDLE_DISPLAY_MODE",11,1,"BIN","    //AUX_IDLE_DISPLAY_MODE",11,1,"BIN","    //AUX_IDLE_DISPLAY_MODE",11,1,"BIN","    //AUX_IDLE_DISPLAY_MODE",11,1,"BIN","    //AUX_IDLE_DISPLAY_MODE",11,1,"BIN","    //AUX_IDLE_DISPLAY_MODE",11,1,"BIN","    //AUX_IDLE_DISPLAY_MODE",11,1,"BIN","    //AUX_IDLE_DISPLAY_MODE",11,1,"BIN","    //AUX_IDLE_DISPLAY_MODE",11,1,"BIN","    //AUX_IDLE_DISPLAY_MODE",11,1,"BIN","    //AUX_IDLE_DISPLAY_MODE",11,1,"BIN","    //AUX_IDLE_DISPLAY_MODE",11,1,"BIN","    //AUX_IDLE_DISPLAY_MODE",11,1,"BIN","    //AUX_IDLE_DISPLAY_MODE",11,1,"BIN","    //AUX_IDLE_DISPLAY_MODE",11,1,"BIN","    //AUX_IDLE_DISPLAY_MODE",11,1,"BIN","    //AUX_IDLE_DISPLAY_MODE",11,1,"BIN","    //AUX_IDLE_DISPLAY_MODE",11,1,"BIN","    //AUX_IDLE_DISPLAY_MODE",11,1,"BIN","    //AUX_IDLE_DISPLAY_MODE",11,1,"BIN","    //AUX_IDLE_DISPLAY_MODE",11,1,"BIN","    //AUX_IDLE_DISPLAY_MODE",11,1,"BIN","    //AUX_IDLE_DISPLAY_MODE",11,1,"BIN","    //AUX_IDLE_DISPLAY_MODE",11,1,"BIN","    //AUX_IDLE_DISPLAY_MODE",11,1,"BIN","    //AUX_IDLE_DISPLAY_MODE",11,1,"BIN","    //AUX_IDLE_DISPLAY_MODE",11,1,"BIN","    //AUX_IDLE_DISPLAY_MODE",11,1,"BIN","    //AUX_IDLE_DISPLAY_MODE",11,1,"BIN","    //AUX_IDLE_DISPLAY_MODE",11,1,"BIN","    //AUX_IDLE_DISPLAY_MODE",11,1,"BIN","    //AUX_IDLE_DISPLAY_MODE",11,1,"BIN","    //AUX_IDLE_DISPLAY_MODE",11,1,"BIN","    //AUX_IDLE_DISPLAY_MODE",11,1,"BIN","    //AUX_IDLE_DISPLAY_MODE",11,1,"BIN","    //AUX_IDLE_DISPLAY_MODE",11,1,"BIN","    //AUX_IDLE_DISPLAY_MODE",11,1,"BIN","    //AUX_IDLE_DISPLAY_MODE",11,1,"BIN","    //AUX_IDLE_DISPLAY_MODE",11,1,"BIN","    //AUX_IDLE_DISPLAY_MODE",11,1,"BIN","    //AUX_IDLE_DISPLAY_MODE",11,1,"BIN","    //AUX_IDLE_DISPLAY_MODE",11,1,"BIN","    //AUX_IDLE_DISPLAY_MODE",11,1,"BIN","    //AUX_IDLE_DISPLAY_MODE",11,1,"BIN","    //AUX_IDLE_DISPLAY_MODE",11,1,"BIN","    //AUX_IDLE_DISPLAY_MODE",11,1,"BIN","    //AUX_IDLE_DISPLAY_MODE",11,1,"BIN","    //AUX_IDLE_DISPLAY_MODE",11,1,"BIN","    //AUX_IDLE_DISPLAY_MODE",11,1,"BIN","    //AUX_IDLE_DISPLAY_MODE",11,1,"BIN","    //AUX_IDLE_DISPLAY_MODE",11,1,"BIN","    //AUX_IDLE_DISPLAY_MODE",11,1,"BIN","    //AUX_IDLE_DISPLAY_MODE",11,1,"BIN","    //AUX_IDLE_DISPLAY_MODE",11,1,"BIN","    //AUX_IDLE_DISPLAY_MODE",11,1,"BIN","    //AUX_IDLE_DISPLAY_MODE",11,1,"BIN","    //AUX_IDLE_DISPLAY_MODE",11,1,"BIN","    //AUX_IDLE_DISPLAY_MODE",11,1,"BIN","    //AUX_IDLE_DISPLAY_MODE",11,1,"BIN","    //AUX_IDLE_DISPLAY_MODE",11,1,"BIN","    //AUX_IDLE_DISPLAY_MODE",11,1,"BIN","    //AUX_IDLE_DISPLAY_MODE",11,1,"BIN","    //AUX_IDLE_DISPLAY_MODE",11,1,"BIN","    //AUX_IDLE_DISPLAY_MODE",11,1,"BIN","    //AUX_IDLE_DISPLAY_MODE",11,1,"BIN","    //AUX_IDLE_DISPLAY_MODE",11,1,"BIN","    //AUX_IDLE_DISPLAY_MODE",11,1,"BIN","    //AUX_IDLE_DISPLAY_MODE",11,1,"BIN","    //AUX_IDLE_DISPLAY_MODE",11,1,"BIN","    //AUX_IDLE_DISPLAY_MODE",11,1,"BIN","    //AUX_IDLE_DISPLAY_MODE",11,1,"BIN","    //AUX_IDLE_DISPLAY_MODE",11,1,"BIN","    //AUX_IDLE_DISPLAY_MODE",11,1,"BIN","    //AUX_IDLE_DISPLAY_MODE",11,1,"BIN","    //AUX_IDLE_DISPLAY_MODE",11,1,"BIN","    //AUX_IDLE_DISPLAY_MODE",11,1,"BIN","    //AUX_IDLE_DISPLAY_MODE",11,1,"BIN","    //AUX_IDLE_DISPLAY_MODE",11,1,"BIN","    //AUX_IDLE_DISPLAY_MODE",11,1,"BIN","    //AUX_IDLE_DISPLAY_MODE",11,1,"BIN","    //AUX_IDLE_DISPLAY_MODE",11,1,"BIN","    //AUX_IDLE_DISPLAY_MODE",11,1,"BIN","    //AUX_IDLE_DISPLAY_MODE",11,1,"BIN","    //AUX_IDLE_DISPLAY_MODE",11,1,"BIN","    //AUX_IDLE_DISPLAY_MODE",11,1,"BIN","    //AUX_IDLE_DISPLAY_MODE",11,1,"BIN","    //AUX_IDLE_DISPLAY_MODE",11,1,"BIN","    //AUX_IDLE_DISPLAY_MODE",11,1,"BIN","    //AUX_IDLE_DISPLAY_MODE",11,1,"BIN","    //AUX_IDLE_DISPLAY_MODE",11,1,"BIN","    //AUX_IDLE_DISPLAY_MODE",11,1,"BIN","    //AUX_IDLE_DISPLAY_MODE",11,1,"BIN","    //AUX_IDLE_DISPLAY_MODE",11,1,"BIN","    //AUX_IDLE_DISPLAY_MODE",11,1,"BIN","    //AUX_IDLE_DISPLAY_MODE",11,1,"BIN","    //AUX_IDLE_DISPLAY_MODE",11,1,"BIN","    //AUX_IDLE_DISPLAY_MODE",11,1,"BIN","    //AUX_IDLE_DISPLAY_MODE",11,1,"BIN","    //AUX_IDLE_DISPLAY_MODE",11,1,"BIN","    //AUX_IDLE_DISPLAY_MODE",11,1,"BIN","    //AUX_IDLE_DISPLAY_MODE",11,1,"BIN","    //AUX_IDLE_DISPLAY_MODE",11,1,"BIN","    //AUX_IDLE_DISPLAY_MODE",11,1,"BIN","    //AUX_IDLE_DISPLAY_MODE",11,1,"BIN","    //AUX_IDLE_DISPLAY_MODE",11,1,"BIN","    //AUX_IDLE_DISPLAY_MODE",11,1,"BIN","    //AUX_IDLE_DISPLAY_MODE",11,1,"BIN","    //AUX_IDLE_DISPLAY_MODE",11,1,"BIN","    //AUX_IDLE_DISPLAY_MODE",11,1,"BIN","    //AUX_IDLE_DISPLAY_MODE",11,1,"BIN","    //AUX_IDLE_DISPLAY_MODE",11,1,"BIN","    //AUX_IDLE_DISPLAY_MODE",11,1,"BIN","    //AUX_IDLE_DISPLAY_MODE",11,1,"BIN","    //AUX_IDLE_DISPLAY_MODE",11,1,"BIN","    //AUX_IDLE_DISPLAY_MODE",11,1,"BIN","    //AUX_IDLE_DISPLAY_MODE",11,1,"BIN","    //AUX_IDLE_DISPLAY_MODE",11,1,"BIN","    //AUX_IDLE_DISPLAY_MODE",11,1,"BIN","    //AUX_IDLE_DISPLAY_MODE",11,1,"BIN","    //AUX_IDLE_DISPLAY_MODE",11,1,"BIN","    //AUX_IDLE_DISPLAY_MODE",11,1,"BIN","    //AUX_IDLE_DISPLAY_MODE",11,1,"BIN","    //AUX_IDLE_DISPLAY_MODE",11,1,"BIN","    //AUX_IDLE_DISPLAY_MODE",11,1,"BIN","    //AUX_IDLE_DISPLAY_MODE",11,1,"BIN","    //AUX_IDLE_DISPLAY_MODE",11,1,"BIN","    //AUX_IDLE_DISPLAY_MODE",11,1,"BIN","    //AUX_IDLE_DISPLAY_MODE",11,1,"BIN","    //AUX_IDLE_DISPLAY_MODE",11,1,"BIN","    //AUX_IDLE_DISPLAY_MODE",11,1,"BIN","    //AUX_IDLE_DISPLAY_MODE",11,1,"BIN","    //AUX_IDLE_DISPLAY_MODE",11,1,"BIN","    //AUX_IDLE_DISPLAY_MODE",11,1,"BIN","    //AUX_IDLE_DISPLAY_MODE",11,1,"BIN","    //AUX_IDLE_DISPLAY_MODE",11,1,"BIN","    //AUX_IDLE_DISPLAY_MODE",11,1,"BIN","    //AUX_IDLE_DISPLAY_MODE",11,1,"BIN","    //AUX_IDLE_DISPLAY_MODE",11,1,"BIN","    //AUX_IDLE_DISPLAY_MODE",11,1,"BIN","    //AUX_IDLE_DISPLAY_MODE",11,1,"BIN","    //AUX_IDLE_DISPLAY_MODE",11,1,"BIN","    //AUX_IDLE_DISPLAY_MODE",11,1,"BIN","    //AUX_IDLE_DISPLAY_MODE",11,1,"BIN","    //AUX_IDLE_DISPLAY_MODE",11,1,"BIN","    //AUX_IDLE_DISPLAY_MODE",11,1,"BIN","    //AUX_IDLE_DISPLAY_MODE",11,1,"BIN","    //AUX_IDLE_DISPLAY_MODE",11,1,"BIN","    //AUX_IDLE_DISPLAY_MODE",11,1,"BIN","    //AUX_IDLE_DISPLAY_MODE",11,1,"BIN","    //AUX_IDLE_DISPLAY_MODE",11,1,"BIN","    //AUX_IDLE_DISPLAY_MODE",11,1,"BIN","    //AUX_IDLE_DISPLAY_MODE",11,1,"BIN","    //AUX_IDLE_DISPLAY_MODE",11,1,"BIN","    //AUX_IDLE_DISPLAY_MODE",11,1,"BIN","    //AUX_IDLE_DISPLAY_MODE",11,1,"BIN","    //AUX_IDLE_DISPLAY_MODE",11,1,"BIN","    //AUX_IDLE_DISPLAY_MODE",11,1,"BIN","    //AUX_IDLE_DISPLAY_MODE",11,1,"BIN","    //AUX_IDLE_DISPLAY_MODE",11,1,"BIN","    //AUX_IDLE_DISPLAY_MODE",11,1,"BIN","    //AUX_IDLE_DISPLAY_MODE",11,1,"BIN","    //AUX_IDLE_DISPLAY_MODE",11,1,"BIN","    //AUX_IDLE_DISPLAY_MODE",11,1,"BIN","    //AUX_IDLE_DISPLAY_MODE",11,1,"BIN","    //AUX_IDLE_DISPLAY_MODE",11,1,"BIN","    //AUX_IDLE_DISPLAY_MODE",11,1,"BIN","    //AUX_IDLE_DISPLAY_MODE",11,1,"BIN","    //AUX_IDLE_DISPLAY_MODE",11,1,"BIN","    //AUX_IDLE_DISPLAY_MODE",11,1,"BIN","    //AUX_IDLE_DISPLAY_MODE",11,1,"BIN","    //AUX_IDLE_DISPLAY_MODE",11,1,"BIN","    //AUX_IDLE_DISPLAY_MODE",11,1,"BIN","    //AUX_IDLE_DISPLAY_MODE",11,1,"BIN","    //AUX_IDLE_DISPLAY_MODE",11,1,"BIN","    //AUX_IDLE_DISPLAY_MODE",11,1,"BIN","    //AUX_IDLE_DISPLAY_MODE",11,1,"BIN","    //AUX_IDLE_DISPLAY_MODE",11,1,"BIN","    //AUX_IDLE_DISPLAY_MODE",11,1,"BIN","    //AUX_IDLE_DISPLAY_MODE",11,1,"BIN","    //AUX_IDLE_DISPLAY_MODE",11,1,"BIN","    //AUX_IDLE_DISPLAY_MODE",11,1,"BIN","    //AUX_IDLE_DISPLAY_MODE",11,1,"BIN","    //AUX_IDLE_DISPLAY_MODE",11,1,"BIN","    //AUX_IDLE_DISPLAY_MODE",11,1,"BIN","    //AUX_IDLE_DISPLAY_MODE",11,1,"BIN","    //AUX_IDLE_DISPLAY_MODE",11,1,"BIN","    //AUX_IDLE_DISPLAY_MODE",11,1,"BIN","    //AUX_IDLE_DISPLAY_MODE",11,1,"BIN","    //AUX_IDLE_DISPLAY_MODE",11,1,"BIN","    //AUX_IDLE_DISPLAY_MODE",11,1,"BIN","    //AUX_IDLE_DISPLAY_MODE",11,1,"BIN","    //AUX_IDLE_DISPLAY_MODE",11,1,"BIN","    //AUX_IDLE_DISPLAY_MODE",11,1,"BIN","    //AUX_IDLE_DISPLAY_MODE",11,1,"BIN","    //AUX_IDLE_DISPLAY_MODE",11,1,"BIN","    //AUX_IDLE_DISPLAY_MODE",11,1,"BIN","    //AUX_IDLE_DISPLAY_MODE",11,1,"BIN","    //AUX_IDLE_DISPLAY_MODE",11,1,"BIN","    //AUX_IDLE_DISPLAY_MODE",11,1,"BIN","    //AUX_IDLE_DISPLAY_MODE",11,1,"BIN","    //AUX_IDLE_DISPLAY_MODE",11,1,"BIN","    //AUX_IDLE_DISPLAY_MODE",11,1,"BIN","    //AUX_IDLE_DISPLAY_MODE",11,1,"BIN","    //AUX_IDLE_DISPLAY_MODE",11,1,"BIN","    //AUX_IDLE_DISPLAY_MODE",11,1,"BIN","    //AUX_IDLE_DISPLAY_MODE",11,1,"BIN","    //AUX_IDLE_DISPLAY_MODE",11,1,"BIN","    //AUX_IDLE_DISPLAY_MODE",11,1,"BIN","    //AUX_IDLE_DISPLAY_MODE",11,1,"BIN","    //AUX_IDLE_DISPLAY_MODE",11,1,"BIN","    //AUX_IDLE_DISPLAY_MODE",11,1,"BIN","    //AUX_IDLE_DISPLAY_MODE",11,1,"BIN","    //AUX_IDLE_DISPLAY_MODE",11,1,"BIN","    //AUX_IDLE_DISPLAY_MODE",11,1,"BIN","    //AUX_IDLE_DISPLAY_MODE",11,1,"BIN","    //AUX_IDLE_DISPLAY_MODE",11,1,"BIN","    //AUX_IDLE_DISPLAY_MODE",11,1,"BIN","    //AUX_IDLE_DISPLAY_MODE",11,1,"BIN","    //AUX_IDLE_DISPLAY_MODE",11,1,"BIN","    //AUX_IDLE_DISPLAY_MODE",11,1,"BIN","    //AUX_IDLE_DISPLAY_MODE",11,1,"BIN","    //AUX_IDLE_DISPLAY_MODE",11,1,"BIN","    //AUX_IDLE_DISPLAY_MODE",11,1,"BIN","    //AUX_IDLE_DISPLAY_MODE",11,1,"BIN","    //AUX_IDLE_DISPLAY_MODE",11,1,"BIN","    //AUX_IDLE_DISPLAY_MODE",11,1,"BIN","    //AUX_IDLE_DISPLAY_MODE",11,1,"BIN","    //AUX_IDLE_DISPLAY_MODE",11,1,"BIN","    //AUX_IDLE_DISPLAY_MODE",11,1,"BIN","    //AUX_IDLE_DISPLAY_MODE",11,1,"BIN","    //AUX_IDLE_DISPLAY_MODE",11,1,"BIN","    //AUX_IDLE_DISPLAY_MODE",11,1,"BIN","    //AUX_IDLE_DISPLAY_MODE",11,1,"BIN","    //AUX_IDLE_DISPLAY_MODE",11,1,"BIN","    //AUX_IDLE_DISPLAY_MODE",11,1,"BIN","    //AUX_IDLE_DISPLAY_MODE",11,1,"BIN","    //AUX_IDLE_DISPLAY_MODE",11,1,"BIN","    //AUX_IDLE_DISPLAY_MODE",11,1,"BIN","    //AUX_IDLE_DISPLAY_MODE",11,1,"BIN","    //AUX_IDLE_DISPLAY_MODE",11,1,"BIN","    //AUX_IDLE_DISPLAY_MODE",11,1,"BIN","    //AUX_IDLE_DISPLAY_MODE",11,1,"BIN","    //AUX_IDLE_DISPLAY_MODE",11,1,"BIN","    //AUX_IDLE_DISPLAY_MODE",11,1,"BIN","    //AUX_IDLE_DISPLAY_MODE",11,1,"BIN","    //AUX_IDLE_DISPLAY_MODE",11,1,"BIN","    //AUX_IDLE_DISPLAY_MODE",11,1,"BIN","    //AUX_IDLE_DISPLAY_MODE",11,1,"BIN","    //AUX_IDLE_DISPLAY_MODE",11,1,"BIN","    //AUX_IDLE_DISPLAY_MODE",11,1,"BIN","    //AUX_IDLE_DISPLAY_MODE",11,1,"BIN","    //AUX_IDLE_DISPLAY_MODE",11,1,"BIN","    //AUX_IDLE_DISPLAY_MODE",11,1,"BIN","    //AUX_IDLE_DISPLAY_MODE",11,1,"BIN","    //AUX_IDLE_DISPLAY_MODE",11,1,"BIN","    //AUX_IDLE_DISPLAY_MODE",11,1,"BIN","    //AUX_IDLE_DISPLAY_MODE",11,1,"BIN","    //AUX_IDLE_DISPLAY_MODE",11,1,"BIN","    //AUX_IDLE_DISPLAY_MODE",11,1,"BIN","    //AUX_IDLE_DISPLAY_MODE",11,1,"BIN","    //AUX_IDLE_DISPLAY_MODE",11,1,"BIN","    //AUX_IDLE_DISPLAY_MODE",11,1,"BIN","    //AUX_IDLE_DISPLAY_MODE",11,1,"BIN","    //AUX_IDLE_DISPLAY_MODE",11,1,"BIN","    //AUX_IDLE_DISPLAY_MODE",11,1,"BIN","    //AUX_IDLE_DISPLAY_MODE",11,1,"BIN","    //AUX_IDLE_DISPLAY_MODE",11,1,"BIN","    //AUX_IDLE_DISPLAY_MODE",11,1,"BIN","    //AUX_IDLE_DISPLAY_MODE",11,1,"BIN","    //AUX_IDLE_DISPLAY_MODE",11,1,"BIN","    //AUX_IDLE_DISPLAY_MODE",11,1,"BIN","    //AUX_IDLE_DISPLAY_MODE",11,1,"BIN","    //AUX_IDLE_DISPLAY_MODE",11,1,"BIN","    //AUX_IDLE_DISPLAY_MODE",11,1,"BIN","    //AUX_IDLE_DISPLAY_MODE",11,1,"BIN","    //AUX_IDLE_DISPLAY_MODE",11,1,"BIN","    //AUX_IDLE_DISPLAY_MODE",11,1,"BIN","    //AUX_IDLE_DISPLAY_MODE",11,1,"BIN","    //AUX_IDLE_DISPLAY_MODE",11,1,"BIN","    //AUX_IDLE_DISPLAY_MODE",11,1,"BIN","    //AUX_IDLE_DISPLAY_MODE",11,1,"BIN","    //AUX_IDLE_DISPLAY_MODE",11,1,"BIN","    //AUX_IDLE_DISPLAY_MODE",11,1,"BIN","    //AUX_IDLE_DISPLAY_MODE",11,1,"BIN","    //AUX_IDLE_DISPLAY_MODE",11,1,"BIN","    //AUX_IDLE_DISPLAY_MODE",11,1,"BIN","    //AUX_IDLE_DISPLAY_MODE",11,1,"BIN","    //AUX_IDLE_DISPLAY_MODE",11,1,"BIN","    //AUX_IDLE_DISPLAY_MODE",11,1,"BIN","    //AUX_IDLE_DISPLAY_MODE",11,1,"BIN","    //AUX_IDLE_DISPLAY_MODE",11,1,"BIN","    //AUX_IDLE_DISPLAY_MODE",11,1,"BIN","    //AUX_IDLE_DISPLAY_MODE",11,1,"BIN","    //AUX_IDLE_DISPLAY_MODE",11,1,"BIN","    //AUX_IDLE_DISPLAY_MODE",11,1,"BIN","    //AUX_IDLE_DISPLAY_MODE",11,1,"BIN","    //AUX_IDLE_DISPLAY_MODE",11,1,"BIN","    //AUX_IDLE_DISPLAY_MODE",11,1,"BIN","    //AUX_IDLE_DISPLAY_MODE",11,1,"BIN","    //AUX_IDLE_DISPLAY_MODE",11,1,"BIN","    //AUX_IDLE_DISPLAY_MODE",11,1,"BIN","    //AUX_IDLE_DISPLAY_MODE",11,1,"BIN","    //AUX_IDLE_DISPLAY_MODE",11,1,"BIN","    //AUX_IDLE_DISPLAY_MODE",11,1,"BIN","    //AUX_IDLE_DISPLAY_MODE",11,1,"BIN","    //AUX_IDLE_DISPLAY_MODE",11,1,"BIN","    //AUX_IDLE_DISPLAY_MODE",11,1,"BIN","    //AUX_IDLE_DISPLAY_MODE",11,1,"BIN","    //AUX_IDLE_DISPLAY_MODE",11,1,"BIN","    //AUX_IDLE_DISPLAY_MODE",11,1,"BIN","    //AUX_IDLE_DISPLAY_MODE",11,1,"BIN","    //AUX_IDLE_DISPLAY_MODE",11,1,"BIN","    //AUX_IDLE_DISPLAY_MODE",11,1,"BIN","    //AUX_IDLE_DISPLAY_MODE",11,1,"BIN","    //AUX_IDLE_DISPLAY_MODE",11,1,"BIN","    //AUX_IDLE_DISPLAY_MODE",11,1,"BIN","    //AUX_IDLE_DISPLAY_MODE",11,1,"BIN","    //AUX_IDLE_DISPLAY_MODE",11,1,"BIN","    //AUX_IDLE_DISPLAY_MODE",11,1,"BIN","    //AUX_IDLE_DISPLAY_MODE",11,1,"BIN","    //AUX_IDLE_DISPLAY_MODE",11,1,"BIN","    //AUX_IDLE_DISPLAY_MODE",11,1,"BIN","    //AUX_IDLE_DISPLAY_MODE",11,1,"BIN","    //AUX_IDLE_DISPLAY_MODE",11,1,"BIN","    //AUX_IDLE_DISPLAY_MODE",11,1,"BIN","    //AUX_IDLE_DISPLAY_MODE",11,1,"BIN","    //AUX_IDLE_DISPLAY_MODE",11,1,"BIN","    //AUX_IDLE_DISPLAY_MODE",11,1,"BIN","    //AUX_IDLE_DISPLAY_MODE",11,1,"BIN","    //AUX_IDLE_DISPLAY_MODE",11,1,"BIN","    //AUX_IDLE_DISPLAY_MODE",11,1,"BIN","    //AUX_IDLE_DISPLAY_MODE",11,1,"BIN","    //AUX_IDLE_DISPLAY_MODE",11,1,"BIN","    //AUX_IDLE_DISPLAY_MODE",11,1,"BIN","    //AUX_IDLE_DISPLAY_MODE",11,1,"BIN","    //AUX_IDLE_DISPLAY_MODE",11,1,"BIN","    //AUX_IDLE_DISPLAY_MODE",11,1,"BIN","    //AUX_IDLE_DISPLAY_MODE",11,1,"BIN","    //AUX_IDLE_DISPLAY_MODE",11,1,"BIN","    //AUX_IDLE_DISPLAY_MODE",11,1,"BIN","    //AUX_IDLE_DISPLAY_MODE",11,1,"BIN","    //AUX_IDLE_DISPLAY_MODE",11,1,"BIN","    //AUX_IDLE_DISPLAY_MODE",11,1,"BIN","    //AUX_IDLE_DISPLAY_MODE",11,1,"BIN","    //AUX_IDLE_DISPLAY_MODE",11,1,"BIN","    //AUX_IDLE_DISPLAY_MODE",11,1,"BIN","    //AUX_IDLE_DISPLAY_MODE",11,1,"BIN","    //AUX_IDLE_DISPLAY_MODE",11,1,"BIN","    //AUX_IDLE_DISPLAY_MODE",11,1,"BIN","    //AUX_IDLE_DISPLAY_MODE",11,1,"BIN","    //AUX_IDLE_DISPLAY_MODE",11,1,"BIN","    //AUX_IDLE_DISPLAY_MODE",11,1,"BIN","    //AUX_IDLE_DISPLAY_MODE",11,1,"BIN","    //AUX_IDLE_DISPLAY_MODE",11,1,"BIN","    //AUX_IDLE_DISPLAY_MODE",11,1,"BIN","    //AUX_IDLE_DISPLAY_MODE",11,1,"BIN","    //AUX_IDLE_DISPLAY_MODE",11,1,"BIN","    //AUX_IDLE_DISPLAY_MODE",11,1,"BIN","    //AUX_IDLE_DISPLAY_MODE",11,1,"BIN","    //AUX_IDLE_DISPLAY_MODE",11,1,"BIN","    //AUX_IDLE_DISPLAY_MODE",11,1,"BIN","    //AUX_IDLE_DISPLAY_MODE",11,1,"BIN","    //AUX_IDLE_DISPLAY_MODE",11,1,"BIN","    //AUX_IDLE_DISPLAY_MODE",11,1,"BIN","    //AUX_IDLE_DISPLAY_MODE",11,1,"BIN","    //AUX_IDLE_DISPLAY_MODE",11,1,"BIN","    //AUX_IDLE_DISPLAY_MODE",11,1,"BIN","    //AUX_IDLE_DISPLAY_MODE",11,1,"BIN","    //AUX_IDLE_DISPLAY_MODE",11,1,"BIN","    //AUX_IDLE_DISPLAY_MODE",11,1,"BIN","    //AUX_IDLE_DISPLAY_MODE",11,1,"BIN","    //AUX_IDLE_DISPLAY_MODE",11,1,"BIN","    //AUX_IDLE_DISPLAY_MODE",11,1,"BIN","    //AUX_IDLE_DISPLAY_MODE",11,1,"BIN","    //AUX_IDLE_DISPLAY_MODE",11,1,"BIN","    //AUX_IDLE_DISPLAY_MODE",11,1,"BIN","    //AUX_IDLE_DISPLAY_MODE",11,1,"BIN","    //AUX_IDLE_DISPLAY_MODE",11,1,"BIN","    //AUX_IDLE_DISPLAY_MODE",11,1,"BIN","    //AUX_IDLE_DISPLAY_MODE",11,1,"BIN","    //AUX_IDLE_DISPLAY_MODE",11,1,"BIN","    //AUX_IDLE_DISPLAY_MODE",11,1,"BIN","    //AUX_IDLE_DISPLAY_MODE",11,1,"BIN","    //AUX_IDLE_DISPLAY_MODE",11,1,"BIN","    //AUX_IDLE_DISPLAY_MODE",11,1,"BIN","    //AUX_IDLE_DISPLAY_MODE",11,1,"BIN","    //AUX_IDLE_DISPLAY_MODE",11,1,"BIN","    //AUX_IDLE_DISPLAY_MODE",11,1,"BIN","    //AUX_IDLE_DISPLAY_MODE",11,1,"BIN","    //AUX_IDLE_DISPLAY_MODE",11,1,"BIN","    //AUX_IDLE_DISPLAY_MODE",11,1,"BIN","    //AUX_IDLE_DISPLAY_MODE",11,1,"BIN","    //AUX_IDLE_DISPLAY_MODE",11,1,"BIN","    //AUX_IDLE_DISPLAY_MODE",11,1,"BIN","    //AUX_IDLE_DISPLAY_MODE",11,1,"BIN","    //AUX_IDLE_DISPLAY_MODE",11,1,"BIN","    //AUX_IDLE_DISPLAY_MODE",11,1,"BIN","    //AUX_IDLE_DISPLAY_MODE",11,1,"BIN","    //AUX_IDLE_DISPLAY_MODE",11,1,"BIN","    //AUX_IDLE_DISPLAY_MODE",11,1,"BIN","    //AUX_IDLE_DISPLAY_MODE",11,1,"BIN","    //AUX_IDLE_DISPLAY_MODE",11,1,"BIN","    //AUX_IDLE_DISPLAY_MODE",11,1,"BIN","    //AUX_IDLE_DISPLAY_MODE",11,1,"BIN","    //AUX_IDLE_DISPLAY_MODE",11,1,"BIN","    //AUX_IDLE_DISPLAY_MODE",11,1,"BIN","    //AUX_IDLE_DISPLAY_MODE",11,1,"BIN","    //AUX_IDLE_DISPLAY_MODE",11,1,"BIN","    //AUX_IDLE_DISPLAY_MODE",11,1,"BIN","    //AUX_IDLE_DISPLAY_MODE",11,1,"BIN","    //AUX_IDLE_DISPLAY_MODE",11,1,"BIN","    //AUX_IDLE_DISPLAY_MODE",11,1,"BIN","    //AUX_IDLE_DISPLAY_MODE",11,1,"BIN","    //AUX_IDLE_DISPLAY_MODE",11,1,"BIN","    //AUX_IDLE_DISPLAY_MODE",11,1,"BIN","    //AUX_IDLE_DISPLAY_MODE",11,1,"BIN","    //AUX_IDLE_DISPLAY_MODE",11,1,"BIN","    //AUX_IDLE_DISPLAY_MODE",11,1,"BIN","    //AUX_IDLE_DISPLAY_MODE",11,1,"BIN","    //AUX_IDLE_DISPLAY_MODE",11,1,"BIN","    //AUX_IDLE_DISPLAY_MODE",11,1,"BIN","    //AUX_IDLE_DISPLAY_MODE",11,1,"BIN","    //AUX_IDLE_DISPLAY_MODE",11,1,"BIN","    //AUX_IDLE_DISPLAY_MODE",11,1,"BIN","    //AUX_IDLE_DISPLAY_MODE",11,1,"BIN","    //AUX_IDLE_DISPLAY_MODE",11,1,"BIN","    //AUX_IDLE_DISPLAY_MODE",11,1,"BIN","    //AUX_IDLE_DISPLAY_MODE",11,1,"BIN","    //AUX_IDLE_DISPLAY_MODE",11,1,"BIN","    //AUX_IDLE_DISPLAY_MODE",11,1,"BIN","    //AUX_IDLE_DISPLAY_MODE",11,1,"BIN","    //AUX_IDLE_DISPLAY_MODE",11,1,"BIN","    //AUX_IDLE_DISPLAY_MODE",11,1,"BIN","    //AUX_IDLE_DISPLAY_MODE",11,1,"BIN","    //AUX_IDLE_DISPLAY_MODE",11,1,"BIN","    //AUX_IDLE_DISPLAY_MODE",11,1,"BIN","    //AUX_IDLE_DISPLAY_MODE",11,1,"BIN","    //AUX_IDLE_DISPLAY_MODE",11,1,"BIN","    //AUX_IDLE_DISPLAY_MODE",11,1,"BIN","    //AUX_IDLE_DISPLAY_MODE",11,1,"BIN","    //AUX_IDLE_DISPLAY_MODE",11,1,"BIN","    //AUX_IDLE_DISPLAY_MODE",11,1,"BIN","    //AUX_IDLE_DISPLAY_MODE",11,1,"BIN","    //AUX_IDLE_DISPLAY_MODE",11,1,"BIN","    //AUX_IDLE_DISPLAY_MODE",11,1,"BIN","    //AUX_IDLE_DISPLAY_MODE",11,1,"BIN","    //AUX_IDLE_DISPLAY_MODE",11,1,"BIN","    //AUX_IDLE_DISPLAY_MODE",11,1,"BIN","    //AUX_IDLE_DISPLAY_MODE",11,1,"BIN","    //AUX_IDLE_DISPLAY_MODE",11,1,"BIN","    //AUX_IDLE_DISPLAY_MODE",11,1,"BIN","    //AUX_IDLE_DISPLAY_MODE",11,1,"BIN","    //AUX_IDLE_DISPLAY_MODE",11,1,"BIN","    //AUX_IDLE_DISPLAY_MODE",11,1,"BIN","    //AUX_IDLE_DISPLAY_MODE",11,1,"BIN","    //AUX_IDLE_DISPLAY_MODE",11,1,"BIN","    //AUX_IDLE_DISPLAY_MODE",11,1,"BIN","    //AUX_IDLE_DISPLAY_MODE",11,1,"BIN","    //AUX_IDLE_DISPLAY_MODE",11,1,"BIN","    //AUX_IDLE_DISPLAY_MODE",11,1,"BIN","    //AUX_IDLE_DISPLAY_MODE",11,1,"BIN","    //AUX_IDLE_DISPLAY_MODE",11,1,"BIN","    //AUX_IDLE_DISPLAY_MODE",11,1,"BIN","    //AUX_IDLE_DISPLAY_MODE",11,1,"BIN","    //AUX_IDLE_DISPLAY_MODE",11,1,"BIN","    //AUX_IDLE_DISPLAY_MODE",11,1,"BIN","    //AUX_IDLE_DISPLAY_MODE",11,1,"BIN","    //AUX_IDLE_DISPLAY_MODE",11,1,"BIN","    //AUX_IDLE_DISPLAY_MODE",11,1,"BIN","    //AUX_IDLE_DISPLAY_MODE",11,1,"BIN","    //AUX_IDLE_DISPLAY_MODE",11,1,"BIN","    //AUX_IDLE_DISPLAY_MODE",11,1,"BIN","    //AUX_IDLE_DISPLAY_MODE",11,1,"BIN","    //AUX_IDLE_DISPLAY_MODE",11,1,"BIN","    //AUX_IDLE_DISPLAY_MODE",11,1,"BIN","    //AUX_IDLE_DISPLAY_MODE",11,1,"BIN","    //AUX_IDLE_DISPLAY_MODE",11,1,"BIN","    //AUX_IDLE_DISPLAY_MODE",11,1,"BIN","    //AUX_IDLE_DISPLAY_MODE",11,1,"BIN","    //AUX_IDLE_DISPLAY_MODE",11,1,"BIN","    //AUX_IDLE_DISPLAY_MODE",11,1,"BIN","    //AUX_IDLE_DISPLAY_MODE",11,1,"BIN","    //AUX_IDLE_DISPLAY_MODE",11,1,"BIN","    //AUX_IDLE_DISPLAY_MODE",11,1,"BIN","    //AUX_IDLE_DISPLAY_MODE",11,1,"BIN","    //AUX_IDLE_DISPLAY_MODE",11,1,"BIN","    //AUX_IDLE_DISPLAY_MODE",11,1,"BIN","    //AUX_IDLE_DISPLAY_MODE",11,1,"BIN","    //AUX_IDLE_DISPLAY_MODE",11,1,"BIN","    //AUX_IDLE_DISPLAY_MODE",11,1,"BIN","    //AUX_IDLE_DISPLAY_MODE",11,1,"BIN","    //AUX_IDLE_DISPLAY_MODE",11,1,"BIN","    //AUX_IDLE_DISPLAY_MODE",11,1,"BIN","    //AUX_IDLE_DISPLAY_MODE",11,1,"BIN","    //AUX_IDLE_DISPLAY_MODE",11,1,"BIN","    //AUX_IDLE_DISPLAY_MODE",11,1,"BIN","    //AUX_IDLE_DISPLAY_MODE",11,1,"BIN","    //AUX_IDLE_DISPLAY_MODE",11,1,"BIN","    //AUX_IDLE_DISPLAY_MODE",11,1,"BIN","    //AUX_IDLE_DISPLAY_MODE",11,1,"BIN","    //AUX_IDLE_DISPLAY_MODE",11,1,"BIN","    //AUX_IDLE_DISPLAY_MODE",11,1,"BIN","    //AUX_IDLE_DISPLAY_MODE",11,1,"BIN","    //AUX_IDLE_DISPLAY_MODE",11,1,"BIN","    //AUX_IDLE_DISPLAY_MODE",11,1,"BIN","    //AUX_IDLE_DISPLAY_MODE",11,1,"BIN","    //AUX_IDLE_DISPLAY_MODE",11,1,"BIN","    //AUX_IDLE_DISPLAY_MODE",11,1,"BIN","    //AUX_IDLE_DISPLAY_MODE",11,1,"BIN","    //AUX_IDLE_DISPLAY_MODE",11,1,"BIN","    //AUX_IDLE_DISPLAY_MODE",11,1,"BIN","    //AUX_IDLE_DISPLAY_MODE",11,1,"BIN","    //AUX_IDLE_DISPLAY_MODE",11,1,"BIN","    //AUX_IDLE_DISPLAY_MODE",11,1,"BIN","    //AUX_IDLE_DISPLAY_MODE",11,1,"BIN","    //AUX_IDLE_DISPLAY_MODE",11,1,"BIN","    //AUX_IDLE_DISPLAY_MODE",11,1,"BIN","    //AUX_IDLE_DISPLAY_MODE",11,1,"BIN","    //AUX_IDLE_DISPLAY_MODE",11,1,"BIN","    //AUX_IDLE_DISPLAY_MODE",11,1,"BIN","    //AUX_IDLE_DISPLAY_MODE",11,1,"BIN","    //AUX_IDLE_DISPLAY_MODE",11,1,"BIN","    //AUX_IDLE_DISPLAY_MODE",11,1,"BIN","    //AUX_IDLE_DISPLAY_MODE",11,1,"BIN","    //AUX_IDLE_DISPLAY_MODE",11,1,"BIN","    //AUX_IDLE_DISPLAY_MODE",11,1,"BIN","    //AUX_IDLE_DISPLAY_MODE",11,1,"BIN","    //AUX_IDLE_DISPLAY_MODE",11,1,"BIN","    //AUX_IDLE_DISPLAY_MODE",11,1,"BIN","    //AUX_IDLE_DISPLAY_MODE",11,1,"BIN","    //AUX_IDLE_DISPLAY_MODE",11,1,"BIN","    //AUX_IDLE_DISPLAY_MODE",11,1,"BIN","    //AUX_IDLE_DISPLAY_MODE",11,1,"BIN","    //AUX_IDLE_DISPLAY_MODE",11,1,"BIN","    //AUX_IDLE_DISPLAY_MODE",11,1,"BIN","    //AUX_IDLE_DISPLAY_MODE",11,1,"BIN","    //AUX_IDLE_DISPLAY_MODE",11,1,"BIN","    //AUX_IDLE_DISPLAY_MODE",11,1,"BIN","    //AUX_IDLE_DISPLAY_MODE",11,1,"BIN","    //AUX_IDLE_DISPLAY_MODE",11,1,"BIN","    //AUX_IDLE_DISPLAY_MODE",11,1,"BIN","    //AUX_IDLE_DISPLAY_MODE",11,1,"BIN","    //AUX_IDLE_DISPLAY_MODE",11,1,"BIN","    //AUX_IDLE_DISPLAY_MODE",11,1,"BIN","    //AUX_IDLE_DISPLAY_MODE",11,1,"BIN","    //AUX_IDLE_DISPLAY_MODE",11,1,"BIN","    //AUX_IDLE_DISPLAY_MODE",11,1,"BIN","    //AUX_IDLE_DISPLAY_MODE",11,1,"BIN","    //AUX_IDLE_DISPLAY_MODE",11,1,"BIN","    //AUX_IDLE_DISPLAY_MODE",11,1,"BIN","    //AUX_IDLE_DISPLAY_MODE",11,1,"BIN","    //AUX_IDLE_DISPLAY_MODE",11,1,"BIN","    //AUX_IDLE_DISPLAY_MODE",11,1,"BIN","    //AUX_IDLE_DISPLAY_MODE",11,1,"BIN","    //AUX_IDLE_DISPLAY_MODE",11,1,"BIN","    //AUX_IDLE_DISPLAY_MODE",11,1,"BIN","    //AUX_IDLE_DISPLAY_MODE",11,1,"BIN","    //AUX_IDLE_DISPLAY_MODE",11,1,"BIN","    //AUX_IDLE_DISPLAY_MODE",11,1,"BIN","    //AUX_IDLE_DISPLAY_MODE",11,1,"BIN","    //AUX_IDLE_DISPLAY_MODE",11,1,"BIN","    //AUX_IDLE_DISPLAY_MODE",11,1,"BIN","    //AUX_IDLE_DISPLAY_MODE",11,1,"BIN","    //AUX_IDLE_DISPLAY_MODE",11,1,"BIN","    //AUX_IDLE_DISPLAY_MODE",11,1,"BIN","    //AUX_IDLE_DISPLAY_MODE",11,1,"BIN","    //AUX_IDLE_DISPLAY_MODE",11,1,"BIN","    //AUX_IDLE_DISPLAY_MODE",11,1,"BIN","    //AUX_IDLE_DISPLAY_MODE",11,1,"BIN","    //AUX_IDLE_DISPLAY_MODE",11,1,"BIN","    //AUX_IDLE_DISPLAY_MODE",11,1,"BIN","    //AUX_IDLE_DISPLAY_MODE",11,1,"BIN","    //AUX_IDLE_DISPLAY_MODE",11,1,"BIN","    //AUX_IDLE_DISPLAY_MODE",11,1,"BIN","    //AUX_IDLE_DISPLAY_MODE",11,1,"BIN","    //AUX_IDLE_DISPLAY_MODE",11,1,"BIN","    //AUX_IDLE_DISPLAY_MODE",11,1,"BIN","    //AUX_IDLE_DISPLAY_MODE",11,1,"BIN","    //AUX_IDLE_DISPLAY_MODE",11,1,"BIN","    //AUX_IDLE_DISPLAY_MODE",11,1,"BIN","    //AUX_IDLE_DISPLAY_MODE",11,1,"BIN","    //AUX_IDLE_DISPLAY_MODE",11,1,"BIN","    //AUX_IDLE_DISPLAY_MODE",11,1,"BIN","    //AUX_IDLE_DISPLAY_MODE",11,1,"BIN","    //AUX_IDLE_DISPLAY_MODE",11,1,"BIN","    //AUX_IDLE_DISPLAY_MODE",11,1,"BIN","    //AUX_IDLE_DISPLAY_MODE",11,1,"BIN","    //AUX_IDLE_DISPLAY_MODE",11,1,"BIN","    //AUX_IDLE_DISPLAY_MODE",11,1,"BIN","    //AUX_IDLE_DISPLAY_MODE",11,1,"BIN","    //AUX_IDLE_DISPLAY_MODE",11,1,"BIN","    //AUX_IDLE_DISPLAY_MODE",11,1,"BIN","    //AUX_IDLE_DISPLAY_MODE",11,1,"BIN","    //AUX_IDLE_DISPLAY_MODE",11,1,"BIN","    //AUX_IDLE_DISPLAY_MODE",11,1,"BIN","    //AUX_IDLE_DISPLAY_MODE",11,1,"BIN","    //AUX_IDLE_DISPLAY_MODE",11,1,"BIN","    //AUX_IDLE_DISPLAY_MODE",11,1,"BIN","    //AUX_IDLE_DISPLAY_MODE",11,1,"BIN","    //AUX_IDLE_DISPLAY_MODE",11,1,"BIN","    //AUX_IDLE_DISPLAY_MODE",11,1,"BIN","    //AUX_IDLE_DISPLAY_MODE",11,1,"BIN","    //AUX_IDLE_DISPLAY_MODE",11,1,"BIN","    //AUX_IDLE_DISPLAY_MODE",11,1,"BIN","    //AUX_IDLE_DISPLAY_MODE",11,1,"BIN","    //AUX_IDLE_DISPLAY_MODE",11,1,"BIN","    //AUX_IDLE_DISPLAY_MODE",11,1,"BIN","    //AUX_IDLE_DISPLAY_MODE",11,1,"BIN","    //AUX_IDLE_DISPLAY_MODE",11,1,"BIN","    //AUX_IDLE_DISPLAY_MODE",11,1,"BIN","    //AUX_IDLE_DISPLAY_MODE",11,1,"BIN","    //AUX_IDLE_DISPLAY_MODE",11,1,"BIN","    //AUX_IDLE_DISPLAY_MODE",11,1,"BIN","    //AUX_IDLE_DISPLAY_MODE",11,1,"BIN","    //AUX_IDLE_DISPLAY_MODE",11,1,"BIN","    //AUX_IDLE_DISPLAY_MODE",11,1,"BIN","    //AUX_IDLE_DISPLAY_MODE",11,1,"BIN","    //AUX_IDLE_DISPLAY_MODE",11,1,"BIN","    //AUX_IDLE_DISPLAY_MODE",11,1,"BIN","    //AUX_IDLE_DISPLAY_MODE",11,1,"BIN","    //AUX_IDLE_DISPLAY_MODE",11,1,"BIN","    //AUX_IDLE_DISPLAY_MODE",11,1,"BIN","    //AUX_IDLE_DISPLAY_MODE",11,1,"BIN","    //AUX_IDLE_DISPLAY_MODE",11,1,"BIN","    //AUX_IDLE_DISPLAY_MODE",11,1,"BIN","    //AUX_IDLE_DISPLAY_MODE",11,1,"BIN","    //AUX_IDLE_DISPLAY_MODE",11,1,"BIN","    //AUX_IDLE_DISPLAY_MODE",11,1,"BIN","    //AUX_IDLE_DISPLAY_MODE",11,1,"BIN","    //AUX_IDLE_DISPLAY_MODE",11,1,"BIN","    //AUX_IDLE_DISPLAY_MODE",11,1,"BIN","    //AUX_IDLE_DISPLAY_MODE",11,1,"BIN","    //AUX_IDLE_DISPLAY_MODE",11,1,"BIN","    //AUX_IDLE_DISPLAY_MODE",11,1,"BIN","    //AUX_IDLE_DISPLAY_MODE",11,1,"BIN","    //AUX_IDLE_DISPLAY_MODE",11,1,"BIN","    //AUX_IDLE_DISPLAY_MODE",11,1,"BIN","    //AUX_IDLE_DISPLAY_MODE",11,1,"BIN","    //AUX_IDLE_DISPLAY_MODE",11,1,"BIN","    //AUX_IDLE_DISPLAY_MODE",11,1,"BIN","    //AUX_IDLE_DISPLAY_MODE",11,1,"BIN","    //AUX_IDLE_DISPLAY_MODE",11,1,"BIN","    //AUX_IDLE_DISPLAY_MODE",11,1,"BIN","    //AUX_IDLE_DISPLAY_MODE",11,1,"BIN","    //AUX_IDLE_DISPLAY_MODE",11,1,"BIN","    //AUX_IDLE_DISPLAY_MODE",11,1,"BIN","    //AUX_IDLE_DISPLAY_MODE",11,1,"BIN","    //AUX_IDLE_DISPLAY_MODE",11,1,"BIN","    //AUX_IDLE_DISPLAY_MODE",11,1,"BIN","    //AUX_IDLE_DISPLAY_MODE",11,1,"BIN","    //AUX_IDLE_DISPLAY_MODE",11,1,"BIN","    //AUX_IDLE_DISPLAY_MODE",11,1,"BIN","    //AUX_IDLE_DISPLAY_MODE",11,1,"BIN","    //AUX_IDLE_DISPLAY_MODE",11,1,"BIN","    //AUX_IDLE_DISPLAY_MODE",11,1,"BIN","    //AUX_IDLE_DISPLAY_MODE",11,1,"BIN","    //AUX_IDLE_DISPLAY_MODE",11,1,"BIN","    //AUX_IDLE_DISPLAY_MODE",11,1,"BIN","    //AUX_IDLE_DISPLAY_MODE",11,1,"BIN","    //AUX_IDLE_DISPLAY_MODE",11,1,"BIN","    //AUX_IDLE_DISPLAY_MODE",11,1,"BIN","    //AUX_IDLE_DISPLAY_MODE",11,1,"BIN","    //AUX_IDLE_DISPLAY_MODE",11,1,"BIN","    //AUX_IDLE_DISPLAY_MODE",11,1,"BIN","    //AUX_IDLE_DISPLAY_MODE",11,1,"BIN","    //AUX_IDLE_DISPLAY_MODE",11,1,"BIN","    //AUX_IDLE_DISPLAY_MODE",11,1,"BIN","    //AUX_IDLE_DISPLAY_MODE",11,1,"BIN","    //AUX_IDLE_DISPLAY_MODE",11,1,"BIN","    //AUX_IDLE_DISPLAY_MODE",11,1,"BIN","    //AUX_IDLE_DISPLAY_MODE",11,1,"BIN","    //AUX_IDLE_DISPLAY_MODE",11,1,"BIN","    //AUX_IDLE_DISPLAY_MODE",11,1,"BIN","    //AUX_IDLE_DISPLAY_MODE",11,1,"BIN","    //AUX_IDLE_DISPLAY_MODE",11,1,"BIN","    //AUX_IDLE_DISPLAY_MODE",11,1,"BIN","    //AUX_IDLE_DISPLAY_MODE",11,1,"BIN","    //AUX_IDLE_DISPLAY_MODE",11,1,"BIN","    //AUX_IDLE_DISPLAY_MODE",11,1,"BIN","    //AUX_IDLE_DISPLAY_MODE",11,1,"BIN","    //AUX_IDLE_DISPLAY_MODE",11,1,"BIN","    //AUX_IDLE_DISPLAY_MODE",11,1,"BIN","    //AUX_IDLE_DISPLAY_MODE",11,1,"BIN","    //AUX_IDLE_DISPLAY_MODE",11,1,"BIN","    //AUX_IDLE_DISPLAY_MODE",11,1,"BIN","    //AUX_IDLE_DISPLAY_MODE",11,1,"BIN","    //AUX_IDLE_DISPLAY_MODE",11,1,"BIN","    //AUX_IDLE_DISPLAY_MODE",11,1,"BIN","    //AUX_IDLE_DISPLAY_MODE",11,1,"BIN","    //AUX_IDLE_DISPLAY_MODE",11,1,"BIN","    //AUX_IDLE_DISPLAY_MODE",11,1,"BIN","    //AUX_IDLE_DISPLAY_MODE",11,1,"BIN","    //AUX_IDLE_DISPLAY_MODE",11,1,"BIN","    //AUX_IDLE_DISPLAY_MODE",11,1,"BIN","    //AUX_IDLE_DISPLAY_MODE",11,1,"BIN","    //AUX_IDLE_DISPLAY_MODE",11,1,"BIN","    //AUX_IDLE_DISPLAY_MODE",11,1,"BIN","    //AUX_IDLE_DISPLAY_MODE",11,1,"BIN","    //AUX_IDLE_DISPLAY_MODE",11,1,"BIN","    //AUX_IDLE_DISPLAY_MODE",11,1,"BIN","    //AUX_IDLE_DISPLAY_MODE",11,1,"BIN","    //AUX_IDLE_DISPLAY_MODE",11,1,"BIN","    //AUX_IDLE_DISPLAY_MODE",11,1,"BIN","    //AUX_IDLE_DISPLAY_MODE",11,1,"BIN","    //AUX_IDLE_DISPLAY_MODE",11,1,"BIN","    //AUX_IDLE_DISPLAY_MODE",11,1,"BIN","    //AUX_IDLE_DISPLAY_MODE",11,1,"BIN","    //AUX_IDLE_DISPLAY_MODE",11,1,"BIN","    //AUX_IDLE_DISPLAY_MODE",11,1,"BIN","    //AUX_IDLE_DISPLAY_MODE",11,1,"BIN","    //AUX_IDLE_DISPLAY_MODE",11,1,"BIN","    //AUX_IDLE_DISPLAY_MODE",11,1,"BIN","    //AUX_IDLE_DISPLAY_MODE",11,1,"BIN","    //AUX_IDLE_DISPLAY_MODE",11,1,"BIN","    //AUX_IDLE_DISPLAY_MODE",11,1,"BIN","    //AUX_IDLE_DISPLAY_MODE",11,1,"BIN","    //AUX_IDLE_DISPLAY_MODE",11,1,"BIN","    //AUX_IDLE_DISPLAY_MODE",11,1,"BIN","    //AUX_IDLE_DISPLAY_MODE",11,1,"BIN","    //AUX_IDLE_DISPLAY_MODE",11,1,"BIN","    //AUX_IDLE_DISPLAY_MODE",11,1,"BIN","    //AUX_IDLE_DISPLAY_MODE",11,1,"BIN","    //AUX_IDLE_DISPLAY_MODE",11,1,"BIN","    //AUX_IDLE_DISPLAY_MODE",11,1,"BIN","    //AUX_IDLE_DISPLAY_MODE",11,1,"BIN","    //AUX_IDLE_DISPLAY_MODE",11,1,"BIN","    //AUX_IDLE_DISPLAY_MODE",11,1,"BIN","    //AUX_IDLE_DISPLAY_MODE",11,1,"BIN","    //AUX_IDLE_DISPLAY_MODE",11,1,"BIN","    //AUX_IDLE_DISPLAY_MODE",11,1,"BIN","    //AUX_IDLE_DISPLAY_MODE",11,1,"BIN","    //AUX_IDLE_DISPLAY_MODE",11,1,"BIN","    //AUX_IDLE_DISPLAY_MODE",11,1,"BIN","    //AUX_IDLE_DISPLAY_MODE",11,1,"BIN","    //AUX_IDLE_DISPLAY_MODE",11,1,"BIN","    //AUX_IDLE_DISPLAY_MODE",11,1,"BIN","    //AUX_IDLE_DISPLAY_MODE",11,1,"BIN","    //AUX_IDLE_DISPLAY_MODE",11,1,"BIN","    //AUX_IDLE_DISPLAY_MODE",11,1,"BIN","    //AUX_IDLE_DISPLAY_MODE",11,1,"BIN","    //AUX_IDLE_DISPLAY_MODE",11,1,"BIN","    //AUX_IDLE_DISPLAY_MODE",11,1,"BIN","    //AUX_IDLE_DISPLAY_MODE",11,1,"BIN","    //AUX_IDLE_DISPLAY_MODE",11,1,"BIN","    //AUX_IDLE_DISPLAY_MODE",11,1,"BIN","    //AUX_IDLE_DISPLAY_MODE",11,1,"BIN","    //AUX_IDLE_DISPLAY_MODE",11,1,"BIN","    //AUX_IDLE_DISPLAY_MODE",11,1,"BIN","    //AUX_IDLE_DISPLAY_MODE",11,1,"BIN","    //AUX_IDLE_DISPLAY_MODE",11,1,"BIN","    //AUX_IDLE_DISPLAY_MODE",11,1,"BIN","    //AUX_IDLE_DISPLAY_MODE",11,1,"BIN","    //AUX_IDLE_DISPLAY_MODE",11,1,"BIN","    //AUX_IDLE_DISPLAY_MODE",11,1,"BIN","    //AUX_IDLE_DISPLAY_MODE",11,1,"BIN","    //AUX_IDLE_DISPLAY_MODE",11,1,"BIN","    //AUX_IDLE_DISPLAY_MODE",11,1,"BIN","    //AUX_IDLE_DISPLAY_MODE",11,1,"BIN","    //AUX_IDLE_DISPLAY_MODE",11,1,"BIN","    //AUX_IDLE_DISPLAY_MODE",11,1,"BIN","    //AUX_IDLE_DISPLAY_MODE",11,1,"BIN","    //AUX_IDLE_DISPLAY_MODE",11,1,"BIN","    //AUX_IDLE_DISPLAY_MODE",11,1,"BIN","    //AUX_IDLE_DISPLAY_MODE",11,1,"BIN","    //AUX_IDLE_DISPLAY_MODE",11,1,"BIN","    //AUX_IDLE_DISPLAY_MODE",11,1,"BIN","    //AUX_IDLE_DISPLAY_MODE",11,1,"BIN","    //AUX_IDLE_DISPLAY_MODE",11,1,"BIN","    //AUX_IDLE_DISPLAY_MODE",11,1,"BIN","    //AUX_IDLE_DISPLAY_MODE",11,1,"BIN","    //AUX_IDLE_DISPLAY_MODE",11,1,"BIN","    //AUX_IDLE_DISPLAY_MODE",11,1,"BIN","    //AUX_IDLE_DISPLAY_MODE",11,1,"BIN","    //AUX_IDLE_DISPLAY_MODE",11,1,"BIN","    //AUX_IDLE_DISPLAY_MODE",11,1,"BIN","    //AUX_IDLE_DISPLAY_MODE",11,1,"BIN","    //AUX_IDLE_DISPLAY_MODE",11,1,"BIN","    //AUX_IDLE_DISPLAY_MODE",11,1,"BIN","    //AUX_IDLE_DISPLAY_MODE",11,1,"BIN","    //AUX_IDLE_DISPLAY_MODE",11,1,"BIN","    //AUX_IDLE_DISPLAY_MODE",11,1,"BIN","    //AUX_IDLE_DISPLAY_MODE",11,1,"BIN","    //AUX_IDLE_DISPLAY_MODE",11,1,"BIN","    //AUX_IDLE_DISPLAY_MODE",11,1,"BIN","    //AUX_IDLE_DISPLAY_MODE",11,1,"BIN","    //AUX_IDLE_DISPLAY_MODE",11,1,"BIN","    //AUX_IDLE_DISPLAY_MODE",11,1,"BIN","    //AUX_IDLE_DISPLAY_MODE",11,1,"BIN","    //AUX_IDLE_DISPLAY_MODE",11,1,"BIN","    //AUX_IDLE_DISPLAY_MODE",11,1,"BIN","    //AUX_IDLE_DISPLAY_MODE",11,1,"BIN","    //AUX_IDLE_DISPLAY_MODE",11,1,"BIN","    //AUX_IDLE_DISPLAY_MODE",11,1,"BIN","    //AUX_IDLE_DISPLAY_MODE",11,1,"BIN","    //AUX_IDLE_DISPLAY_MODE",11,1,"BIN","    //AUX_IDLE_DISPLAY_MODE",11,1,"BIN","    //AUX_IDLE_DISPLAY_MODE",11,1,"BIN","    //AUX_IDLE_DISPLAY_MODE",11,1,"BIN","    //AUX_IDLE_DISPLAY_MODE",11,1,"BIN","    //AUX_IDLE_DISPLAY_MODE",11,1,"BIN","    //AUX_IDLE_DISPLAY_MODE",11,1,"BIN","    //AUX_IDLE_DISPLAY_MODE",11,1,"BIN","    //AUX_IDLE_DISPLAY_MODE",11,1,"BIN","    //AUX_IDLE_DISPLAY_MODE",11,1,"BIN","    //AUX_IDLE_DISPLAY_MODE",11,1,"BIN","    //AUX_IDLE_DISPLAY_MODE",11,1,"BIN","    //AUX_IDLE_DISPLAY_MODE",11,1,"BIN","    //AUX_IDLE_DISPLAY_MODE",11,1,"BIN","    //AUX_IDLE_DISPLAY_MODE",11,1,"BIN","    //AUX_IDLE_DISPLAY_MODE",11,1,"BIN","    //AUX_IDLE_DISPLAY_MODE",11,1,"BIN","    //AUX_IDLE_DISPLAY_MODE",11,1,"BIN","    //AUX_IDLE_DISPLAY_MODE",11,1,"BIN","    //AUX_IDLE_DISPLAY_MODE",11,1,"BIN","    //AUX_IDLE_DISPLAY_MODE",11,1,"BIN","    //AUX_IDLE_DISPLAY_MODE",11,1,"BIN","    //AUX_IDLE_DISPLAY_MODE",11,1,"BIN","    //AUX_IDLE_DISPLAY_MODE",11,1,"BIN","    //AUX_IDLE_DISPLAY_MODE",11,1,"BIN","    //AUX_IDLE_DISPLAY_MODE",11,1,"BIN","    //AUX_IDLE_DISPLAY_MODE",11,1,"BIN","    //AUX_IDLE_DISPLAY_MODE",11,1,"BIN","    //AUX_IDLE_DISPLAY_MODE",11,1,"BIN","    //AUX_IDLE_DISPLAY_MODE",11,1,"BIN","    //AUX_IDLE_DISPLAY_MODE",11,1,"BIN","    //AUX_IDLE_DISPLAY_MODE",11,1,"BIN","    //AUX_IDLE_DISPLAY_MODE",11,1,"BIN","    //AUX_IDLE_DISPLAY_MODE",11,1,"BIN","    //AUX_IDLE_DISPLAY_MODE",11,1,"BIN","    //AUX_IDLE_DISPLAY_MODE",11,1,"BIN","    //AUX_IDLE_DISPLAY_MODE",11,1,"BIN","    //AUX_IDLE_DISPLAY_MODE",11,1,"BIN","    //AUX_IDLE_DISPLAY_MODE",11,1,"BIN","    //AUX_IDLE_DISPLAY_MODE",11,1,"BIN","    //AUX_IDLE_DISPLAY_MODE",11,1,"BIN","    //AUX_IDLE_DISPLAY_MODE",11,1,"BIN","    //AUX_IDLE_DISPLAY_MODE",11,1,"BIN","    //AUX_IDLE_DISPLAY_MODE",11,1,"BIN","    //AUX_IDLE_DISPLAY_MODE",11,1,"BIN","    //AUX_IDLE_DISPLAY_MODE",11,1,"BIN","    //AUX_IDLE_DISPLAY_MODE",11,1,"BIN","    //AUX_IDLE_DISPLAY_MODE",11,1,"BIN","    //AUX_IDLE_DISPLAY_MODE",11,1,"BIN","    //AUX_IDLE_DISPLAY_MODE",11,1,"BIN","    //AUX_IDLE_DISPLAY_MODE",11,1,"BIN","    //AUX_IDLE_DISPLAY_MODE",11,1,"BIN","    //AUX_IDLE_DISPLAY_MODE",11,1,"BIN","    //AUX_IDLE_DISPLAY_MODE",11,1,"BIN","    //AUX_IDLE_DISPLAY_MODE",11,1,"BIN","    //AUX_IDLE_DISPLAY_MODE",11,1,"BIN","    //AUX_IDLE_DISPLAY_MODE",11,1,"BIN","    //AUX_IDLE_DISPLAY_MODE",11,1,"BIN","    //AUX_IDLE_DISPLAY_MODE",11,1,"BIN","    //AUX_IDLE_DISPLAY_MODE",11,1,"BIN","    //AUX_IDLE_DISPLAY_MODE",11,1,"BIN","    //AUX_IDLE_DISPLAY_MODE",11,1,"BIN","    //AUX_IDLE_DISPLAY_MODE",11,1,"BIN","    //AUX_IDLE_DISPLAY_MODE",11,1,"BIN","    //AUX_IDLE_DISPLAY_MODE",11,1,"BIN","    //AUX_IDLE_DISPLAY_MODE",11,1,"BIN","    //AUX_IDLE_DISPLAY_MODE",11,1,"BIN","    //AUX_IDLE_DISPLAY_MODE",11,1,"BIN","    //AUX_IDLE_DISPLAY_MODE",11,1,"BIN","    //AUX_IDLE_DISPLAY_MODE",11,1,"BIN","    //AUX_IDLE_DISPLAY_MODE",11,1,"BIN","    //AUX_IDLE_DISPLAY_MODE",11,1,"BIN","    //AUX_IDLE_DISPLAY_MODE",11,1,"BIN","    //AUX_IDLE_DISPLAY_MODE",11,1,"BIN","    //AUX_IDLE_DISPLAY_MODE",11,1,"BIN","    //AUX_IDLE_DISPLAY_MODE",11,1,"BIN","    //AUX_IDLE_DISPLAY_MODE",11,1,"BIN","    //AUX_IDLE_DISPLAY_MODE",11,1,"BIN","    //AUX_IDLE_DISPLAY_MODE",11,1,"BIN","    //AUX_IDLE_DISPLAY_MODE",11,1,"BIN","    //AUX_IDLE_DISPLAY_MODE",11,1,"BIN","    //AUX_IDLE_DISPLAY_MODE",11,1,"BIN","    //AUX_IDLE_DISPLAY_MODE",11,1,"BIN","    //AUX_IDLE_DISPLAY_MODE",11,1,"BIN","    //AUX_IDLE_DISPLAY_MODE",11,1,"BIN","    //AUX_IDLE_DISPLAY_MODE",11,1,"BIN","    //AUX_IDLE_DISPLAY_MODE",11,1,"BIN","    //AUX_IDLE_DISPLAY_MODE",11,1,"BIN","    //AUX_IDLE_DISPLAY_MODE",11,1,"BIN","    //AUX_IDLE_DISPLAY_MODE",11,1,"BIN","    //AUX_IDLE_DISPLAY_MODE",11,1,"BIN","    //AUX_IDLE_DISPLAY_MODE",11,1,"BIN","    //AUX_IDLE_DISPLAY_MODE",11,1,"BIN","    //AUX_IDLE_DISPLAY_MODE",11,1,"BIN","    //AUX_IDLE_DISPLAY_MODE",11,1,"BIN","    //AUX_IDLE_DISPLAY_MODE",11,1,"BIN","    //AUX_IDLE_DISPLAY_MODE",11,1,"BIN","    //AUX_IDLE_DISPLAY_MODE",11,1,"BIN","    //AUX_IDLE_DISPLAY_MODE",11,1,"BIN","    //AUX_IDLE_DISPLAY_MODE",11,1,"BIN","    //AUX_IDLE_DISPLAY_MODE",11,1,"BIN","    //AUX_IDLE_DISPLAY_MODE",11,1,"BIN","    //AUX_IDLE_DISPLAY_MODE",11,1,"BIN","    //AUX_IDLE_DISPLAY_MODE",11,1,"BIN","    //AUX_IDLE_DISPLAY_MODE",11,1,"BIN","    //AUX_IDLE_DISPLAY_MODE",11,1,"BIN","    //AUX_IDLE_DISPLAY_MODE",11,1,"BIN","    //AUX_IDLE_DISPLAY_MODE",11,1,"BIN","    //AUX_IDLE_DISPLAY_MODE",11,1,"BIN","    //AUX_IDLE_DISPLAY_MODE",11,1,"BIN","    //AUX_IDLE_DISPLAY_MODE",11,1,"BIN","    //AUX_IDLE_DISPLAY_MODE",11,1,"BIN","    //AUX_IDLE_DISPLAY_MODE",11,1,"BIN","    //AUX_IDLE_DISPLAY_MODE",11,1,"BIN","    //AUX_IDLE_DISPLAY_MODE",11,1,"BIN","    //AUX_IDLE_DISPLAY_MODE",11,1,"BIN","    //AUX_IDLE_DISPLAY_MODE",11,1,"BIN","    //AUX_IDLE_DISPLAY_MODE",11,1,"BIN","    //AUX_IDLE_DISPLAY_MODE",11,1,"BIN","    //AUX_IDLE_DISPLAY_MODE",11,1,"BIN","    //AUX_IDLE_DISPLAY_MODE",11,1,"BIN","    //AUX_IDLE_DISPLAY_MODE",11,1,"BIN","    //AUX_IDLE_DISPLAY_MODE",11,1,"BIN","    //AUX_IDLE_DISPLAY_MODE",11,1,"BIN","    //AUX_IDLE_DISPLAY_MODE",11,1,"BIN","    //AUX_IDLE_DISPLAY_MODE",11,1,"BIN","    //AUX_IDLE_DISPLAY_MODE",11,1,"BIN","    //AUX_IDLE_DISPLAY_MODE",11,1,"BIN","    //AUX_IDLE_DISPLAY_MODE",11,1,"BIN","    //AUX_IDLE_DISPLAY_MODE",11,1,"BIN","    //AUX_IDLE_DISPLAY_MODE",11,1,"BIN","    //AUX_IDLE_DISPLAY_MODE",11,1,"BIN","    //AUX_IDLE_DISPLAY_MODE",11,1,"BIN","    //AUX_IDLE_DISPLAY_MODE",11,1,"BIN","    //AUX_IDLE_DISPLAY_MODE",11,1,"BIN","    //AUX_IDLE_DISPLAY_MODE",11,1,"BIN","    //AUX_IDLE_DISPLAY_MODE",11,1,"BIN","    //AUX_IDLE_DISPLAY_MODE",11,1,"BIN","    //AUX_IDLE_DISPLAY_MODE",11,1,"BIN","    //AUX_IDLE_DISPLAY_MODE",11,1,"BIN","    //AUX_IDLE_DISPLAY_MODE",11,1,"BIN","    //AUX_IDLE_DISPLAY_MODE",11,1,"BIN","    //AUX_IDLE_DISPLAY_MODE",11,1,"BIN","    //AUX_IDLE_DISPLAY_MODE",11,1,"BIN","    //AUX_IDLE_DISPLAY_MODE",11,1,"BIN","    //AUX_IDLE_DISPLAY_MODE",11,1,"BIN","    //AUX_IDLE_DISPLAY_MODE",11,1,"BIN","    //AUX_IDLE_DISPLAY_MODE",11,1,"BIN","    //AUX_IDLE_DISPLAY_MODE",11,1,"BIN","    //AUX_IDLE_DISPLAY_MODE",11,1,"BIN","    //AUX_IDLE_DISPLAY_MODE",11,1,"BIN","    //AUX_IDLE_DISPLAY_MODE",11,1,"BIN","    //AUX_IDLE_DISPLAY_MODE",11,1,"BIN","    //AUX_IDLE_DISPLAY_MODE",11,1,"BIN","    //AUX_IDLE_DISPLAY_MODE",11,1,"BIN","    //AUX_IDLE_DISPLAY_MODE",11,1,"BIN","    //AUX_IDLE_DISPLAY_MODE",11,1,"BIN","    //AUX_IDLE_DISPLAY_MODE",11,1,"BIN","    //AUX_IDLE_DISPLAY_MODE",11,1,"BIN","    //AUX_IDLE_DISPLAY_MODE",11,1,"BIN","    //AUX_IDLE_DISPLAY_MODE",11,1,"BIN","    //AUX_IDLE_DISPLAY_MODE",11,1,"BIN","    //AUX_IDLE_DISPLAY_MODE",11,1,"BIN","    //AUX_IDLE_DISPLAY_MODE",11,1,"BIN","    //AUX_IDLE_DISPLAY_MODE",11,1,"BIN","    //AUX_IDLE_DISPLAY_MODE",11,1,"BIN","    //AUX_IDLE_DISPLAY_MODE",11,1,"BIN","    //AUX_IDLE_DISPLAY_MODE",11,1,"BIN","    //AUX_IDLE_DISPLAY_MODE",11,1,"BIN","    //AUX_IDLE_DISPLAY_MODE",11,1,"BIN","    //AUX_IDLE_DISPLAY_MODE",11,1,"BIN","    //AUX_IDLE_DISPLAY_MODE",11,1,"BIN","    //AUX_IDLE_DISPLAY_MODE",11,1,"BIN","    //AUX_IDLE_DISPLAY_MODE",11,1,"BIN","    //AUX_IDLE_DISPLAY_MODE",11,1,"BIN","    //AUX_IDLE_DISPLAY_MODE",11,1,"BIN","    //AUX_IDLE_DISPLAY_MODE",11,1,"BIN","    //AUX_IDLE_DISPLAY_MODE",11,1,"BIN","    //AUX_IDLE_DISPLAY_MODE",11,1,"BIN","    //AUX_IDLE_DISPLAY_MODE",11,1,"BIN","    //AUX_IDLE_DISPLAY_MODE",11,1,"BIN","    //AUX_IDLE_DISPLAY_MODE",11,1,"BIN","    //AUX_IDLE_DISPLAY_MODE",11,1,"BIN","    //AUX_IDLE_DISPLAY_MODE",11,1,"BIN","    //AUX_IDLE_DISPLAY_MODE",11,1,"BIN","    //AUX_IDLE_DISPLAY_MODE",11,1,"BIN","    //AUX_IDLE_DISPLAY_MODE",11,1,"BIN","    //AUX_IDLE_DISPLAY_MODE",11,1,"BIN","    //AUX_IDLE_DISPLAY_MODE",11,1,"BIN","    //AUX_IDLE_DISPLAY_MODE",11,1,"BIN","    //AUX_IDLE_DISPLAY_MODE",11,1,"BIN","    //AUX_IDLE_DISPLAY_MODE",11,1,"BIN","    //AUX_IDLE_DISPLAY_MODE",11,1,"BIN","    //AUX_IDLE_DISPLAY_MODE",11,1,"BIN","    //AUX_IDLE_DISPLAY_MODE",11,1,"BIN","    //AUX_IDLE_DISPLAY_MODE",11,1,"BIN","    //AUX_IDLE_DISPLAY_MODE",11,1,"BIN","    //AUX_IDLE_DISPLAY_MODE",11,1,"BIN","    //AUX_IDLE_DISPLAY_MODE",11,1,"BIN","    //AUX_IDLE_DISPLAY_MODE",11,1,"BIN","    //AUX_IDLE_DISPLAY_MODE",11,1,"BIN","    //AUX_IDLE_DISPLAY_MODE",11,1,"BIN","    //AUX_IDLE_DISPLAY_MODE",11,1,"BIN","    //AUX_IDLE_DISPLAY_MODE",11,1,"BIN","    //AUX_IDLE_DISPLAY_MODE",11,1,"BIN","    //AUX_IDLE_DISPLAY_MODE",11,1,"BIN","    //AUX_IDLE_DISPLAY_MODE",11,1,"BIN","    //AUX_IDLE_DISPLAY_MODE",11,1,"BIN","    //AUX_IDLE_DISPLAY_MODE",11,1,"BIN","    //AUX_IDLE_DISPLAY_MODE",11,1,"BIN","    //AUX_IDLE_DISPLAY_MODE",11,1,"BIN","    //AUX_IDLE_DISPLAY_MODE",11,1,"BIN","    //AUX_IDLE_DISPLAY_MODE",11,1,"BIN","    //AUX_IDLE_DISPLAY_MODE",11,1,"BIN","    //AUX_IDLE_DISPLAY_MODE",11,1,"BIN","    //AUX_IDLE_DISPLAY_MODE",11,1,"BIN","    //AUX_IDLE_DISPLAY_MODE",11,1,"BIN","    //AUX_IDLE_DISPLAY_MODE",11,1,"BIN","    //AUX_IDLE_DISPLAY_MODE",11,1,"BIN","    //AUX_IDLE_DISPLAY_MODE",11,1,"BIN","    //AUX_IDLE_DISPLAY_MODE",11,1,"BIN","    //AUX_IDLE_DISPLAY_MODE",11,1,"BIN","    //AUX_IDLE_DISPLAY_MODE",11,1,"BIN","    //AUX_IDLE_DISPLAY_MODE",11,1,"BIN","    //AUX_IDLE_DISPLAY_MODE",11,1,"BIN","    //AUX_IDLE_DISPLAY_MODE",11,1,"BIN","    //AUX_IDLE_DISPLAY_MODE",11,1,"BIN","    //AUX_IDLE_DISPLAY_MODE",11,1,"BIN","    //AUX_IDLE_DISPLAY_MODE",11,1,"BIN","    //AUX_IDLE_DISPLAY_MODE",11,1,"BIN","    //AUX_IDLE_DISPLAY_MODE",11,1,"BIN","    //AUX_IDLE_DISPLAY_MODE",11,1,"BIN","    //AUX_IDLE_DISPLAY_MODE",11,1,"BIN","    //AUX_IDLE_DISPLAY_MODE",11,1,"BIN","    //AUX_IDLE_DISPLAY_MODE",11,1,"BIN","    //AUX_IDLE_DISPLAY_MODE",11,1,"BIN","    //AUX_IDLE_DISPLAY_MODE",11,1,"BIN","    //AUX_IDLE_DISPLAY_MODE",11,1,"BIN","    //AUX_IDLE_DISPLAY_MODE",11,1,"BIN","    //AUX_IDLE_DISPLAY_MODE",11,1,"BIN","    //AUX_IDLE_DISPLAY_MODE",11,1,"BIN","    //AUX_IDLE_DISPLAY_MODE",11,1,"BIN","    //AUX_IDLE_DISPLAY_MODE",11,1,"BIN","    //AUX_IDLE_DISPLAY_MODE",11,1,"BIN","    //AUX_IDLE_DISPLAY_MODE",11,1,"BIN","    //AUX_IDLE_DISPLAY_MODE",11,1,"BIN","    //AUX_IDLE_DISPLAY_MODE",11,1,"BIN","    //AUX_IDLE_DISPLAY_MODE",11,1,"BIN","    //AUX_IDLE_DISPLAY_MODE",11,1,"BIN","    //AUX_IDLE_DISPLAY_MODE",11,1,"BIN","    //AUX_IDLE_DISPLAY_MODE",11,1,"BIN","    //AUX_IDLE_DISPLAY_MODE",11,1,"BIN","    //AUX_IDLE_DISPLAY_MODE",11,1,"BIN","    //AUX_IDLE_DISPLAY_MODE",11,1,"BIN","    //AUX_IDLE_DISPLAY_MODE",11,1,"BIN","    //AUX_IDLE_DISPLAY_MODE",11,1,"BIN","    //AUX_IDLE_DISPLAY_MODE",11,1,"BIN","    //AUX_IDLE_DISPLAY_MODE",11,1,"BIN","    //AUX_IDLE_DISPLAY_MODE",11,1,"BIN","    //AUX_IDLE_DISPLAY_MODE",11,1,"BIN","    //AUX_IDLE_DISPLAY_MODE",11,1,"BIN","    //AUX_IDLE_DISPLAY_MODE",11,1,"BIN","    //AUX_IDLE_DISPLAY_MODE",11,1,"BIN","    //AUX_IDLE_DISPLAY_MODE",11,1,"BIN","    //AUX_IDLE_DISPLAY_MODE",11,1,"BIN","    //AUX_IDLE_DISPLAY_MODE",11,1,"BIN","    //AUX_IDLE_DISPLAY_MODE",11,1,"BIN","    //AUX_IDLE_DISPLAY_MODE",11,1,"BIN","    //AUX_IDLE_DISPLAY_MODE",11,1,"BIN","    //AUX_IDLE_DISPLAY_MODE",11,1,"BIN","    //AUX_IDLE_DISPLAY_MODE",11,1,"BIN","    //AUX_IDLE_DISPLAY_MODE",11,1,"BIN","    //AUX_IDLE_DISPLAY_MODE",11,1,"BIN","    //AUX_IDLE_DISPLAY_MODE",11,1,"BIN","    //AUX_IDLE_DISPLAY_MODE",11,1,"BIN","    //AUX_IDLE_DISPLAY_MODE",11,1,"BIN","    //AUX_IDLE_DISPLAY_MODE",11,1,"BIN","    //AUX_IDLE_DISPLAY_MODE",11,1,"BIN","    //AUX_IDLE_DISPLAY_MODE",11,1,"BIN","    //AUX_IDLE_DISPLAY_MODE",11,1,"BIN","    //AUX_IDLE_DISPLAY_MODE",11,1,"BIN","    //AUX_IDLE_DISPLAY_MODE",11,1,"BIN","    //AUX_IDLE_DISPLAY_MODE",11,1,"BIN","    //AUX_IDLE_DISPLAY_MODE",11,1,"BIN","    //AUX_IDLE_DISPLAY_MODE",11,1,"BIN","    //AUX_IDLE_DISPLAY_MODE",11,1,"BIN","    //AUX_IDLE_DISPLAY_MODE",11,1,"BIN","    //AUX_IDLE_DISPLAY_MODE",11,1,"BIN","    //AUX_IDLE_DISPLAY_MODE",11,1,"BIN","    //AUX_IDLE_DISPLAY_MODE",11,1,"BIN","    //AUX_IDLE_DISPLAY_MODE",11,1,"BIN","    //AUX_IDLE_DISPLAY_MODE",11,1,"BIN","    //AUX_IDLE_DISPLAY_MODE",11,1,"BIN","    //AUX_IDLE_DISPLAY_MODE",11,1,"BIN","    //AUX_IDLE_DISPLAY_MODE",11,1,"BIN","    //AUX_IDLE_DISPLAY_MODE",11,1,"BIN","    //AUX_IDLE_DISPLAY_MODE",11,1,"BIN","    //AUX_IDLE_DISPLAY_MODE",11,1,"BIN","    //AUX_IDLE_DISPLAY_MODE",11,1,"BIN","    //AUX_IDLE_DISPLAY_MODE",11,1,"BIN","    //AUX_IDLE_DISPLAY_MODE",11,1,"BIN","    //AUX_IDLE_DISPLAY_MODE",11,1,"BIN","    //AUX_IDLE_DISPLAY_MODE",11,1,"BIN","    //AUX_IDLE_DISPLAY_MODE",11,1,"BIN","    //AUX_IDLE_DISPLAY_MODE",11,1,"BIN","    //AUX_IDLE_DISPLAY_MODE",11,1,"BIN","    //AUX_IDLE_DISPLAY_MODE",11,1,"BIN","    //AUX_IDLE_DISPLAY_MODE",11,1,"BIN","    //AUX_IDLE_DISPLAY_MODE",11,1,"BIN","    //AUX_IDLE_DISPLAY_MODE",11,1,"BIN","    //AUX_IDLE_DISPLAY_MODE",11,1,"BIN","    //AUX_IDLE_DISPLAY_MODE",11,1,"BIN","    //AUX_IDLE_DISPLAY_MODE",11,1,"BIN","    //AUX_IDLE_DISPLAY_MODE",11,1,"BIN","    //AUX_IDLE_DISPLAY_MODE",11,1,"BIN","    //AUX_IDLE_DISPLAY_MODE",11,1,"BIN","    //AUX_IDLE_DISPLAY_MODE",11,1,"BIN","    //AUX_IDLE_DISPLAY_MODE",11,1,"BIN","    //AUX_IDLE_DISPLAY_MODE",11,1,"BIN","    //AUX_IDLE_DISPLAY_MODE",11,1,"BIN","    //AUX_IDLE_DISPLAY_MODE",11,1,"BIN","    //AUX_IDLE_DISPLAY_MODE",11,1,"BIN","    //AUX_IDLE_DISPLAY_MODE",11,1,"BIN","    //AUX_IDLE_DISPLAY_MODE",11,1,"BIN","    //AUX_IDLE_DISPLAY_MODE",11,1,"BIN","    //AUX_IDLE_DISPLAY_MODE",11,1,"BIN","    //AUX_IDLE_DISPLAY_MODE",11,1,"BIN","    //AUX_IDLE_DISPLAY_MODE",11,1,"BIN","    //AUX_IDLE_DISPLAY_MODE",11,1,"BIN","    //AUX_IDLE_DISPLAY_MODE",11,1,"BIN","    //AUX_IDLE_DISPLAY_MODE",11,1,"BIN","    //AUX_IDLE_DISPLAY_MODE",11,1,"BIN","    //AUX_IDLE_DISPLAY_MODE",11,1,"BIN","    //AUX_IDLE_DISPLAY_MODE",11,1,"BIN","    //AUX_IDLE_DISPLAY_MODE",11,1,"BIN","    //AUX_IDLE_DISPLAY_MODE",11,1,"BIN","    //AUX_IDLE_DISPLAY_MODE",11,1,"BIN","    //AUX_IDLE_DISPLAY_MODE",11,1,"BIN","    //AUX_IDLE_DISPLAY_MODE",11,1,"BIN","    //AUX_IDLE_DISPLAY_MODE",11,1,"BIN","    //AUX_IDLE_DISPLAY_MODE",11,1,"BIN","    //AUX_IDLE_DISPLAY_MODE",11,1,"BIN","    //AUX_IDLE_DISPLAY_MODE",11,1,"BIN","    //AUX_IDLE_DISPLAY_MODE",11,1,"BIN","    //AUX_IDLE_DISPLAY_MODE",11,1,"BIN","    //AUX_IDLE_DISPLAY_MODE",11,1,"BIN","    //AUX_IDLE_DISPLAY_MODE",11,1,"BIN","    //AUX_IDLE_DISPLAY_MODE",11,1,"BIN","    //AUX_IDLE_DISPLAY_MODE",11,1,"BIN","    //AUX_IDLE_DISPLAY_MODE",11,1,"BIN","    //AUX_IDLE_DISPLAY_MODE",11,1,"BIN","    //AUX_IDLE_DISPLAY_MODE",11,1,"BIN","    //AUX_IDLE_DISPLAY_MODE",11,1,"BIN","    //AUX_IDLE_DISPLAY_MODE",11,1,"BIN","    //AUX_IDLE_DISPLAY_MODE",11,1,"BIN","    //AUX_IDLE_DISPLAY_MODE",11,1,"BIN","    //AUX_IDLE_DISPLAY_MODE",11,1,"BIN","    //AUX_IDLE_DISPLAY_MODE",11,1,"BIN","    //AUX_IDLE_DISPLAY_MODE",11,1,"BIN","    //AUX_IDLE_DISPLAY_MODE",11,1,"BIN","    //AUX_IDLE_DISPLAY_MODE",11,1,"BIN","    //AUX_IDLE_DISPLAY_MODE",11,1,"BIN","    //AUX_IDLE_DISPLAY_MODE",11,1,"BIN","    //AUX_IDLE_DISPLAY_MODE",11,1,"BIN","    //AUX_IDLE_DISPLAY_MODE",11,1,"BIN","    //AUX_IDLE_DISPLAY_MODE",11,1,"BIN","    //AUX_IDLE_DISPLAY_MODE",11,1,"BIN","    //AUX_IDLE_DISPLAY_MODE",11,1,"BIN","    //AUX_IDLE_DISPLAY_MODE",11,1,"BIN","    //AUX_IDLE_DISPLAY_MODE",11,1,"BIN","    //AUX_IDLE_DISPLAY_MODE",11,1,"BIN","    //AUX_IDLE_DISPLAY_MODE",11,1,"BIN","    //AUX_IDLE_DISPLAY_MODE",11,1,"BIN","    //AUX_IDLE_DISPLAY_MODE",11,1,"BIN","    //AUX_IDLE_DISPLAY_MODE",11,1,"BIN","    //AUX_IDLE_DISPLAY_MODE",11,1,"BIN","    //AUX_IDLE_DISPLAY_MODE",11,1,"BIN","    //AUX_IDLE_DISPLAY_MODE",11,1,"BIN","    //AUX_IDLE_DISPLAY_MODE",11,1,"BIN","    //AUX_IDLE_DISPLAY_MODE",11,1,"BIN","    //AUX_IDLE_DISPLAY_MODE",11,1,"BIN","    //AUX_IDLE_DISPLAY_MODE",11,1,"BIN","    //AUX_IDLE_DISPLAY_MODE",11,1,"BIN","    //AUX_IDLE_DISPLAY_MODE",11,1,"BIN","    //AUX_IDLE_DISPLAY_MODE",11,1,"BIN","    //AUX_IDLE_DISPLAY_MODE",11,1,"BIN","    //AUX_IDLE_DISPLAY_MODE",11,1,"BIN","    //AUX_IDLE_DISPLAY_MODE",11,1,"BIN","    //AUX_IDLE_DISPLAY_MODE",11,1,"BIN","    //AUX_IDLE_DISPLAY_MODE",11,1,"BIN","    //AUX_IDLE_DISPLAY_MODE",11,1,"BIN","    //AUX_IDLE_DISPLAY_MODE",11,1,"BIN","    //AUX_IDLE_DISPLAY_MODE",11,1,"BIN","    //AUX_IDLE_DISPLAY_MODE",11,1,"BIN","    //AUX_IDLE_DISPLAY_MODE",11,1,"BIN","    //AUX_IDLE_DISPLAY_MODE",11,1,"BIN","    //AUX_IDLE_DISPLAY_MODE",11,1,"BIN","    //AUX_IDLE_DISPLAY_MODE",11,1,"BIN","    //AUX_IDLE_DISPLAY_MODE",11,1,"BIN","    //AUX_IDLE_DISPLAY_MODE",11,1,"BIN","    //AUX_IDLE_DISPLAY_MODE",11,1,"BIN","    //AUX_IDLE_DISPLAY_MODE",11,1,"BIN","    //AUX_IDLE_DISPLAY_MODE",11,1,"BIN","    //AUX_IDLE_DISPLAY_MODE",11,1,"BIN","    //AUX_IDLE_DISPLAY_MODE",11,1,"BIN","    //AUX_IDLE_DISPLAY_MODE",11,1,"BIN","    //AUX_IDLE_DISPLAY_MODE",11,1,"BIN","    //AUX_IDLE_DISPLAY_MODE",11,1,"BIN","    //AUX_IDLE_DISPLAY_MODE",11,1,"BIN","    //AUX_IDLE_DISPLAY_MODE",11,1,"BIN","    //AUX_IDLE_DISPLAY_MODE",11,1,"BIN","    //AUX_IDLE_DISPLAY_MODE",11,1,"BIN","    //AUX_IDLE_DISPLAY_MODE",11,1,"BIN","    //AUX_IDLE_DISPLAY_MODE",11,1,"BIN","    //AUX_IDLE_DISPLAY_MODE",11,1,"BIN","    //AUX_IDLE_DISPLAY_MODE",11,1,"BIN","    //AUX_IDLE_DISPLAY_MODE",11,1,"BIN","    //AUX_IDLE_DISPLAY_MODE",11,1,"BIN","    //AUX_IDLE_DISPLAY_MODE",11,1,"BIN","    //AUX_IDLE_DISPLAY_MODE",11,1,"BIN","    //AUX_IDLE_DISPLAY_MODE",11,1,"BIN","    //AUX_IDLE_DISPLAY_MODE",11,1,"BIN","    //AUX_IDLE_DISPLAY_MODE",11,1,"BIN","    //AUX_IDLE_DISPLAY_MODE",11,1,"BIN","    //AUX_IDLE_DISPLAY_MODE",11,1,"BIN","    //AUX_IDLE_DISPLAY_MODE",11,1,"BIN","    //AUX_IDLE_DISPLAY_MODE",11,1,"BIN","    //AUX_IDLE_DISPLAY_MODE",11,1,"BIN","    //AUX_IDLE_DISPLAY_MODE",11,1,"BIN","    //AUX_IDLE_DISPLAY_MODE",11,1,"BIN","    //AUX_IDLE_DISPLAY_MODE",11,1,"BIN","    //AUX_IDLE_DISPLAY_MODE",11,1,"BIN","    //AUX_IDLE_DISPLAY_MODE",11,1,"BIN","    //AUX_IDLE_DISPLAY_MODE",11,1,"BIN","    //AUX_IDLE_DISPLAY_MODE",11,1,"BIN","    //AUX_IDLE_DISPLAY_MODE",11,1,"BIN","    //AUX_IDLE_DISPLAY_MODE",11,1,"BIN","    //AUX_IDLE_DISPLAY_MODE",11,1,"BIN","    //AUX_IDLE_DISPLAY_MODE",11,1,"BIN","    //AUX_IDLE_DISPLAY_MODE",11,1,"BIN","    //AUX_IDLE_DISPLAY_MODE",11,1,"BIN","    //AUX_IDLE_DISPLAY_MODE",11,1,"BIN","    //AUX_IDLE_DISPLAY_MODE",11,1,"BIN","    //AUX_IDLE_DISPLAY_MODE",11,1,"BIN","    //AUX_IDLE_DISPLAY_MODE",11,1,"BIN","    //AUX_IDLE_DISPLAY_MODE",11,1,"BIN","    //AUX_IDLE_DISPLAY_MODE",11,1,"BIN","    //AUX_IDLE_DISPLAY_MODE",11,1,"BIN","    //AUX_IDLE_DISPLAY_MODE",11,1,"BIN","    //AUX_IDLE_DISPLAY_MODE",11,1,"BIN","    //AUX_IDLE_DISPLAY_MODE",11,1,"BIN","    //AUX_IDLE_DISPLAY_MODE",11,1,"BIN","    //AUX_IDLE_DISPLAY_MODE",11,1,"BIN","    //AUX_IDLE_DISPLAY_MODE",11,1,"BIN","    //AUX_IDLE_DISPLAY_MODE",11,1,"BIN","    //AUX_IDLE_DISPLAY_MODE",11,1,"BIN","    //AUX_IDLE_DISPLAY_MODE",11,1,"BIN","    //AUX_IDLE_DISPLAY_MODE",11,1,"BIN","    //AUX_IDLE_DISPLAY_MODE",11,1,"BIN","    //AUX_IDLE_DISPLAY_MODE",11,1,"BIN","    //AUX_IDLE_DISPLAY_MODE",11,1,"BIN","    //AUX_IDLE_DISPLAY_MODE",11,1,"BIN","    //AUX_IDLE_DISPLAY_MODE",11,1,"BIN","    //AUX_IDLE_DISPLAY_MODE",11,1,"BIN","    //AUX_IDLE_DISPLAY_MODE",11,1,"BIN","    //AUX_IDLE_DISPLAY_MODE",11,1,"BIN","    //AUX_IDLE_DISPLAY_MODE",11,1,"BIN","    //AUX_IDLE_DISPLAY_MODE",11,1,"BIN","    //AUX_IDLE_DISPLAY_MODE",11,1,"BIN","    //AUX_IDLE_DISPLAY_MODE",11,1,"BIN","    //AUX_IDLE_DISPLAY_MODE",11,1,"BIN","    //AUX_IDLE_DISPLAY_MODE",11,1,"BIN","    //AUX_IDLE_DISPLAY_MODE",11,1,"BIN","    //AUX_IDLE_DISPLAY_MODE",11,1,"BIN","    //AUX_IDLE_DISPLAY_MODE",11,1,"BIN","    //AUX_IDLE_DISPLAY_MODE",11,1,"BIN","    //AUX_IDLE_DISPLAY_MODE",11,1,"BIN","    //AUX_IDLE_DISPLAY_MODE",11,1,"BIN","    //AUX_IDLE_DISPLAY_MODE",11,1,"BIN","    //AUX_IDLE_DISPLAY_MODE",11,1,"BIN","    //AUX_IDLE_DISPLAY_MODE",11,1,"BIN","    //AUX_IDLE_DISPLAY_MODE",11,1,"BIN","    //AUX_IDLE_DISPLAY_MODE",11,1,"BIN","    //AUX_IDLE_DISPLAY_MODE",11,1,"BIN","    //AUX_IDLE_DISPLAY_MODE",11,1,"BIN","    //AUX_IDLE_DISPLAY_MODE",11,1,"BIN","    //AUX_IDLE_DISPLAY_MODE",11,1,"BIN","    //AUX_IDLE_DISPLAY_MODE",11,1,"BIN","    //AUX_IDLE_DISPLAY_MODE",11,1,"BIN","    //AUX_IDLE_DISPLAY_MODE",11,1,"BIN","    //AUX_IDLE_DISPLAY_MODE",11,1,"BIN","    //AUX_IDLE_DISPLAY_MODE",11,1,"BIN","    //AUX_IDLE_DISPLAY_MODE",11,1,"BIN","    //AUX_IDLE_DISPLAY_MODE",11,1,"BIN","    //AUX_IDLE_DISPLAY_MODE",11,1,"BIN","    //AUX_IDLE_DISPLAY_MODE",11,1,"BIN","    //AUX_IDLE_DISPLAY_MODE",11,1,"BIN","    //AUX_IDLE_DISPLAY_MODE",11,1,"BIN","    //AUX_IDLE_DISPLAY_MODE",11,1,"BIN","    //AUX_IDLE_DISPLAY_MODE",11,1,"BIN","    //AUX_IDLE_DISPLAY_MODE",11,1,"BIN","    //AUX_IDLE_DISPLAY_MODE",11,1,"BIN","    //AUX_IDLE_DISPLAY_MODE",11,1,"BIN","    //AUX_IDLE_DISPLAY_MODE",11,1,"BIN","    //AUX_IDLE_DISPLAY_MODE",11,1,"BIN","    //AUX_IDLE_DISPLAY_MODE",11,1,"BIN","    //AUX_IDLE_DISPLAY_MODE",11,1,"BIN","    //AUX_IDLE_DISPLAY_MODE",11,1,"BIN","    //AUX_IDLE_DISPLAY_MODE",11,1,"BIN","    //AUX_IDLE_DISPLAY_MODE",11,1,"BIN","    //AUX_IDLE_DISPLAY_MODE",11,1,"BIN","    //AUX_IDLE_DISPLAY_MODE",11,1,"BIN","    //AUX_IDLE_DISPLAY_MODE",11,1,"BIN","    //AUX_IDLE_DISPLAY_MODE",11,1,"BIN","    //AUX_IDLE_DISPLAY_MODE",11,1,"BIN","    //AUX_IDLE_DISPLAY_MODE",11,1,"BIN","    //AUX_IDLE_DISPLAY_MODE",11,1,"BIN","    //AUX_IDLE_DISPLAY_MODE",11,1,"BIN","    //AUX_IDLE_DISPLAY_MODE",11,1,"BIN","    //AUX_IDLE_DISPLAY_MODE",11,1,"BIN","    //AUX_IDLE_DISPLAY_MODE",11,1,"BIN","    //AUX_IDLE_DISPLAY_MODE",11,1,"BIN","    //AUX_IDLE_DISPLAY_MODE",11,1,"BIN","    //AUX_IDLE_DISPLAY_MODE",11,1,"BIN","    //AUX_IDLE_DISPLAY_MODE",11,1,"BIN","    //AUX_IDLE_DISPLAY_MODE",11,1,"BIN","    //AUX_IDLE_DISPLAY_MODE",11,1,"BIN","    //AUX_IDLE_DISPLAY_MODE",11,1,"BIN","    //AUX_IDLE_DISPLAY_MODE",11,1,"BIN","    //AUX_IDLE_DISPLAY_MODE",11,1,"BIN","    //AUX_IDLE_DISPLAY_MODE",11,1,"BIN","    //AUX_IDLE_DISPLAY_MODE",11,1,"BIN","    //AUX_IDLE_DISPLAY_MODE",11,1,"BIN","    //AUX_IDLE_DISPLAY_MODE",11,1,"BIN","    //AUX_IDLE_DISPLAY_MODE",11,1,"BIN","    //AUX_IDLE_DISPLAY_MODE",11,1,"BIN","    //AUX_IDLE_DISPLAY_MODE",11,1,"BIN","    //AUX_IDLE_DISPLAY_MODE",11,1,"BIN","    //AUX_IDLE_DISPLAY_MODE",11,1,"BIN","    //AUX_IDLE_DISPLAY_MODE",11,1,"BIN","    //AUX_IDLE_DISPLAY_MODE",11,1,"BIN","    //AUX_IDLE_DISPLAY_MODE",11,1,"BIN","    //AUX_IDLE_DISPLAY_MODE",11,1,"BIN","    //AUX_IDLE_DISPLAY_MODE",11,1,"BIN","    //AUX_IDLE_DISPLAY_MODE",11,1,"BIN","    //AUX_IDLE_DISPLAY_MODE",11,1,"BIN","    //AUX_IDLE_DISPLAY_MODE",11,1,"BIN","    //AUX_IDLE_DISPLAY_MODE",11,1,"BIN","    //AUX_IDLE_DISPLAY_MODE",11,1,"BIN","    //AUX_IDLE_DISPLAY_MODE",11,1,"BIN","    //AUX_IDLE_DISPLAY_MODE",11,1,"BIN","    //AUX_IDLE_DISPLAY_MODE",11,1,"BIN","    //AUX_IDLE_DISPLAY_MODE",11,1,"BIN","    //AUX_IDLE_DISPLAY_MODE",11,1,"BIN","    //AUX_IDLE_DISPLAY_MODE",11,1,"BIN","    //AUX_IDLE_DISPLAY_MODE",11,1,"BIN","    //AUX_IDLE_DISPLAY_MODE",11,1,"BIN","    //AUX_IDLE_DISPLAY_MODE",11,1,"BIN","    //AUX_IDLE_DISPLAY_MODE",11,1,"BIN","    //AUX_IDLE_DISPLAY_MODE",11,1,"BIN","    //AUX_IDLE_DISPLAY_MODE",11,1,"BIN","    //AUX_IDLE_DISPLAY_MODE",11,1,"BIN","    //AUX_IDLE_DISPLAY_MODE",11,1,"BIN","    //AUX_IDLE_DISPLAY_MODE",11,1,"BIN","    //AUX_IDLE_DISPLAY_MODE",11,1,"BIN","    //AUX_IDLE_DISPLAY_MODE",11,1,"BIN","    //AUX_IDLE_DISPLAY_MODE",11,1,"BIN","    //AUX_IDLE_DISPLAY_MODE",11,1,"BIN","    //AUX_IDLE_DISPLAY_MODE",11,1,"BIN","    //AUX_IDLE_DISPLAY_MODE",11,1,"BIN","    //AUX_IDLE_DISPLAY_MODE",11,1,"BIN","    //AUX_IDLE_DISPLAY_MODE",11,1,"BIN","    //AUX_IDLE_DISPLAY_MODE",11,1,"BIN","    //AUX_IDLE_DISPLAY_MODE",11,1,"BIN","    //AUX_IDLE_DISPLAY_MODE",11,1,"BIN","    //AUX_IDLE_DISPLAY_MODE",11,1,"BIN","    //AUX_IDLE_DISPLAY_MODE",11,1,"BIN","    //AUX_IDLE_DISPLAY_MODE",11,1,"BIN","    //AUX_IDLE_DISPLAY_MODE",11,1,"BIN","    //AUX_IDLE_DISPLAY_MODE",11,1,"BIN","    //AUX_IDLE_DISPLAY_MODE",11,1,"BIN","    //AUX_IDLE_DISPLAY_MODE",11,1,"BIN","    //AUX_IDLE_DISPLAY_MODE",11,1,"BIN","    //AUX_IDLE_DISPLAY_MODE",11,1,"BIN","    //AUX_IDLE_DISPLAY_MODE",11,1,"BIN","    //AUX_IDLE_DISPLAY_MODE",11,1,"BIN","    //AUX_IDLE_DISPLAY_MODE",11,1,"BIN","    //AUX_IDLE_DISPLAY_MODE",11,1,"BIN","    //AUX_IDLE_DISPLAY_MODE",11,1,"BIN","    //AUX_IDLE_DISPLAY_MODE",11,1,"BIN","    //AUX_IDLE_DISPLAY_MODE",11,1,"BIN","    //AUX_IDLE_DISPLAY_MODE",11,1,"BIN","    //AUX_IDLE_DISPLAY_MODE",11,1,"BIN","    //AUX_IDLE_DISPLAY_MODE",11,1,"BIN","    //AUX_IDLE_DISPLAY_MODE",11,1,"BIN","    //AUX_IDLE_DISPLAY_MODE",11,1,"BIN","    //AUX_IDLE_DISPLAY_MODE",11,1,"BIN","    //AUX_IDLE_DISPLAY_MODE",11,1,"BIN","    //AUX_IDLE_DISPLAY_MODE",11,1,"BIN","    //AUX_IDLE_DISPLAY_MODE",11,1,"BIN","    //AUX_IDLE_DISPLAY_MODE",11,1,"BIN","    //AUX_IDLE_DISPLAY_MODE",11,1,"BIN","    //AUX_IDLE_DISPLAY_MODE",11,1,"BIN","    //AUX_IDLE_DISPLAY_MODE",11,1,"BIN","    //AUX_IDLE_DISPLAY_MODE",11,1,"BIN","    //AUX_IDLE_DISPLAY_MODE",11,1,"BIN","    //AUX_IDLE_DISPLAY_MODE",11,1,"BIN","    //AUX_IDLE_DISPLAY_MODE",11,1,"BIN","    //AUX_IDLE_DISPLAY_MODE",11,1,"BIN","    //AUX_IDLE_DISPLAY_MODE",11,1,"BIN","    //AUX_IDLE_DISPLAY_MODE",11,1,"BIN","    //AUX_IDLE_DISPLAY_MODE",11,1,"BIN","    //AUX_IDLE_DISPLAY_MODE",11,1,"BIN","    //AUX_IDLE_DISPLAY_MODE",11,1,"BIN","    //AUX_IDLE_DISPLAY_MODE",11,1,"BIN","    //AUX_IDLE_DISPLAY_MODE",11,1,"BIN","    //AUX_IDLE_DISPLAY_MODE",11,1,"BIN","    //AUX_IDLE_DISPLAY_MODE",11,1,"BIN","    //AUX_IDLE_DISPLAY_MODE",11,1,"BIN","    //AUX_IDLE_DISPLAY_MODE",11,1,"BIN","    //AUX_IDLE_DISPLAY_MODE",11,1,"BIN","    //AUX_IDLE_DISPLAY_MODE",11,1,"BIN","    //AUX_IDLE_DISPLAY_MODE",11,1,"BIN","    //AUX_IDLE_DISPLAY_MODE",11,1,"BIN","    //AUX_IDLE_DISPLAY_MODE",11,1,"BIN","    //AUX_IDLE_DISPLAY_MODE",11,1,"BIN","    //AUX_IDLE_DISPLAY_MODE",11,1,"BIN","    //AUX_IDLE_DISPLAY_MODE",11,1,"BIN","    //AUX_IDLE_DISPLAY_MODE",11,1,"BIN","    //AUX_IDLE_DISPLAY_MODE",11,1,"BIN","    //AUX_IDLE_DISPLAY_MODE",11,1,"BIN","    //AUX_IDLE_DISPLAY_MODE",11,1,"BIN","    //AUX_IDLE_DISPLAY_MODE",11,1,"BIN","    //AUX_IDLE_DISPLAY_MODE",11,1,"BIN","    //AUX_IDLE_DISPLAY_MODE",11,1,"BIN","    //AUX_IDLE_DISPLAY_MODE",11,1,"BIN","    //AUX_IDLE_DISPLAY_MODE",11,1,"BIN","    //AUX_IDLE_DISPLAY_MODE",11,1,"BIN","    //AUX_IDLE_DISPLAY_MODE",11,1,"BIN","    //AUX_IDLE_DISPLAY_MODE",11,1,"BIN","    //AUX_IDLE_DISPLAY_MODE",11,1,"BIN","    //AUX_IDLE_DISPLAY_MODE",11,1,"BIN","    //AUX_IDLE_DISPLAY_MODE",11,1,"BIN","    //AUX_IDLE_DISPLAY_MODE",11,1,"BIN","    //AUX_IDLE_DISPLAY_MODE",11,1,"BIN","    //AUX_IDLE_DISPLAY_MODE",11,1,"BIN","    //AUX_IDLE_DISPLAY_MODE",11,1,"BIN","    //AUX_IDLE_DISPLAY_MODE",11,1,"BIN","    //AUX_IDLE_DISPLAY_MODE",11,1,"BIN","    //AUX_IDLE_DISPLAY_MODE",11,1,"BIN","    //AUX_IDLE_DISPLAY_MODE",11,1,"BIN","    //AUX_IDLE_DISPLAY_MODE",11,1,"BIN","    //AUX_IDLE_DISPLAY_MODE",11,1,"BIN","    //AUX_IDLE_DISPLAY_MODE",11,1,"BIN","    //AUX_IDLE_DISPLAY_MODE",11,1,"BIN","    //AUX_IDLE_DISPLAY_MODE",11,1,"BIN","    //AUX_IDLE_DISPLAY_MODE",11,1,"BIN","    //AUX_IDLE_DISPLAY_MODE",11,1,"BIN","    //AUX_IDLE_DISPLAY_MODE",11,1,"BIN","    //AUX_IDLE_DISPLAY_MODE",11,1,"BIN","    //AUX_IDLE_DISPLAY_MODE",11,1,"BIN","    //AUX_IDLE_DISPLAY_MODE",11,1,"BIN","    //AUX_IDLE_DISPLAY_MODE",11,1,"BIN","    //AUX_IDLE_DISPLAY_MODE",11,1,"BIN","    //AUX_IDLE_DISPLAY_MODE",11,1,"BIN","    //AUX_IDLE_DISPLAY_MODE",11,1,"BIN","    //AUX_IDLE_DISPLAY_MODE",11,1,"BIN","    //AUX_IDLE_DISPLAY_MODE",11,1,"BIN","    //AUX_IDLE_DISPLAY_MODE",11,1,"BIN","    //AUX_IDLE_DISPLAY_MODE",11,1,"BIN","    //AUX_IDLE_DISPLAY_MODE",11,1,"BIN","    //AUX_IDLE_DISPLAY_MODE",11,1,"BIN","    //AUX_IDLE_DISPLAY_MODE",11,1,"BIN","    //AUX_IDLE_DISPLAY_MODE",11,1,"BIN","    //AUX_IDLE_DISPLAY_MODE",11,1,"BIN","    //AUX_IDLE_DISPLAY_MODE",11,1,"BIN","    //AUX_IDLE_DISPLAY_MODE",11,1,"BIN","    //AUX_IDLE_DISPLAY_MODE",11,1,"BIN","    //AUX_IDLE_DISPLAY_MODE",11,1,"BIN","    //AUX_IDLE_DISPLAY_MODE",11,1,"BIN","    //AUX_IDLE_DISPLAY_MODE",11,1,"BIN","    //AUX_IDLE_DISPLAY_MODE",11,1,"BIN","    //AUX_IDLE_DISPLAY_MODE",11,1,"BIN","    //AUX_IDLE_DISPLAY_MODE",11,1,"BIN","    //AUX_IDLE_DISPLAY_MODE",11,1,"BIN","    //AUX_IDLE_DISPLAY_MODE",11,1,"BIN","    //AUX_IDLE_DISPLAY_MODE",11,1,"BIN","    //AUX_IDLE_DISPLAY_MODE",11,1,"BIN","    //AUX_IDLE_DISPLAY_MODE",11,1,"BIN","    //AUX_IDLE_DISPLAY_MODE",11,1,"BIN","    //AUX_IDLE_DISPLAY_MODE",11,1,"BIN","    //AUX_IDLE_DISPLAY_MODE",11,1,"BIN","    //AUX_IDLE_DISPLAY_MODE",11,1,"BIN","    //AUX_IDLE_DISPLAY_MODE",11,1,"BIN","    //AUX_IDLE_DISPLAY_MODE",11,1,"BIN","    //AUX_IDLE_DISPLAY_MODE",11,1,"BIN","    //AUX_IDLE_DISPLAY_MODE",11,1,"BIN","    //AUX_IDLE_DISPLAY_MODE",11,1,"BIN","    //AUX_IDLE_DISPLAY_MODE",11,1,"BIN","    //AUX_IDLE_DISPLAY_MODE",11,1,"BIN","    //AUX_IDLE_DISPLAY_MODE",11,1,"BIN","    //AUX_IDLE_DISPLAY_MODE",11,1,"BIN","    //AUX_IDLE_DISPLAY_MODE",11,1,"BIN","    //AUX_IDLE_DISPLAY_MODE",11,1,"BIN","    //AUX_IDLE_DISPLAY_MODE",11,1,"BIN","    //AUX_IDLE_DISPLAY_MODE",11,1,"BIN","    //AUX_IDLE_DISPLAY_MODE",11,1,"BIN","    //AUX_IDLE_DISPLAY_MODE",11,1,"BIN","    //AUX_IDLE_DISPLAY_MODE",11,1,"BIN","    //AUX_IDLE_DISPLAY_MODE",11,1,"BIN","    //AUX_IDLE_DISPLAY_MODE",11,1,"BIN","    //AUX_IDLE_DISPLAY_MODE",11,1,"BIN","    //AUX_IDLE_DISPLAY_MODE",11,1,"BIN","    //AUX_IDLE_DISPLAY_MODE",11,1,"BIN","    //AUX_IDLE_DISPLAY_MODE",11,1,"BIN","    //AUX_IDLE_DISPLAY_MODE",11,1,"BIN","    //AUX_IDLE_DISPLAY_MODE",11,1,"BIN","    //AUX_IDLE_DISPLAY_MODE",11,1,"BIN","    //AUX_IDLE_DISPLAY_MODE",11,1,"BIN","    //AUX_IDLE_DISPLAY_MODE",11,1,"BIN","    //AUX_IDLE_DISPLAY_MODE",11,1,"BIN","    //AUX_IDLE_DISPLAY_MODE",11,1,"BIN","    //AUX_IDLE_DISPLAY_MODE",11,1,"BIN","    //AUX_IDLE_DISPLAY_MODE",11,1,"BIN","    //AUX_IDLE_DISPLAY_MODE",11,1,"BIN","    //AUX_IDLE_DISPLAY_MODE",11,1,"BIN","    //AUX_IDLE_DISPLAY_MODE",11,1,"BIN","    //AUX_IDLE_DISPLAY_MODE",11,1,"BIN","    //AUX_IDLE_DISPLAY_MODE",11,1,"BIN","    //AUX_IDLE_DISPLAY_MODE",11,1,"BIN","    //AUX_IDLE_DISPLAY_MODE",11,1,"BIN","    //AUX_IDLE_DISPLAY_MODE",11,1,"BIN","    //AUX_IDLE_DISPLAY_MODE",11,1,"BIN","    //AUX_IDLE_DISPLAY_MODE",11,1,"BIN","    //AUX_IDLE_DISPLAY_MODE",11,1,"BIN","    //AUX_IDLE_DISPLAY_MODE",11,1,"BIN","    //AUX_IDLE_DISPLAY_MODE",11,1,"BIN","    //AUX_IDLE_DISPLAY_MODE",11,1,"BIN","    //AUX_IDLE_DISPLAY_MODE",11,1,"BIN","    //AUX_IDLE_DISPLAY_MODE",11,1,"BIN","    //AUX_IDLE_DISPLAY_MODE",11,1,"BIN","    //AUX_IDLE_DISPLAY_MODE",11,1,"BIN","    //AUX_IDLE_DISPLAY_MODE",11,1,"BIN","    //AUX_IDLE_DISPLAY_MODE",11,1,"BIN","    //AUX_IDLE_DISPLAY_MODE",11,1,"BIN","    //AUX_IDLE_DISPLAY_MODE",11,1,"BIN","    //AUX_IDLE_DISPLAY_MODE",11,1,"BIN","    //AUX_IDLE_DISPLAY_MODE",11,1,"BIN","    //AUX_IDLE_DISPLAY_MODE",11,1,"BIN","    //AUX_IDLE_DISPLAY_MODE",11,1,"BIN","    //AUX_IDLE_DISPLAY_MODE",11,1,"BIN","    //AUX_IDLE_DISPLAY_MODE",11,1,"BIN","    //AUX_IDLE_DISPLAY_MODE",11,1,"BIN","    //AUX_IDLE_DISPLAY_MODE",11,1,"BIN","    //AUX_IDLE_DISPLAY_MODE",11,1,"BIN","    //AUX_IDLE_DISPLAY_MODE",11,1,"BIN","    //AUX_IDLE_DISPLAY_MODE",11,1,"BIN","    //AUX_IDLE_DISPLAY_MODE",11,1,"BIN","    //AUX_IDLE_DISPLAY_MODE",11,1,"BIN","    //AUX_IDLE_DISPLAY_MODE",11,1,"BIN","    //AUX_IDLE_DISPLAY_MODE",11,1,"BIN","    //AUX_IDLE_DISPLAY_MODE",11,1,"BIN","    //AUX_IDLE_DISPLAY_MODE",11,1,"BIN","    //AUX_IDLE_DISPLAY_MODE",11,1,"BIN","    //AUX_IDLE_DISPLAY_MODE",11,1,"BIN","    //AUX_IDLE_DISPLAY_MODE",11,1,"BIN","    //AUX_IDLE_DISPLAY_MODE",11,1,"BIN","    //AUX_IDLE_DISPLAY_MODE",11,1,"BIN","    //AUX_IDLE_DISPLAY_MODE",11,1,"BIN","    //AUX_IDLE_DISPLAY_MODE",11,1,"BIN","    //AUX_IDLE_DISPLAY_MODE",11,1,"BIN","    //AUX_IDLE_DISPLAY_MODE",11,1,"BIN","    //AUX_IDLE_DISPLAY_MODE",11,1,"BIN","    //AUX_IDLE_DISPLAY_MODE",11,1,"BIN","    //AUX_IDLE_DISPLAY_MODE",11,1,"BIN","    //AUX_IDLE_DISPLAY_MODE",11,1,"BIN","    //AUX_IDLE_DISPLAY_MODE",11,1,"BIN","    //AUX_IDLE_DISPLAY_MODE",11,1,"BIN","    //AUX_IDLE_DISPLAY_MODE",11,1,"BIN","    //AUX_IDLE_DISPLAY_MODE",11,1,"BIN","    //AUX_IDLE_DISPLAY_MODE",11,1,"BIN","    //AUX_IDLE_DISPLAY_MODE",11,1,"BIN","    //AUX_IDLE_DISPLAY_MODE",11,1,"BIN","    //AUX_IDLE_DISPLAY_MODE",11,1,"BIN","    //AUX_IDLE_DISPLAY_MODE",11,1,"BIN","    //AUX_IDLE_DISPLAY_MODE",11,1,"BIN","    //AUX_IDLE_DISPLAY_MODE",11,1,"BIN","    //AUX_IDLE_DISPLAY_MODE",11,1,"BIN","    //AUX_IDLE_DISPLAY_MODE",11,1,"BIN","    //AUX_IDLE_DISPLAY_MODE",11,1,"BIN","    //AUX_IDLE_DISPLAY_MODE",11,1,"BIN","    //AUX_IDLE_DISPLAY_MODE",11,1,"BIN","    //AUX_IDLE_DISPLAY_MODE",11,1,"BIN","    //AUX_IDLE_DISPLAY_MODE",11,1,"BIN","    //AUX_IDLE_DISPLAY_MODE",11,1,"BIN","    //AUX_IDLE_DISPLAY_MODE",11,1,"BIN","    //AUX_IDLE_DISPLAY_MODE",11,1,"BIN","    //AUX_IDLE_DISPLAY_MODE",11,1,"BIN","    //AUX_IDLE_DISPLAY_MODE",11,1,"BIN","    //AUX_IDLE_DISPLAY_MODE",11,1,"BIN","    //AUX_IDLE_DISPLAY_MODE",11,1,"BIN","    //AUX_IDLE_DISPLAY_MODE",11,1,"BIN","    //AUX_IDLE_DISPLAY_MODE",11,1,"BIN","    //AUX_IDLE_DISPLAY_MODE",11,1,"BIN","    //AUX_IDLE_DISPLAY_MODE",11,1,"BIN","    //AUX_IDLE_DISPLAY_MODE",11,1,"BIN","    //AUX_IDLE_DISPLAY_MODE",11,1,"BIN","    //AUX_IDLE_DISPLAY_MODE",11,1,"BIN","    //AUX_IDLE_DISPLAY_MODE",11,1,"BIN","    //AUX_IDLE_DISPLAY_MODE",11,1,"BIN","    //AUX_IDLE_DISPLAY_MODE",11,1,"BIN","    //AUX_IDLE_DISPLAY_MODE",11,1,"BIN","    //AUX_IDLE_DISPLAY_MODE",11,1,"BIN","    //AUX_IDLE_DISPLAY_MODE",11,1,"BIN","    //AUX_IDLE_DISPLAY_MODE",11,1,"BIN","    //AUX_IDLE_DISPLAY_MODE",11,1,"BIN","    //AUX_IDLE_DISPLAY_MODE",11,1,"BIN","    //AUX_IDLE_DISPLAY_MODE",11,1,"BIN","    //AUX_IDLE_DISPLAY_MODE",11,1,"BIN","    //AUX_IDLE_DISPLAY_MODE",11,1,"BIN","    //AUX_IDLE_DISPLAY_MODE",11,1,"BIN","    //AUX_IDLE_DISPLAY_MODE",11,1,"BIN","    //AUX_IDLE_DISPLAY_MODE",11,1,"BIN","    //AUX_IDLE_DISPLAY_MODE",11,1,"BIN","    //AUX_IDLE_DISPLAY_MODE",11,1,"BIN","    //AUX_IDLE_DISPLAY_MODE",11,1,"BIN","    //AUX_IDLE_DISPLAY_MODE",11,1,"BIN","    //AUX_IDLE_DISPLAY_MODE",11,1,"BIN","    //AUX_IDLE_DISPLAY_MODE",11,1,"BIN","    //AUX_IDLE_DISPLAY_MODE",11,1,"BIN","    //AUX_IDLE_DISPLAY_MODE",11,1,"BIN","    //AUX_IDLE_DISPLAY_MODE",11,1,"BIN","    //AUX_IDLE_DISPLAY_MODE",11,1,"BIN","    //AUX_IDLE_DISPLAY_MODE",11,1,"BIN","    //AUX_IDLE_DISPLAY_MODE",11,1,"BIN","    //AUX_IDLE_DISPLAY_MODE",11,1,"BIN","    //AUX_IDLE_DISPLAY_MODE",11,1,"BIN","    //AUX_IDLE_DISPLAY_MODE",11,1,"BIN","    //AUX_IDLE_DISPLAY_MODE",11,1,"BIN","    //AUX_IDLE_DISPLAY_MODE",11,1,"BIN","    //AUX_IDLE_DISPLAY_MODE",11,1,"BIN","    //AUX_IDLE_DISPLAY_MODE",11,1,"BIN","    //AUX_IDLE_DISPLAY_MODE",11,1,"BIN","    //AUX_IDLE_DISPLAY_MODE",11,1,"BIN","    //AUX_IDLE_DISPLAY_MODE",11,1,"BIN","    //AUX_IDLE_DISPLAY_MODE",11,1,"BIN","    //AUX_IDLE_DISPLAY_MODE",11,1,"BIN","    //AUX_IDLE_DISPLAY_MODE",11,1,"BIN","    //AUX_IDLE_DISPLAY_MODE",11,1,"BIN","    //AUX_IDLE_DISPLAY_MODE",11,1,"BIN","    //AUX_IDLE_DISPLAY_MODE",11,1,"BIN","    //AUX_IDLE_DISPLAY_MODE",11,1,"BIN","    //AUX_IDLE_DISPLAY_MODE",11,1,"BIN","    //AUX_IDLE_DISPLAY_MODE",11,1,"BIN","    //AUX_IDLE_DISPLAY_MODE",11,1,"BIN","    //AUX_IDLE_DISPLAY_MODE",11,1,"BIN","    //AUX_IDLE_DISPLAY_MODE",11,1,"BIN","    //AUX_IDLE_DISPLAY_MODE",11,1,"BIN","    //AUX_IDLE_DISPLAY_MODE",11,1,"BIN","    //AUX_IDLE_DISPLAY_MODE",11,1,"BIN","    //AUX_IDLE_DISPLAY_MODE",11,1,"BIN","    //AUX_IDLE_DISPLAY_MODE",11,1,"BIN","    //AUX_IDLE_DISPLAY_MODE",11,1,"BIN","    //AUX_IDLE_DISPLAY_MODE",11,1,"BIN","    //AUX_IDLE_DISPLAY_MODE",11,1,"BIN","    //AUX_IDLE_DISPLAY_MODE",11,1,"BIN","    //AUX_IDLE_DISPLAY_MODE",11,1,"BIN","    //AUX_IDLE_DISPLAY_MODE",11,1,"BIN","    //AUX_IDLE_DISPLAY_MODE",11,1,"BIN","    //AUX_IDLE_DISPLAY_MODE",11,1,"BIN","    //AUX_IDLE_DISPLAY_MODE",11,1,"BIN","    //AUX_IDLE_DISPLAY_MODE",11,1,"BIN","    //AUX_IDLE_DISPLAY_MODE",11,1,"BIN","    //AUX_IDLE_DISPLAY_MODE",11,1,"BIN","    //AUX_IDLE_DISPLAY_MODE",11,1,"BIN","    //AUX_IDLE_DISPLAY_MODE",11,1,"BIN","    //AUX_IDLE_DISPLAY_MODE",11,1,"BIN","    //AUX_IDLE_DISPLAY_MODE",11,1,"BIN","    //AUX_IDLE_DISPLAY_MODE",11,1,"BIN","    //AUX_IDLE_DISPLAY_MODE",11,1,"BIN","    //AUX_IDLE_DISPLAY_MODE",11,1,"BIN","    //AUX_IDLE_DISPLAY_MODE",11,1,"BIN","    //AUX_IDLE_DISPLAY_MODE",11,1,"BIN","    //AUX_IDLE_DISPLAY_MODE",11,1,"BIN","    //AUX_IDLE_DISPLAY_MODE",11,1,"BIN","    //AUX_IDLE_DISPLAY_MODE",11,1,"BIN","    //AUX_IDLE_DISPLAY_MODE",11,1,"BIN","    //AUX_IDLE_DISPLAY_MODE",11,1,"BIN","    //AUX_IDLE_DISPLAY_MODE",11,1,"BIN","    //AUX_IDLE_DISPLAY_MODE",11,1,"BIN","    //AUX_IDLE_DISPLAY_MODE",11,1,"BIN","    //AUX_IDLE_DISPLAY_MODE",11,1,"BIN","    //AUX_IDLE_DISPLAY_MODE",11,1,"BIN","    //AUX_IDLE_DISPLAY_MODE",11,1,"BIN","    //AUX_IDLE_DISPLAY_MODE",11,1,"BIN","    //AUX_IDLE_DISPLAY_MODE",11,1,"BIN","    //AUX_IDLE_DISPLAY_MODE",11,1,"BIN","    //AUX_IDLE_DISPLAY_MODE",11,1,"BIN","    //AUX_IDLE_DISPLAY_MODE",11,1,"BIN","    //AUX_IDLE_DISPLAY_MODE",11,1,"BIN","    //AUX_IDLE_DISPLAY_MODE",11,1,"BIN","    //AUX_IDLE_DISPLAY_MODE",11,1,"BIN","    //AUX_IDLE_DISPLAY_MODE",11,1,"BIN","    //AUX_IDLE_DISPLAY_MODE",11,1,"BIN","    //AUX_IDLE_DISPLAY_MODE",11,1,"BIN","    //AUX_IDLE_DISPLAY_MODE",11,1,"BIN","    //AUX_IDLE_DISPLAY_MODE",11,1,"BIN","    //AUX_IDLE_DISPLAY_MODE",11,1,"BIN","    //AUX_IDLE_DISPLAY_MODE",11,1,"BIN","    //AUX_IDLE_DISPLAY_MODE",11,1,"BIN","    //AUX_IDLE_DISPLAY_MODE",11,1,"BIN","    //AUX_IDLE_DISPLAY_MODE",11,1,"BIN","    //AUX_IDLE_DISPLAY_MODE",11,1,"BIN","    //AUX_IDLE_DISPLAY_MODE",11,1,"BIN","    //AUX_IDLE_DISPLAY_MODE",11,1,"BIN","    //AUX_IDLE_DISPLAY_MODE",11,1,"BIN","    //AUX_IDLE_DISPLAY_MODE",11,1,"BIN","    //AUX_IDLE_DISPLAY_MODE",11,1,"BIN","    //AUX_IDLE_DISPLAY_MODE",11,1,"BIN","    //AUX_IDLE_DISPLAY_MODE",11,1,"BIN","    //AUX_IDLE_DISPLAY_MODE",11,1,"BIN","    //AUX_IDLE_DISPLAY_MODE",11,1,"BIN","    //AUX_IDLE_DISPLAY_MODE",11,1,"BIN","    //AUX_IDLE_DISPLAY_MODE",11,1,"BIN","    //AUX_IDLE_DISPLAY_MODE",11,1,"BIN","    //AUX_IDLE_DISPLAY_MODE",11,1,"BIN","    //AUX_IDLE_DISPLAY_MODE",11,1,"BIN","    //AUX_IDLE_DISPLAY_MODE",11,1,"BIN","    //AUX_IDLE_DISPLAY_MODE",11,1,"BIN","    //AUX_IDLE_DISPLAY_MODE",11,1,"BIN","    //AUX_IDLE_DISPLAY_MODE",11,1,"BIN","    //AUX_IDLE_DISPLAY_MODE",11,1,"BIN","    //AUX_IDLE_DISPLAY_MODE",11,1,"BIN","    //AUX_IDLE_DISPLAY_MODE",11,1,"BIN","    //AUX_IDLE_DISPLAY_MODE",11,1,"BIN","    //AUX_IDLE_DISPLAY_MODE",11,1,"BIN","    //AUX_IDLE_DISPLAY_MODE",11,1,"BIN","    //AUX_IDLE_DISPLAY_MODE",11,1,"BIN","    //AUX_IDLE_DISPLAY_MODE",11,1,"BIN","    //AUX_IDLE_DISPLAY_MODE",11,1,"BIN","    //AUX_IDLE_DISPLAY_MODE",11,1,"BIN","    //AUX_IDLE_DISPLAY_MODE",11,1,"BIN","    //AUX_IDLE_DISPLAY_MODE",11,1,"BIN","    //AUX_IDLE_DISPLAY_MODE",11,1,"BIN","    //AUX_IDLE_DISPLAY_MODE",11,1,"BIN","    //AUX_IDLE_DISPLAY_MODE",11,1,"BIN","    //AUX_IDLE_DISPLAY_MODE",11,1,"BIN","    //AUX_IDLE_DISPLAY_MODE",11,1,"BIN","    //AUX_IDLE_DISPLAY_MODE",11,1,"BIN","    //AUX_IDLE_DISPLAY_MODE",11,1,"BIN","    //AUX_IDLE_DISPLAY_MODE",11,1,"BIN","    //AUX_IDLE_DISPLAY_MODE",11,1,"BIN","    //AUX_IDLE_DISPLAY_MODE",11,1,"BIN","    //AUX_IDLE_DISPLAY_MODE",11,1,"BIN","    //AUX_IDLE_DISPLAY_MODE",11,1,"BIN","    //AUX_IDLE_DISPLAY_MODE",11,1,"BIN","    //AUX_IDLE_DISPLAY_MODE",11,1,"BIN"]
["预设值配置数据","addr_preset_start = \naddr_timer_start + len_timer ","len_preset = 25",5," S_VOLC","CFG_PRESET_VOLUME_MIN"]
[null,null,null,5," S_VOLC","CFG_PRESET_VOLUME_MAX"]
[null,null,null,5," S_AMTC","CFG_PRESET_AMOUNT_MIN"]
[null,null,null,5," S_AMTC","CFG_PRESET_AMOUNT_MAX "]
[null,null,null,5," S_VOLC","CFG_VOLUME_LIMIT"]
["显示配置数据","addr_disp_start = \naddr_preset_start + len_preset  ","len_disp = 6",1,"BIN","CFG_TYPE_DISPLAY_TYPE"]
[null,null,null,1,"BIN","AUX_IDLE_DISPLAY_MODE"]
[null,null,null,1,"BIN","CFG_DIGITS_LAYOUT_VOLUME"]
[null,null,null,1,"BIN","CFG_DIGITS_LAYOUT_AMOUNT"]
[null,null,null,1,"BIN","CFG_DIGITS_LAYOUT_UNITPRICE"]
[null,null,null,1,"BIN","CFG_NB_DISPLAY_PER_FIP"]
["凑整配置数据","addr_round_start = \naddr_disp_start + len_disp","len_round = 3",1,"BIN","CFG_AMOUNT_ROUNDING_TYPE"]
[null,null,null,1,"BIN","CFG_VOLUME_ROUNDING_TYPE"]
[null,null,null,1,"BIN","AUX_JUST_STOP_ROUNDING_MODE"]
["加油模式配置数据","addr_deli_mode_start = \naddr_round_start+ len_round","len_deli_mode = 2",1," BIN","CFG_NB_DELIVERY_MODES"]
[null,null,null,1," BIN","CFG_NB_FUELLING_MODES"]
["单价配置数据","addr_up_start = \naddr_deli_mode_start+len_deli_mode\n","len_up = 8",4," S_UPR","OP_TQC_UNIT_PRICE_PROD_1"]
[null,null,null,4," S_UPR","OP_TQC_UNIT_PRICE_PROD_2"]
[{"$nulls":6},"删除(PROD_3~8)"]

{"sheet":"total.bin","index":7,"n_rows":12,"n_cols":7,"rows_kept":12,"cut":false,"hidden":false,"merged":[[1,0,11,0],[1,1,11,1],[1,2,11,2]]}
[null,"偏移地址","总字节长度","字节长度","数据类型","命名","描述"]
["总累数据",0,38,2,"BIN","TOT_GEN_SEQ_NB"]
[null,null,null,1,"BIN","TOT_FIP_NUMBER"]
[null,null,null,1,"BIN","TOT_LOGICAL_NOZZLE_NUMBER"]
[null,null,null,1,"BIN","TOT_PRODUCT_ID"]
[null,null,null,1,"ASC","TOT_DELIVERY_MODE"]
[null,null,null,7,"L_VOL","TOT_VOLUME"]
[null,null,null,7,"L_AMT","TOT_AMOUNT"]
[null,null,null,2,"BCD","TOT_LAST_TRANSACTION_NB "]
[null,null,null,2,"BCD","TOT_NB_OF_TRANSACTIONS "]
[null,null,null,7,"L_VOL","TOT_LEAK_VOLUME"]
[null,null,null,7,"L_VOL","TOT_IDLE_VOLUME"]

{"sheet":"calcu_info.bin","index":8,"n_rows":7,"n_cols":7,"rows_kept":7,"cut":false,"hidden":false,"merged":[[1,0,6,0],[1,1,6,1],[1,2,6,2]]}
[null,"偏移地址","总字节长度","字节长度","数据类型","命名","描述"]
["计量板软硬件版本信息",0,"len_calcu_info = 47",3," ASC","CFG_MANUFACTURER_ID"]
[null,null,null,12," ASC","CFG_CALCULATOR_SERIAL_NUMBER"]
[null,null,null,12,"ASC","CFG_SW_VERSION_APPLICATION"]
[null,null,null,4,"ASC","CFG_SW_CHECKSUM"]
[null,null,null,12,"ASC","CFG_CAN_DEVICE_VERSION"]
[null,null,null,4,"ASC","CFG_CAN_DEVICE_CHECKSUM"]

{"sheet":"debug.bin","index":9,"n_rows":19,"n_cols":7,"rows_kept":19,"cut":false,"hidden":false,"merged":[[13,0,18,0],[13,1,18,1],[13,2,18,2],[1,0,6,0],[1,1,6,1],[1,2,6,2],[7,0,12,0],[7,1,12,1],[7,2,12,2]]}
[null,"偏移地址","总字节长度","字节长度","数据类型","命名","描述"]
["调试记录1",0,172,2," BCD","DEBUG_SEQ_NB      "]
[null,null,null,40,"ASC","FILE_NAME              "]
[null,null,null,2," BIN","LINE_NB              "]
[null,null,null,1," BIN","UTN           "]
[null,null,null,120,"ASC","TEXT                     "]
[null,null,null,7,"DATETIME","DATE_TIME              "]
["调试记录2",172,172,2," BCD","DEBUG_SEQ_NB      "]
[null,null,null,40,"ASC","FILE_NAME              "]
[null,null,null,2," BIN","LINE_NB              "]
[null,null,null,1," BIN","UTN           "]
[null,null,null,120,"ASC","TEXT                     "]
[null,null,null,7,"DATETIME","DATE_TIME              "]
["调试记录…","…",172,2," BCD","DEBUG_SEQ_NB      "]
[null,null,null,40,"ASC","FILE_NAME              "]
[null,null,null,2," BIN","LINE_NB              "]
[null,null,null,1," BIN","UTN           "]
[null,null,null,120,"ASC","TEXT                     "]
[null,null,null,7,"DATETIME","DATE_TIME              "]